Workbook

Sheet Sheet1
A1: الاسم | B1: بداية تعيين | C1: نوع العقد | D1: مدة العقد | E1: تاريخ الانتهاء | F1: تاريخ اليوم | G1: يوم | H1: شهر | I1: سنة | J1: اجمالي المتبقي بالايام
A2: =Sheet2!B2 -> احمد ابراهيم علي مخلوف | B2: =Sheet2!H2 -> 2005-09-10 | C2: محدد المدة | D2: 1 | E2: =IF(OR(N(B2)=0,N(D2)=0),"",SUM(N(B2),N(D2*365))) -> 2006-09-10 | F2: =IF(A2="","",TODAY()) -> 2020-12-06 | G2: =IFERROR(DATEDIF(F2,E2,"md"),"") ->  | H2: =IFERROR(DATEDIF(F2,E2,"ym"),"") ->  | I2: =IFERROR(DATEDIF(F2,E2,"y"),"") ->  | J2: =IF(OR(N(E2)=0,N(F2)=0),"",SUM(E2-F2)) -> -5201
A3: =Sheet2!B3 -> احمد ابراهيم ياقوت اسماعيل | B3: =Sheet2!H3 -> 2007-02-20 | C3: محدد المدة | D3: 1 | E3: =IF(OR(N(B3)=0,N(D3)=0),"",SUM(N(B3),N(D3*365))) -> 2008-02-20 | F3: =IF(A3="","",TODAY()) -> 2020-12-06 | J3: =IF(OR(N(E3)=0,N(F3)=0),"",SUM(E3-F3)) -> -4673
A4: =Sheet2!B4 -> احمد اسماعيل خميس بركات اسماعيل | B4: =Sheet2!H4 -> 2010-09-18 | C4: محدد المدة | D4: 1 | E4: 2011-09-18 | F4: 2020-12-06 | J4: -3367
A5: =Sheet2!B5 -> احمد جابر السيد محمد شرف | B5: =Sheet2!H5 -> 2016-09-22 | C5: محدد المدة | D5: 1 | E5: 2017-09-22 | F5: 2020-12-06 | J5: -1171
A6: =Sheet2!B6 -> احمد رافت محمد يوسف حسب الله | B6: =Sheet2!H6 -> 2005-09-10 | C6: محدد المدة | D6: 1 | E6: 2006-09-10 | F6: 2020-12-06 | G6: =IFERROR(DATEDIF(F6,E6,"md"),"") ->  | I6: =IFERROR(DATEDIF(F6,E6,"y"),"") ->  | J6: -5201
A7: =Sheet2!B7 -> احمد محمد احمد النجار | B7: =Sheet2!H7 -> 2005-08-25 | C7: محدد المدة | D7: 1 | E7: 2006-08-25 | F7: 2020-12-06 | G7: =IFERROR(DATEDIF(F7,E7,"md"),"") ->  | H7: =IFERROR(DATEDIF(F7,E7,"ym"),"") ->  | I7: =IFERROR(DATEDIF(F7,E7,"y"),"") ->  | J7: -5217
A8: =Sheet2!B8 -> ابراهيم محمد ابراهيم احمد | B8: =Sheet2!H8 -> 2006-11-11 | C8: محدد المدة | D8: 1 | E8: 2007-11-11 | F8: 2020-12-06 | J8: -4774
A9: =Sheet2!B9 -> اسامه محمد اسماعيل عباس الشترار | B9: =Sheet2!H9 -> 2004-01-12 | C9: محدد المدة | D9: 1 | E9: 2005-01-11 | F9: 2020-12-06 | J9: -5808
A10: =Sheet2!B10 -> اشرف عبد الستار محمد حسن السيد | B10: =Sheet2!H10 -> 2018-11-20 | C10: محدد المدة | D10: 1 | E10: 2019-11-20 | F10: 2020-12-06 | J10: -382
A11: =Sheet2!B11 -> اسلام سمير عبد ى القوي حسن | B11: =Sheet2!H11 -> 2018-11-29 | C11: محدد المدة | D11: 1 | E11: 2019-11-29 | F11: 2020-12-06 | J11: -373
A12: =Sheet2!B12 -> حسن ابراهيم محمد محمود عبد الرحيم | B12: =Sheet2!H12 -> 2008-01-03 | C12: محدد المدة | D12: 1 | E12: 2009-01-02 | F12: 2020-12-06 | G12: =IFERROR(DATEDIF(F12,E12,"md"),"") ->  | H12: =IFERROR(DATEDIF(F12,E12,"ym"),"") ->  | I12: =IFERROR(DATEDIF(F12,E12,"y"),"") ->  | J12: -4356
A13: =Sheet2!B13 -> حمدي محمود احمد عبد اللطيف | B13: =Sheet2!H13 -> 1995-12-28 | C13: محدد المدة | D13: 1 | E13: 1996-12-27 | F13: 2020-12-06 | J13: -8745
A14: =Sheet2!B14 -> خالد عبد الله عامر | B14: =Sheet2!H14 -> 1995-05-20 | C14: محدد المدة | D14: 1 | E14: 1996-05-19 | F14: 2020-12-06 | J14: -8967
A15: =Sheet2!B15 -> رمضان احمد سرور السيد | B15: =Sheet2!H15 -> 1997-08-20 | C15: محدد المدة | D15: 1 | E15: 1998-08-20 | F15: 2020-12-06 | J15: -8144
A16: =Sheet2!B16 -> سعد صلاح سعدرمضان عقاب | B16: =Sheet2!H16 -> 2011-05-03 | C16: محدد المدة | D16: 1 | E16: 2012-05-02 | F16: 2020-12-06 | J16: -3140
A17: =Sheet2!B17 -> سعد محمود سعد محمود حسين | B17: =Sheet2!H17 -> 2010-10-04 | C17: محدد المدة | D17: 1 | E17: 2011-10-04 | F17: 2020-12-06 | J17: -3351
A18: =Sheet2!B18 -> سعيد بدير شعبان ابراهيم شعبان | B18: =Sheet2!H18 -> 2005-11-07 | C18: محدد المدة | D18: 1 | E18: 2006-11-07 | F18: 2020-12-06 | J18: -5143
A19: =Sheet2!B19 -> سعيد علي يوسف احمد | B19: =Sheet2!H19 -> 1995-07-31 | C19: محدد المدة | D19: 1 | E19: 1996-07-30 | F19: 2020-12-06 | J19: -8895
A20: =Sheet2!B20 -> سعيد نصيب يوسف محمد الدمني | B20: =Sheet2!H20 -> 2012-10-18 | C20: محدد المدة | D20: 1 | E20: 2013-10-18 | F20: 2020-12-06 | J20: -2606
A21: =Sheet2!B21 -> عادل عبد البدير عويضه غالي | B21: =Sheet2!H21 -> 1997-01-01 | C21: محدد المدة | D21: 1 | E21: 1998-01-01 | F21: 2020-12-06 | J21: -8375
A22: =Sheet2!B22 -> عبد الجواد محمد عبدالسلام | B22: =Sheet2!H22 -> 2002-02-09 | C22: محدد المدة | D22: 1 | E22: 2003-02-09 | F22: 2020-12-06 | J22: -6510
A23: =Sheet2!B23 -> عبد الحميد يحي عبد الحميد احمد | B23: =Sheet2!H23 -> 2007-09-24 | C23: محدد المدة | D23: 1 | E23: 2008-09-23 | F23: 2020-12-06 | J23: -4457
A24: =Sheet2!B24 -> عبد الجليل عوض عبد الجليل | B24: =Sheet2!H24 -> 2010-08-25 | C24: محدد المدة | D24: 1 | E24: 2011-08-25 | F24: 2020-12-06 | J24: -3391
A25: =Sheet2!B25 -> عبدالستار عبدالحميد عبدالستار محمد | B25: =Sheet2!H25 -> 2018-06-09 | C25: محدد المدة | D25: 1 | E25: 2019-06-09 | F25: 2020-12-06 | J25: -546
A26: =Sheet2!B26 -> عبدالمنعم حسين عبدالحليم | B26: =Sheet2!H26 -> 1995-12-16 | C26: محدد المدة | D26: 1 | E26: 1996-12-15 | F26: 2020-12-06 | J26: -8757
A27: =Sheet2!B27 -> عصمت احمد ابو اليزيد عبدالغفار | B27: =Sheet2!H27 -> 2016-01-12 | C27: محدد المدة | D27: 1 | E27: 2017-01-11 | F27: 2020-12-06 | J27: -1425
A28: =Sheet2!B28 -> علي خيري شحاته علي شحاته | B28: =Sheet2!H28 -> 2017-02-15 | C28: محدد المدة | D28: 1 | E28: 2018-02-15 | F28: 2020-12-06 | J28: -1025
A29: =Sheet2!B29 -> علي محمود علي السيد عطيه | B29: =Sheet2!H29 -> 1998-01-21 | C29: محدد المدة | D29: 1 | E29: 1999-01-21 | F29: 2020-12-06 | J29: -7990
A30: =Sheet2!B30 -> عيد فؤاد محمد عبد الحميد علي | B30: =Sheet2!H30 -> 2006-04-13 | C30: محدد المدة | D30: 1 | E30: 2007-04-13 | F30: 2020-12-06 | J30: -4986
A31: =Sheet2!B31 -> ماهريونس محمد فهيم الخولي | B31: =Sheet2!H31 -> 1996-01-06 | C31: محدد المدة | D31: 1 | E31: 1997-01-05 | F31: 2020-12-06 | J31: -8736
A32: =Sheet2!B32 -> وجدي شنوده فرويز جوده | B32: =Sheet2!H32 -> 2017-07-11 | C32: محدد المدة | D32: 1 | E32: 2018-07-11 | F32: 2020-12-06 | J32: -879
A33: =Sheet2!B33 -> مخلص عبد الحميد فرج الله جدو | B33: =Sheet2!H33 -> 1995-12-16 | C33: محدد المدة | D33: 1 | E33: 1996-12-15 | F33: 2020-12-06 | J33: -8757
A34: =Sheet2!B34 -> محمود سليمان | B34: =Sheet2!H34 -> 2009-01-12 | C34: محدد المدة | D34: 1 | E34: 2010-01-12 | F34: 2020-12-06 | J34: -3981
A35: =Sheet2!B35 -> محمود شوقي محمد احمد العالم | B35: =Sheet2!H35 -> 2018-09-22 | C35: محدد المدة | D35: 1 | E35: 2019-09-22 | F35: 2020-12-06 | J35: -441
A36: =Sheet2!B36 -> محمد السيد محمد الحداد | B36: =Sheet2!H36 -> 2011-09-20 | C36: محدد المدة | D36: 1 | E36: 2012-09-19 | F36: 2020-12-06 | J36: -3000
A37: =Sheet2!B37 -> محمد ابو المعاطي عبد النبي مرسي | B37: =Sheet2!H37 -> 1995-01-08 | C37: محدد المدة | D37: 1 | E37: 1996-01-08 | F37: 2020-12-06 | J37: -9099
A38: =Sheet2!B38 -> محمد جميل عبد السلام جمعه القراجي | B38: =Sheet2!H38 -> 2018-07-18 | C38: محدد المدة | D38: 1 | E38: 2019-07-18 | F38: 2020-12-06 | J38: -507
A39: =Sheet2!B39 -> محمد رزق فرج فهمي محمد | B39: =Sheet2!H39 -> 2017-01-10 | C39: محدد المدة | D39: 1 | E39: 2018-01-10 | F39: 2020-12-06 | J39: -1061
A40: =Sheet2!B40 -> محمد رضا حسين عفيفي | B40: =Sheet2!H40 -> 2015-10-13 | C40: محدد المدة | D40: 1 | E40: 2016-10-12 | F40: 2020-12-06 | J40: -1516
A41: =Sheet2!B41 -> محمد سعيد عبد الوهاب محمد الزهيري | B41: =Sheet2!H41 -> 2008-01-04 | C41: محدد المدة | D41: 1 | E41: 2009-01-03 | F41: 2020-12-06 | J41: -4355
A42: =Sheet2!B42 -> محمد سمير عبدالله عبد الحميد | B42: =Sheet2!H42 -> 2011-02-20 | C42: محدد المدة | D42: 1 | E42: 2012-02-20 | F42: 2020-12-06 | J42: -3212
A43: =Sheet2!B43 -> محمد عادل عبدالحميد الكومي ربيع | B43: =Sheet2!H43 -> 2019-09-25 | C43: محدد المدة | D43: 1 | E43: 2020-09-24 | F43: 2020-12-06 | J43: -73
A44: =Sheet2!B44 -> محمد عبد الحليم سليمان عبدالحليم | B44: =Sheet2!H44 -> 2010-10-03 | C44: محدد المدة | D44: 1 | E44: 2011-10-03 | F44: 2020-12-06 | J44: -3352
A45: =Sheet2!B45 -> محمد علام خليفه عيسي | B45: =Sheet2!H45 -> 2018-09-26 | C45: محدد المدة | D45: 1 | E45: 2019-09-26 | F45: 2020-12-06 | J45: -437
A46: =Sheet2!B46 -> محمد كمال حسن علي | B46: =Sheet2!H46 -> 1995-06-09 | C46: محدد المدة | D46: 1 | E46: 1996-06-08 | F46: 2020-12-06 | J46: -8947
A47: =Sheet2!B47 -> محمد يونس مصطفي محمد | B47: =Sheet2!H47 -> 1995-07-31 | C47: محدد المدة | D47: 1 | E47: 1996-07-30 | F47: 2020-12-06 | J47: -8895
A48: =Sheet2!B48 -> مراد فكري مصطفي صالح رزق | B48: =Sheet2!H48 -> 2009-10-18 | C48: محدد المدة | D48: 1 | E48: 2010-10-18 | F48: 2020-12-06 | J48: -3702
A49: =Sheet2!B49 -> مينا وديع كيرلس عوض الله | B49: =Sheet2!H49 -> 2019-06-08 | C49: محدد المدة | D49: 1 | E49: 2020-06-07 | F49: 2020-12-06 | J49: -182
A50: =Sheet2!B50 -> فؤاد كمال محمد مرسي نوار | B50: =Sheet2!H50 -> 1999-04-21 | C50: محدد المدة | D50: 1 | E50: 2000-04-20 | F50: 2020-12-06 | J50: -7535
A51: =Sheet2!B51 -> فكري كمال فهمي ميخائيل | B51: =Sheet2!H51 -> 2011-05-21 | C51: محدد المدة | D51: 1 | E51: 2012-05-20 | F51: 2020-12-06 | J51: -3122
A52: =Sheet2!B52 -> كريم سالم جعفر محمد عثمان | B52: =Sheet2!H52 -> 2001-05-09 | C52: محدد المدة | D52: 1 | E52: 2002-05-09 | F52: 2020-12-06 | J52: -6786
A53: =Sheet2!B53 -> نبيل نقولا حنا داود | B53: =Sheet2!H53 -> 1995-09-10 | C53: محدد المدة | D53: 1 | E53: 1996-09-09 | F53: 2020-12-06 | J53: -8854
A54: =Sheet2!B54 -> ياسر احمدعبد الغني احمد | B54: =Sheet2!H54 -> 1995-12-16 | C54: محدد المدة | D54: 1 | E54: 1996-12-15 | F54: 2020-12-06 | J54: -8757
A55: =Sheet2!B55 -> ياسر قاسم عبد الخالق عبد السلام | B55: =Sheet2!H55 -> 2010-10-04 | C55: محدد المدة | D55: 1 | E55: 2011-10-04 | F55: 2020-12-06 | J55: -3351
A56: =Sheet2!B56 -> ياسر محمد سيد محمد | B56: =Sheet2!H56 -> 1999-08-25 | C56: محدد المدة | D56: 1 | E56: 2000-08-24 | F56: 2020-12-06 | J56: -7409
A57: =Sheet2!B57 -> يوسف محمد حسن خالد | B57: =Sheet2!H57 -> 2008-01-01 | C57: محدد المدة | D57: 1 | E57: 2008-12-31 | F57: 2020-12-06 | J57: -4358
A58: =Sheet2!B58 -> ابراهيم احمد علام عبد الله | B58: =Sheet2!H58 -> 2001-01-11 | C58: محدد المدة | D58: 1 | E58: 2002-01-11 | F58: 2020-12-06 | J58: -6904
A59: =Sheet2!B59 -> ابراهيم محمد ابراهيم رزق | B59: =Sheet2!H59 -> 2007-07-17 | C59: محدد المدة | D59: 1 | E59: 2008-07-16 | F59: 2020-12-06 | J59: -4526
A60: =Sheet2!B60 -> احمد السعيد فهمي محمد المصري | B60: =Sheet2!H60 -> 1997-05-05 | C60: محدد المدة | D60: 1 | E60: 1998-05-05 | F60: 2020-12-06 | J60: -8251
A61: =Sheet2!B61 -> صبحي عبدالله عامر ابو الخير | B61: =Sheet2!H61 -> 2004-06-11 | C61: محدد المدة | D61: 1 | E61: 2005-06-11 | F61: 2020-12-06 | J61: -5657
A62: =Sheet2!B62 -> سعد صلاح سعد رمضان عقاب | B62: =Sheet2!H62 -> 2011-05-03 | C62: محدد المدة | D62: 1 | E62: 2012-05-02 | F62: 2020-12-06 | J62: -3140
A63: =Sheet2!B63 -> محمد رضا حسيني عفيفي | B63: =Sheet2!H63 -> 2015-10-13 | C63: محدد المدة | D63: 1 | E63: 2016-10-12 | F63: 2020-12-06 | J63: -1516
A64: =Sheet2!B64 -> احمد بشير ابراهيم عبد العزيز | B64: =Sheet2!H64 -> 2019-11-02 | C64: محدد المدة | D64: 1 | E64: 2020-11-01 | F64: 2020-12-06 | J64: -35
A65: =Sheet2!B65 -> احمد عبدالحق ابو العنين حنفي السقا | B65: =Sheet2!H65 -> 1996-01-06 | C65: محدد المدة | D65: 1 | E65: 1997-01-05 | F65: 2020-12-06 | J65: -8736
A66: =Sheet2!B66 -> احمد محمد حسين عبد الغني | B66: =Sheet2!H66 -> 2006-02-09 | C66: محدد المدة | D66: 1 | E66: 2007-02-09 | F66: 2020-12-06 | J66: -5049
A67: =Sheet2!B67 -> ادريس جمعه معوض خميس | B67: =Sheet2!H67 -> 2015-08-12 | C67: محدد المدة | D67: 1 | E67: =IF(OR(N(B67)=0,N(D67)=0),"",SUM(N(B67),N(D67*365))) -> 2016-08-11 | F67: =IF(A67="","",TODAY()) -> 2020-12-06 | J67: =IF(OR(N(E67)=0,N(F67)=0),"",SUM(E67-F67)) -> -1578
A68: =Sheet2!B68 -> اسماعيل احمد عبد الجليل | B68: =Sheet2!H68 -> 1995-10-12 | C68: محدد المدة | D68: 1 | E68: 1996-10-11 | F68: 2020-12-06 | J68: -8822
A69: =Sheet2!B69 -> امين محمد امين غريب | B69: =Sheet2!H69 -> 2017-01-01 | C69: محدد المدة | D69: 1 | E69: 2018-01-01 | F69: 2020-12-06 | J69: -1070
A70: =Sheet2!B70 -> ايهاب طلعت احمد عبد اللطيف | B70: =Sheet2!H70 -> 1997-02-16 | C70: محدد المدة | D70: 1 | E70: 1998-02-16 | F70: 2020-12-06 | J70: -8329
A71: =Sheet2!B71 -> جمعه عبدالفتاح النوبي | B71: =Sheet2!H71 -> 1995-07-31 | C71: محدد المدة | D71: 1 | E71: 1996-07-30 | F71: 2020-12-06 | J71: -8895
A72: =Sheet2!B72 -> خالد ثابت عبده حموده | B72: =Sheet2!H72 -> 1999-07-12 | C72: محدد المدة | D72: 1 | E72: 2000-07-11 | F72: 2020-12-06 | J72: -7453
A73: =Sheet2!B73 -> رافت محمد مصطفي صالح رزق | B73: =Sheet2!H73 -> 2005-06-04 | C73: محدد المدة | D73: 1 | E73: 2006-06-04 | F73: 2020-12-06 | J73: -5299
A74: =Sheet2!B74 -> رجب محمود عبد العزيز سعد | B74: =Sheet2!H74 -> 2005-04-06 | C74: محدد المدة | D74: 1 | E74: 2006-04-06 | F74: 2020-12-06 | J74: -5358
A75: =Sheet2!B75 -> رفعت محمد ابراهيم اسماعيل | B75: =Sheet2!H75 -> 1995-10-12 | C75: محدد المدة | D75: 1 | E75: 1996-10-11 | F75: 2020-12-06 | J75: -8822
A76: =Sheet2!B76 -> عادل خميس ابو عجيله بدوي | B76: =Sheet2!H76 -> 1996-01-07 | C76: محدد المدة | D76: 1 | E76: 1997-01-06 | F76: 2020-12-06 | G76: =IFERROR(DATEDIF(F76,E76,"md"),"") ->  | H76: =IFERROR(DATEDIF(F76,E76,"ym"),"") ->  | I76: =IFERROR(DATEDIF(F76,E76,"y"),"") ->  | J76: -8735
A77: =Sheet2!B77 -> علاء السعيد عوف عبدالرحمن | B77: =Sheet2!H77 -> 2003-10-15 | C77: محدد المدة | D77: 1 | E77: 2004-10-14 | F77: 2020-12-06 | J77: -5897
A78: =Sheet2!B78 -> عمرو صبحي المحمدي امام شلبي | B78: =Sheet2!H78 -> 2005-06-08 | C78: محدد المدة | D78: 1 | E78: 2006-06-08 | F78: 2020-12-06 | J78: -5295
A79: =Sheet2!B79 -> عمرو خميس ابو عجيله بدوي | B79: =Sheet2!H79 -> 2004-01-09 | C79: محدد المدة | D79: 1 | E79: 2005-01-08 | F79: 2020-12-06 | J79: -5811
A80: =Sheet2!B80 -> فتحي توفيق حسن سالم | B80: =Sheet2!H80 -> 1995-07-31 | C80: محدد المدة | D80: 1 | E80: 1996-07-30 | F80: 2020-12-06 | J80: -8895
A81: =Sheet2!B81 -> فضل احمد فضل جاد | B81: =Sheet2!H81 -> 2006-02-14 | C81: محدد المدة | D81: 1 | E81: 2007-02-14 | F81: 2020-12-06 | J81: -5044
A82: =Sheet2!B82 -> محمد حسن ابرهيم السيد | B82: =Sheet2!H82 -> 1996-04-13 | C82: محدد المدة | D82: 1 | E82: 1997-04-13 | F82: 2020-12-06 | J82: -8638
A83: =Sheet2!B83 -> محمد احمد فضل جاد عقاب | B83: =Sheet2!H83 -> 2010-02-01 | C83: محدد المدة | D83: 1 | E83: 2011-02-01 | F83: 2020-12-06 | J83: -3596
A84: =Sheet2!B84 -> محمد صلاح عطية الله محمد | B84: =Sheet2!H84 -> 1998-12-13 | C84: محدد المدة | D84: 1 | E84: 1999-12-13 | F84: 2020-12-06 | J84: -7664
A85: =Sheet2!B85 -> محمد سعد بدوي بدوي | B85: =Sheet2!H85 -> 2006-11-11 | C85: محدد المدة | D85: 1 | E85: 2007-11-11 | F85: 2020-12-06 | J85: -4774
A86: =Sheet2!B86 -> محمد عوض محمد عبدالمقصود | B86: =Sheet2!H86 -> 2018-01-13 | C86: محدد المدة | D86: 1 | E86: 2019-01-13 | F86: 2020-12-06 | J86: -693
A87: =Sheet2!B87 -> محمد رزق ضيف اسماعيل محمد الابياري | B87: =Sheet2!H87 -> 2007-08-01 | C87: محدد المدة | D87: 1 | E87: 2008-07-31 | F87: 2020-12-06 | J87: -4511
A88: =Sheet2!B88 -> محمد رمضان سعد بدوي | B88: =Sheet2!H88 -> 2007-09-24 | C88: محدد المدة | D88: 1 | E88: 2008-09-23 | F88: 2020-12-06 | J88: -4457
A89: =Sheet2!B89 -> محمد محمود كامل طه | B89: =Sheet2!H89 -> 2017-08-22 | C89: محدد المدة | D89: 1 | E89: 2018-08-22 | F89: 2020-12-06 | J89: -837
A90: =Sheet2!B90 -> محمود فوزي عبد العليم عبدالناصر | B90: =Sheet2!H90 -> 2005-11-07 | C90: محدد المدة | D90: 1 | E90: 2006-11-07 | F90: 2020-12-06 | J90: -5143
A91: =Sheet2!B91 -> مصطفي رزق ضيف اسماعيل محمد | B91: =Sheet2!H91 -> 2005-03-12 | C91: محدد المدة | D91: 1 | E91: 2006-03-12 | F91: 2020-12-06 | J91: -5383
A92: =Sheet2!B92 -> مصطفي صادق توفيق عبد الرحيم | B92: =Sheet2!H92 -> 2007-09-27 | C92: محدد المدة | D92: 1 | E92: 2008-09-26 | F92: 2020-12-06 | J92: -4454
A93: =Sheet2!B93 -> مصطفي عبد النبي مصطفي احمد كوشتي | B93: =Sheet2!H93 -> 2018-11-15 | C93: محدد المدة | D93: 1 | E93: 2019-11-15 | F93: 2020-12-06 | J93: -387
A94: =Sheet2!B94 -> هيثم كمال حسين محمد الدقيقي | B94: =Sheet2!H94 -> 2018-07-02 | C94: محدد المدة | D94: 1 | E94: 2019-07-02 | F94: 2020-12-06 | J94: -523
A95: =Sheet2!B95 -> احمد سمير محمود عبد الخالق | B95: =Sheet2!H95 -> 2019-03-03 | C95: محدد المدة | D95: 1 | E95: 2020-03-02 | F95: 2020-12-06 | J95: -279
A96: =Sheet2!B96 -> اسامه محمد عبدالله الشبراوي | B96: =Sheet2!H96 -> 1995-01-08 | C96: محدد المدة | D96: 1 | E96: 1996-01-08 | F96: 2020-12-06 | J96: -9099
A97: =Sheet2!B97 -> ايمن احمد احمد حجاب | B97: =Sheet2!H97 -> 1996-03-15 | C97: محدد المدة | D97: 1 | E97: 1997-03-15 | F97: 2020-12-06 | J97: -8667
A98: =Sheet2!B98 -> ايمن كمال حسن عاشور | B98: =Sheet2!H98 -> 2012-05-03 | C98: محدد المدة | D98: 1 | E98: 2013-05-03 | F98: 2020-12-06 | J98: -2774
A99: =Sheet2!B99 -> سعيد عبدالعزيز خليل الفقي | B99: =Sheet2!H99 -> 2019-01-03 | C99: محدد المدة | D99: 1 | E99: 2020-01-03 | F99: 2020-12-06 | J99: -338
A100: =Sheet2!B100 -> شريف حماد محمد علي حماد | B100: =Sheet2!H100 -> 2007-08-01 | C100: محدد المدة | D100: 1 | E100: 2008-07-31 | F100: 2020-12-06 | J100: -4511
A101: =Sheet2!B101 -> محمد صالح امين سيد احمد | B101: =Sheet2!H101 -> 2019-01-18 | C101: محدد المدة | D101: 1 | E101: 2020-01-18 | F101: 2020-12-06 | J101: -323
A102: =Sheet2!B102 -> يوسف محمد مصطفي صالح | B102: =Sheet2!H102 -> 2004-05-02 | C102: محدد المدة | D102: 1 | E102: 2005-05-02 | F102: 2020-12-06 | J102: -5697
A103: =Sheet2!B103 -> تامر صابر محمد جميل محمد | B103: =Sheet2!H103 -> 2009-01-12 | C103: محدد المدة | D103: 1 | E103: 2010-01-12 | F103: 2020-12-06 | J103: -3981
A104: =Sheet2!B104 -> عادل محمد حسين حسين العش | B104: =Sheet2!H104 -> 1997-02-16 | C104: محدد المدة | D104: 1 | E104: 1998-02-16 | F104: 2020-12-06 | J104: -8329
A105: =Sheet2!B105 -> محمد خميس عبد ربه علي رضوان | B105: =Sheet2!H105 -> 2006-02-14 | C105: محدد المدة | D105: 1 | E105: 2007-02-14 | F105: 2020-12-06 | J105: -5044
A106: =Sheet2!B106 -> محمود علي يوسف احمد | B106: =Sheet2!H106 -> 1995-08-26 | C106: محدد المدة | D106: 1 | E106: 1996-08-25 | F106: 2020-12-06 | J106: -8869
A107: =Sheet2!B107 -> احمد محمد عبداللطيف ابو عرب | B107: =Sheet2!H107 -> 2016-09-22 | C107: محدد المدة | D107: 1 | E107: 2017-09-22 | F107: 2020-12-06 | J107: -1171
A108: =Sheet2!B108 -> خالد محمد شعبان الصافي | B108: =Sheet2!H108 -> 2008-05-02 | C108: محدد المدة | D108: 1 | E108: 2009-05-02 | F108: 2020-12-06 | J108: -4236
A109: =Sheet2!B109 -> عماد فاروق فهمي بشاي | B109: =Sheet2!H109 -> 2006-02-02 | C109: محدد المدة | D109: 1 | E109: 2007-02-02 | F109: 2020-12-06 | J109: -5056
A110: =Sheet2!B110 -> محمد خميس سليمان حيدر | B110: =Sheet2!H110 -> 1995-10-12 | C110: محدد المدة | D110: 1 | E110: 1996-10-11 | F110: 2020-12-06 | J110: -8822
A111: =Sheet2!B111 -> محمد سعيد محمد محمود السيد | B111: =Sheet2!H111 -> 2019-01-15 | C111: محدد المدة | D111: 1 | E111: 2020-01-15 | F111: 2020-12-06 | J111: -326
A112: =Sheet2!B112 -> وليد يونس فهيم السيد الخولي | B112: =Sheet2!H112 -> 2007-02-14 | C112: محدد المدة | D112: 1 | E112: 2008-02-14 | F112: 2020-12-06 | J112: -4679
A113: =Sheet2!B113 -> ابراهيم حسن سعيد رمضان شقيدف | B113: =Sheet2!H113 -> 2019-01-08 | C113: محدد المدة | D113: 1 | E113: 2020-01-08 | F113: 2020-12-06 | J113: -333
A114: =Sheet2!B114 -> ابراهيم رزق منصور الصابر | B114: =Sheet2!H114 -> 2004-06-11 | C114: محدد المدة | D114: 1 | E114: 2005-06-11 | F114: 2020-12-06 | J114: -5657
A115: =Sheet2!B115 -> احمد شاكر احمد السيد | B115: =Sheet2!H115 -> 2010-10-03 | C115: محدد المدة | D115: 1 | E115: 2011-10-03 | F115: 2020-12-06 | J115: -3352
A116: =Sheet2!B116 -> احمد صلاح سعد الله صالح | B116: =Sheet2!H116 -> 2018-07-18 | C116: محدد المدة | D116: 1 | E116: 2019-07-18 | F116: 2020-12-06 | J116: -507
A117: =Sheet2!B117 -> احمد علي محمد علي حسن | B117: =Sheet2!H117 -> 2010-07-11 | C117: محدد المدة | D117: 1 | E117: 2011-07-11 | F117: 2020-12-06 | J117: -3436
A118: =Sheet2!B118 -> احمد فرحات الشافعي احمد | B118: =Sheet2!H118 -> 2019-03-07 | C118: محدد المدة | D118: 1 | E118: 2020-03-06 | F118: 2020-12-06 | J118: -275
A119: =Sheet2!B119 -> احمد محمود مصطفي صالح | B119: =Sheet2!H119 -> 2000-02-04 | C119: محدد المدة | D119: 1 | E119: 2001-02-03 | F119: 2020-12-06 | J119: -7246
A120: =Sheet2!B120 -> اشرف اسماعيل محمد خلاف | B120: =Sheet2!H120 -> 2000-07-11 | C120: محدد المدة | D120: 1 | E120: 2001-07-11 | F120: 2020-12-06 | J120: -7088
A121: =Sheet2!B121 -> اشرف السيد | B121: =Sheet2!H121 -> 2004-10-06 | C121: محدد المدة | D121: 1 | E121: 2005-10-06 | F121: 2020-12-06 | J121: -5540
A122: =Sheet2!B122 -> السيد فتحي محمد البحيري | B122: =Sheet2!H122 -> 2019-05-25 | C122: محدد المدة | D122: 1 | E122: 2020-05-24 | F122: 2020-12-06 | J122: -196
A123: =Sheet2!B123 -> السيد كامل عبدالجواد محمد خطاب | B123: =Sheet2!H123 -> 2000-08-02 | C123: محدد المدة | D123: 1 | E123: 2001-08-02 | F123: 2020-12-06 | J123: -7066
A124: =Sheet2!B124 -> الصافي محمد علي | B124: =Sheet2!H124 -> 2018-06-21 | C124: محدد المدة | D124: 1 | E124: 2019-06-21 | F124: 2020-12-06 | J124: -534
A125: =Sheet2!B125 -> ايهاب حسن علي راضي | B125: =Sheet2!H125 -> 2002-01-14 | C125: محدد المدة | D125: 1 | E125: 2003-01-14 | F125: 2020-12-06 | J125: -6536
A126: =Sheet2!B126 -> جمعه محمد محمد قطب تعيلب | B126: =Sheet2!H126 -> 2014-02-20 | C126: محدد المدة | D126: 1 | E126: 2015-02-20 | F126: 2020-12-06 | J126: -2116
A127: =Sheet2!B127 -> حافظ محمد محفوظ | B127: =Sheet2!H127 -> 1996-01-06 | C127: محدد المدة | D127: 1 | E127: 1997-01-05 | F127: 2020-12-06 | J127: -8736
A128: =Sheet2!B128 -> حجاج اسماعيل حسين جاد | B128: =Sheet2!H128 -> 1998-08-19 | C128: محدد المدة | D128: 1 | E128: 1999-08-19 | F128: 2020-12-06 | J128: -7780
A129: =Sheet2!B129 -> حسام الدين محمود علي القمني | B129: =Sheet2!H129 -> 2004-01-08 | C129: محدد المدة | D129: 1 | E129: 2005-01-07 | F129: 2020-12-06 | J129: -5812
A130: =Sheet2!B130 -> حسين احمد احمد الخضرجي | B130: =Sheet2!H130 -> 2019-01-07 | C130: محدد المدة | D130: 1 | E130: 2020-01-07 | F130: 2020-12-06 | J130: -334
A131: =Sheet2!B131 -> حسين خلف علي محمد | B131: =Sheet2!H131 -> 2019-01-02 | C131: محدد المدة | D131: 1 | E131: =IF(OR(N(B131)=0,N(D131)=0),"",SUM(N(B131),N(D131*365))) -> 2020-01-02 | F131: =IF(A131="","",TODAY()) -> 2020-12-06 | J131: =IF(OR(N(E131)=0,N(F131)=0),"",SUM(E131-F131)) -> -339
A132: =Sheet2!B132 -> رشاد مدحت محمود عبد الجواد جويد | B132: =Sheet2!H132 -> 1999-01-12 | C132: محدد المدة | D132: 1 | E132: 2000-01-12 | F132: 2020-12-06 | J132: -7634
A133: =Sheet2!B133 -> سلامه جمعه عبد الشهيد محمد | B133: =Sheet2!H133 -> 2005-11-07 | C133: محدد المدة | D133: 1 | E133: 2006-11-07 | F133: 2020-12-06 | J133: -5143
A134: =Sheet2!B134 -> شعبان محمد عبد الرحمن السيد | B134: =Sheet2!H134 -> 2005-09-10 | C134: محدد المدة | D134: 1 | E134: 2006-09-10 | F134: 2020-12-06 | J134: -5201
A135: =Sheet2!B135 -> صبري قاسم محمد قاقه | B135: =Sheet2!H135 -> 2010-04-12 | C135: محدد المدة | D135: 1 | E135: 2011-04-12 | F135: 2020-12-06 | J135: -3526
A136: =Sheet2!B136 -> طارق عبدالعزيز عبدالعزيز سيلمان | B136: =Sheet2!H136 -> 1997-10-15 | C136: محدد المدة | D136: 1 | E136: 1998-10-15 | F136: 2020-12-06 | J136: -8088
A137: =Sheet2!B137 -> عادل السيد عبيد شحاته | B137: =Sheet2!H137 -> 2006-02-09 | C137: محدد المدة | D137: 1 | E137: 2007-02-09 | F137: 2020-12-06 | J137: -5049
A138: =Sheet2!B138 -> عبدالجيد شريف عبدالجيد شريف | B138: =Sheet2!H138 -> 2000-01-23 | C138: محدد المدة | D138: 1 | E138: 2001-01-22 | F138: 2020-12-06 | J138: -7258
A139: =Sheet2!B139 -> محمود سعد محمود علي | B139: =Sheet2!H139 -> 1996-01-01 | C139: محدد المدة | D139: 1 | E139: 1996-12-31 | F139: 2020-12-06 | J139: -8741
A140: =Sheet2!B140 -> محمد صلاح حمدي احمد ابو زيد | B140: =Sheet2!H140 -> 2010-07-11 | C140: محدد المدة | D140: 1 | E140: 2011-07-11 | F140: 2020-12-06 | G140: =IFERROR(DATEDIF(F140,E140,"md"),"") ->  | H140: =IFERROR(DATEDIF(F140,E140,"ym"),"") ->  | I140: =IFERROR(DATEDIF(F140,E140,"y"),"") ->  | J140: -3436
A141: =Sheet2!B141 -> مدحت محمد احمد قاسم | B141: =Sheet2!H141 -> 2009-05-10 | C141: محدد المدة | D141: 1 | E141: 2010-05-10 | F141: 2020-12-06 | J141: -3863
A142: =Sheet2!B142 -> عماد الدين فهمي عبدالمقصود | B142: =Sheet2!H142 -> 1995-12-16 | C142: محدد المدة | D142: 1 | E142: 1996-12-15 | F142: 2020-12-06 | J142: -8757
A143: =Sheet2!B143 -> عصام الدين عبده سلامه موسي | B143: =Sheet2!H143 -> 1994-01-09 | C143: محدد المدة | D143: 1 | E143: 1995-01-09 | F143: 2020-12-06 | J143: -9463
A144: =Sheet2!B144 -> اسماعيل صبري علي | B144: =Sheet2!H144 -> 1994-01-01 | C144: محدد المدة | D144: 1 | E144: 1995-01-01 | F144: 2020-12-06 | J144: -9471
A145: =Sheet2!B145 -> محمود محمد معروف احمد | B145: =Sheet2!H145 -> 2011-05-15 | C145: محدد المدة | D145: 1 | E145: 2012-05-14 | F145: 2020-12-06 | J145: -3128
A146: =Sheet2!B146 -> محمد السيد عثمان احمد | B146: =Sheet2!H146 -> 2002-01-01 | C146: محدد المدة | D146: 1 | E146: 2003-01-01 | F146: 2020-12-06 | J146: -6549
A147: =Sheet2!B147 -> احمد كمال عبدالحفيظ عبدالحميد | B147: =Sheet2!H147 -> 2011-02-20 | C147: محدد المدة | D147: 1 | E147: 2012-02-20 | F147: 2020-12-06 | J147: -3212
A148: =Sheet2!B148 -> سامح فتحي عجبان لوقا | B148: =Sheet2!H148 -> 2000-01-04 | C148: محدد المدة | D148: 1 | E148: 2001-01-03 | F148: 2020-12-06 | J148: -7277
A149: =Sheet2!B149 -> محمد احمد علي محمد الديب | B149: =Sheet2!H149 -> 1998-06-18 | C149: محدد المدة | D149: 1 | E149: 1999-06-18 | F149: 2020-12-06 | J149: -7842
A150: =Sheet2!B150 -> احمد عبدالكريم عبد العزيز | B150: =Sheet2!H150 -> 2019-01-02 | C150: محدد المدة | D150: 1 | E150: 2020-01-02 | F150: 2020-12-06 | J150: -339
A151: =Sheet2!B151 -> شريف كمال شريف علي | B151: =Sheet2!H151 -> 2000-05-27 | C151: محدد المدة | D151: 1 | E151: 2001-05-27 | F151: 2020-12-06 | J151: -7133
A152: =Sheet2!B152 -> اشرف عطا عمر عمر حريره | B152: =Sheet2!H152 -> 1998-02-08 | C152: محدد المدة | D152: 1 | E152: 1999-02-08 | F152: 2020-12-06 | J152: -7972
A153: =Sheet2!B153 -> محمد علي محمد ابو هيف | B153: =Sheet2!H153 -> 2006-05-04 | C153: محدد المدة | D153: 1 | E153: 2007-05-04 | F153: 2020-12-06 | J153: -4965
A154: =Sheet2!B154 -> محمد علي مخمد احمد الفار | B154: =Sheet2!H154 -> 2001-01-03 | C154: محدد المدة | D154: 1 | E154: 2002-01-03 | F154: 2020-12-06 | J154: -6912
A155: =Sheet2!B155 -> باسم رشدي محمود محمد | B155: =Sheet2!H155 -> 2017-01-01 | C155: محدد المدة | D155: 1 | E155: 2018-01-01 | F155: 2020-12-06 | J155: -1070
A156: =Sheet2!B156 -> النميري جمال عبد الرازق | B156: =Sheet2!H156 -> 2001-09-01 | C156: محدد المدة | D156: 1 | E156: 2002-09-01 | F156: 2020-12-06 | J156: -6671
A157: =Sheet2!B157 -> احمد عوض ابراهيم سلامه | B157: =Sheet2!H157 -> 2007-09-27 | C157: محدد المدة | D157: 1 | E157: 2008-09-26 | F157: 2020-12-06 | J157: -4454
A158: =Sheet2!B158 -> محمد احمد يوسف فراج | B158: =Sheet2!H158 -> 1996-05-06 | C158: محدد المدة | D158: 1 | E158: 1997-05-06 | F158: 2020-12-06 | J158: -8615
A159: =Sheet2!B159 -> محمد عبداللطيف عبدالله عبدالفتاح | B159: =Sheet2!H159 -> 2019-01-01 | C159: محدد المدة | D159: 1 | E159: 2020-01-01 | F159: 2020-12-06 | J159: -340
A160: =Sheet2!B160 -> رجب عبد الفتاح عبد الرؤوف محمد | B160: =Sheet2!H160 -> 2010-10-04 | C160: محدد المدة | D160: 1 | E160: 2011-10-04 | F160: 2020-12-06 | J160: -3351
A161: =Sheet2!B161 -> طاهر رجب طاهر احمد عبدالرحيم | B161: =Sheet2!H161 -> 2019-01-01 | C161: محدد المدة | D161: 1 | E161: 2020-01-01 | F161: 2020-12-06 | J161: -340
A162: =Sheet2!B162 -> عصام عبد المنعم عبد الكريم عبدالله | B162: =Sheet2!H162 -> 2006-01-08 | C162: محدد المدة | D162: 1 | E162: 2007-01-08 | F162: 2020-12-06 | J162: -5081
A163: =Sheet2!B163 -> عصام محمد زكي مصطفي | B163: =Sheet2!H163 -> 2019-10-02 | C163: محدد المدة | D163: 1 | E163: 2020-10-01 | F163: 2020-12-06 | J163: -66
A164: =Sheet2!B164 -> علاء محمد عبدالحليم هلال | B164: =Sheet2!H164 -> 2019-01-23 | C164: محدد المدة | D164: 1 | E164: 2020-01-23 | F164: 2020-12-06 | J164: -318
A165: =Sheet2!B165 -> علي حسين علي حسين | B165: =Sheet2!H165 -> 2019-11-07 | C165: محدد المدة | D165: 1 | E165: 2020-11-06 | F165: 2020-12-06 | J165: -30
A166: =Sheet2!B166 -> عماد شعبان عبدالله محمد | B166: =Sheet2!H166 -> 2011-02-20 | C166: محدد المدة | D166: 1 | E166: 2012-02-20 | F166: 2020-12-06 | J166: -3212
A167: =Sheet2!B167 -> عمر صبري ابراهيم محمد حماد | B167: =Sheet2!H167 -> 2019-10-27 | C167: محدد المدة | D167: 1 | E167: 2020-10-26 | F167: 2020-12-06 | J167: -41
A168: =Sheet2!B168 -> علي محمود علي محمود | B168: =Sheet2!H168 -> 2012-05-12 | C168: محدد المدة | D168: 1 | E168: 2013-05-12 | F168: 2020-12-06 | J168: -2765
A169: =Sheet2!B169 -> عيد عبدالله بسيوني محمد | B169: =Sheet2!H169 -> 1999-02-04 | C169: محدد المدة | D169: 1 | E169: 2000-02-04 | F169: 2020-12-06 | J169: -7611
A170: =Sheet2!B170 -> فرج ناجي جويد زايد | B170: =Sheet2!H170 -> 1999-04-21 | C170: محدد المدة | D170: 1 | E170: 2000-04-20 | F170: 2020-12-06 | J170: -7535
A171: =Sheet2!B171 -> محمد حجاب محمد زيدان الجبارسي | B171: =Sheet2!H171 -> 2007-02-27 | C171: محدد المدة | D171: 1 | E171: 2008-02-27 | F171: 2020-12-06 | J171: -4666
A172: =Sheet2!B172 -> محمد حسين محمد عبداللا | B172: =Sheet2!H172 -> 2010-10-17 | C172: محدد المدة | D172: 1 | E172: 2011-10-17 | F172: 2020-12-06 | J172: -3338
A173: =Sheet2!B173 -> محمد زكي محمود بدوي | B173: =Sheet2!H173 -> 1999-12-05 | C173: محدد المدة | D173: 1 | E173: 2000-12-04 | F173: 2020-12-06 | J173: -7307
A174: =Sheet2!B174 -> محمد شاكر عبدالجيد شريف | B174: =Sheet2!H174 -> 1999-06-22 | C174: محدد المدة | D174: 1 | E174: 2000-06-21 | F174: 2020-12-06 | J174: -7473
A175: =Sheet2!B175 -> محمد شوقي فهمي حسن | B175: =Sheet2!H175 -> 2007-05-06 | C175: محدد المدة | D175: 1 | E175: 2008-05-05 | F175: 2020-12-06 | J175: -4598
A176: =Sheet2!B176 -> محمد عبدالحميد عبدالمعطي عطيه | B176: =Sheet2!H176 -> 2006-04-13 | C176: محدد المدة | D176: 1 | E176: 2007-04-13 | F176: 2020-12-06 | J176: -4986
A177: =Sheet2!B177 -> محمد محمد مزارع سليم | B177: =Sheet2!H177 -> 2001-03-09 | C177: محدد المدة | D177: 1 | E177: 2002-03-09 | F177: 2020-12-06 | J177: -6847
A178: =Sheet2!B178 -> محمد محممود عبدالعزيز المرسي | B178: =Sheet2!H178 -> 2010-07-11 | C178: محدد المدة | D178: 1 | E178: 2011-07-11 | F178: 2020-12-06 | J178: -3436
A179: =Sheet2!B179 -> محمود جاد الكريم محمد محمد | B179: =Sheet2!H179 -> 2006-01-06 | C179: محدد المدة | D179: 1 | E179: 2007-01-06 | F179: 2020-12-06 | J179: -5083
A180: =Sheet2!B180 -> محمود شاكر احمد السيد اللافي | B180: =Sheet2!H180 -> 2011-02-02 | C180: محدد المدة | D180: 1 | E180: 2012-02-02 | F180: 2020-12-06 | J180: -3230
A181: =Sheet2!B181 -> محمود صابر محمود الطباخ | B181: =Sheet2!H181 -> 2019-05-25 | C181: محدد المدة | D181: 1 | E181: 2020-05-24 | F181: 2020-12-06 | J181: -196
A182: =Sheet2!B182 -> محمود عبد الغني احمد علي ابو يوسف | B182: =Sheet2!H182 -> 1997-05-14 | C182: محدد المدة | D182: 1 | E182: 1998-05-14 | F182: 2020-12-06 | J182: -8242
A183: =Sheet2!B183 -> محمود محمد ابو المجد | B183: =Sheet2!H183 -> 2004-02-10 | C183: محدد المدة | D183: 1 | E183: 2005-02-09 | F183: 2020-12-06 | J183: -5779
A184: =Sheet2!B184 -> محمود محمد علي ابراهيم | B184: =Sheet2!H184 -> 1995-07-31 | C184: محدد المدة | D184: 1 | E184: 1996-07-30 | F184: 2020-12-06 | J184: -8895
A185: =Sheet2!B185 -> مصطفي علي مصطفي عاشور علي | B185: =Sheet2!H185 -> 2004-03-17 | C185: محدد المدة | D185: 1 | E185: 2005-03-17 | F185: 2020-12-06 | J185: -5743
A186: =Sheet2!B186 -> منصور سالم رشيد عبدالرواف | B186: =Sheet2!H186 -> 2006-02-14 | C186: محدد المدة | D186: 1 | E186: 2007-02-14 | F186: 2020-12-06 | J186: -5044
A187: =Sheet2!B187 -> منصوره صبره محمد عبد العال | B187: =Sheet2!H187 -> 1995-03-26 | C187: محدد المدة | D187: 1 | E187: 1996-03-25 | F187: 2020-12-06 | J187: -9022
A188: =Sheet2!B188 -> نعيم فاروق حسن راضي | B188: =Sheet2!H188 -> 2006-04-13 | C188: محدد المدة | D188: 1 | E188: 2007-04-13 | F188: 2020-12-06 | J188: -4986
A189: =Sheet2!B189 -> هشام سعيد مرعي مصلوبي | B189: =Sheet2!H189 -> 1998-01-11 | C189: محدد المدة | D189: 1 | E189: 1999-01-11 | F189: 2020-12-06 | J189: -8000
A190: =Sheet2!B190 -> وائل عبدالعزيز عبد الجليل احمد جمعه | B190: =Sheet2!H190 -> 1998-02-15 | C190: محدد المدة | D190: 1 | E190: 1999-02-15 | F190: 2020-12-06 | J190: -7965
A191: =Sheet2!B191 -> وليد صلاح علي جلاله | B191: =Sheet2!H191 -> 2009-10-18 | C191: محدد المدة | D191: 1 | E191: 2010-10-18 | F191: 2020-12-06 | J191: -3702
A192: =Sheet2!B192 -> وليد محمد موسي عبد الوهاب | B192: =Sheet2!H192 -> 2000-09-09 | C192: محدد المدة | D192: 1 | E192: 2001-09-09 | F192: 2020-12-06 | J192: -7028
A193: =Sheet2!B193 -> احمد عادل محمد محمد | B193: =Sheet2!H193 -> 2002-10-17 | C193: محدد المدة | D193: 1 | E193: 2003-10-17 | F193: 2020-12-06 | J193: -6260
A194: =Sheet2!B194 -> سعيد عبدالحافظ عبدالله المصري | B194: =Sheet2!H194 -> 2007-02-14 | C194: محدد المدة | D194: 1 | E194: 2008-02-14 | F194: 2020-12-06 | J194: -4679
A195: =Sheet2!B195 -> كريم السيد ابراهيم علي عبدالرحيم | B195: =Sheet2!H195 -> 2011-02-20 | C195: محدد المدة | D195: 1 | E195: =IF(OR(N(B195)=0,N(D195)=0),"",SUM(N(B195),N(D195*365))) -> 2012-02-20 | F195: =IF(A195="","",TODAY()) -> 2020-12-06 | J195: =IF(OR(N(E195)=0,N(F195)=0),"",SUM(E195-F195)) -> -3212
A196: =Sheet2!B196 -> كرم احمد محمد عمر | B196: =Sheet2!H196 -> 2010-08-25 | C196: محدد المدة | D196: 1 | E196: 2011-08-25 | F196: 2020-12-06 | J196: -3391
A197: =Sheet2!B197 -> محمد فوزي علي خلف محمد | B197: =Sheet2!H197 -> 2010-05-19 | C197: محدد المدة | D197: 1 | E197: 2011-05-19 | F197: 2020-12-06 | J197: -3489
A198: =Sheet2!B198 -> احمد فرج مرسال مبروك | B198: =Sheet2!H198 -> 2012-04-10 | C198: محدد المدة | D198: 1 | E198: 2013-04-10 | F198: 2020-12-06 | J198: -2797
A199: =Sheet2!B199 -> محمد زكريا محمد محمد نويشي | B199: =Sheet2!H199 -> 2011-02-20 | C199: محدد المدة | D199: 1 | E199: 2012-02-20 | F199: 2020-12-06 | J199: -3212
A200: =Sheet2!B200 -> كامل سليم احمد عبيد | B200: =Sheet2!H200 -> 2017-07-11 | C200: محدد المدة | D200: 1 | E200: 2018-07-11 | F200: 2020-12-06 | J200: -879
... 810 more rows

Sheet Sheet2
A1: رقم الكارتة | B1: الاسم | C1: أسم المؤهل | D1: القسم | E1: مدة العقد | F1: السن | G1: الخبرة | H1: بداية التعين | I1: تاريخ انتهاء العقد | J1: تاريخ اليوم | K1: تاريخ الميلاد | L1: تاريخ تجديد الفيش | M1: بداية الفيش | N1: انتهاء الفيش | O1: المؤهل | P1: كعب العمل | Q1: الفيش | R1: شهادة الميلاد | S1: صورة البطاقة | T1: صورة شخصية | U1: العقد | V1: استمارة 1 | W1: استمارة 6 | X1: استقالة | Y1: اخلاء طرف | Z1: اقرار استلام عمل | AA1: صحيفة الحالة الاجتماعية | AB1: أستمارة 11 | AC1: نوع المؤهل | AE1: رقم كود الادارة | AF1: الوظيفة | AG1: ملاحظات | AI1: القسم العام | AJ1: عالي | BE1: القسم | BF1: الاسم | BG1: رقم الكارتة | BH1: السن | BI1: تاريخ التعين | BJ1: تاريخ انهاء العقد | BK1: تاريخ الميلاد | BL1: نوع المؤهل | BM1: الوظيفة | BN1: ملاحظات
A2: 5820 | B2: احمد ابراهيم علي مخلوف | C2: بكالوريس علوم | D2: التجهيز | E2: 1 | F2: =IF(SUM(N(J2),-N(K2))=0,"",ROUND(SUM(N(J2),-N(K2))/365,0)) -> 44 | G2: =IF(SUM(N(J2),-N(H2))=0,"",SUM(N(J2),-N(H2))/365) -> 15.24931507 | H2: 2005-09-10 | I2: =IF(OR(N(H2)=0,N(E2)=0),"",SUM(N(H2),N(E2*365))) -> 2006-09-10 | J2: =IF(B2="","",TODAY()) -> 2020-12-06 | K2: 1977-04-28 | L2: 180 | M2: 2005-07-08 | N2: =IF(OR(N(M2)=0,N(L2)=0),"",SUM(M2,L2)) -> 2006-01-04 | O2: Yes | P2: Yes | Q2: Yes | R2: Yes | S2: Yes | T2: Yes | U2: Yes | V2: Yes | W2: No | X2: No | Y2: No | Z2: No | AA2: Yes | AB2: Yes | AC2: عالي | AD2: Yes | AF2: مهندس كيمياء(موصفات) | AH2: الادارة | AJ2: فوق متوسط | BE2: =D2 -> التجهيز | BF2: =B2 -> احمد ابراهيم علي مخلوف | BG2: =A2 -> 5820 | BH2: =F2 -> 44 | BI2: =H2 -> 2005-09-10 | BJ2: =I2 -> 2006-09-10 | BK2: =K2 -> 1977-04-28 | BL2: =AC2 -> عالي | BM2: =AF2 -> مهندس كيمياء(موصفات) | BN2: =AG2 -> 0 | BY2: Admin
A3: 7665 | B3: احمد ابراهيم ياقوت اسماعيل | C3: دبلوم صناعي | D3: التجهيز | E3: 1 | F3: =IF(SUM(N(J3),-N(K3))=0,"",ROUND(SUM(N(J3),-N(K3))/365,0)) -> 55 | G3: =IF(SUM(N(J3),-N(H3))=0,"",SUM(N(J3),-N(H3))/365) -> 13.80273973 | H3: 2007-02-20 | I3: =IF(OR(N(H3)=0,N(E3)=0),"",SUM(N(H3),N(E3*365))) -> 2008-02-20 | J3: =IF(B3="","",TODAY()) -> 2020-12-06 | K3: 1965-07-16 | L3: 180 | M3: 2007-07-01 | N3: =IF(OR(N(M3)=0,N(L3)=0),"",SUM(M3,L3)) -> 2007-12-28 | O3: Yes | P3: Yes | Q3: Yes | R3: Yes | S3: Yes | T3: Yes | U3: Yes | V3: Yes | W3: No | X3: No | Y3: No | Z3: Yes | AA3: Yes | AB3: Yes | AC3: متوسط | AD3: No | AF3: عامل فني تجهيز | AH3: HR | AJ3: متوسط | BE3: التجهيز | BF3: =B3 -> احمد ابراهيم ياقوت اسماعيل | BG3: =A3 -> 7665 | BH3: =F3 -> 55 | BI3: =H3 -> 2007-02-20 | BJ3: 2008-02-20 | BK3: =K3 -> 1965-07-16 | BL3: =AC3 -> متوسط | BM3: =AF3 -> عامل فني تجهيز | BN3: 0 | BY3: Prouduction
A4: 10016 | B4: احمد اسماعيل خميس بركات اسماعيل | C4: بكالوريوس تجاره | D4: التجهيز | E4: 1 | F4: 38 | G4: 10.22465753 | H4: 2010-09-18 | I4: =IF(OR(N(H4)=0,N(E4)=0),"",SUM(N(H4),N(E4*365))) -> 2011-09-18 | J4: 2020-12-06 | K4: 1982-10-10 | L4: 180 | M4: 2010-06-20 | N4: 2010-12-17 | O4: Yes | P4: Yes | Q4: Yes | R4: Yes | S4: Yes | T4: Yes | U4: Yes | V4: Yes | W4: No | X4: No | Y4: No | Z4: Yes | AA4: Yes | AB4: No | AC4: عالي | AF4: عامل فني تجهيز | AH4: IT | AJ4: بدون | BE4: التجهيز | BF4: احمد اسماعيل خميس بركات اسماعيل | BG4: 10016 | BH4: 38 | BI4: 2010-09-18 | BJ4: 2011-09-18 | BK4: 1982-10-10 | BL4: عالي | BM4: عامل فني تجهيز | BN4: 0
A5: 12945 | B5: احمد جابر السيد محمد شرف | C5: دبلوم صناعي | D5: التجهيز | E5: 1 | F5: 30 | G5: 4.208219178 | H5: 2016-09-22 | I5: 2017-09-22 | J5: 2020-12-06 | K5: 1990-09-09 | L5: 180 | M5: 2016-04-09 | N5: 2016-10-06 | O5: No | P5: Yes | Q5: Yes | R5: Yes | S5: Yes | T5: Yes | U5: Yes | V5: Yes | W5: No | X5: No | Y5: No | Z5: No | AA5: Yes | AB5: No | AC5: متوسط | AF5: عامل فني تجهيز | AH5: الحسابات | BE5: التجهيز | BF5: احمد جابر السيد محمد شرف | BG5: 12945 | BH5: 30 | BI5: 2016-09-22 | BJ5: 2017-09-22 | BK5: 1990-09-09 | BL5: متوسط | BM5: عامل فني تجهيز | BN5: 0
A6: 5850 | B6: احمد رافت محمد يوسف حسب الله | C6: دبلوم صناعي | D6: التجهيز | E6: 1 | F6: 25 | G6: 15.24931507 | H6: 2005-09-10 | I6: 2006-09-10 | J6: 2020-12-06 | K6: 1995-06-20 | L6: 180 | M6: 2005-08-22 | N6: 2006-02-18 | O6: Yes | P6: Yes | Q6: No | R6: No | S6: Yes | T6: No | U6: Yes | V6: Yes | W6: Yes | X6: No | Y6: No | Z6: No | AA6: Yes | AB6: No | AC6: متوسط | AF6: عامل تجهيز | AH6: شؤون قانونية | BE6: التجهيز | BF6: احمد رافت محمد يوسف حسب الله | BG6: 5850 | BH6: 25 | BI6: 2005-09-10 | BJ6: 2006-09-10 | BK6: 1995-06-20 | BL6: متوسط | BM6: عامل تجهيز | BN6: 0
A7: 9987 | B7: احمد محمد احمد النجار | C7: دبلوم صناعي | D7: التجهيز | E7: 1 | F7: =IF(SUM(N(J7),-N(K7))=0,"",ROUND(SUM(N(J7),-N(K7))/365,0)) -> 31 | G7: =IF(SUM(N(J7),-N(H7))=0,"",SUM(N(J7),-N(H7))/365) -> 15.29315068 | H7: 2005-08-25 | I7: 2006-08-25 | J7: 2020-12-06 | K7: 1989-12-28 | L7: 180 | M7: 2010-08-22 | N7: 2011-02-18 | O7: Yes | P7: Yes | Q7: Yes | R7: Yes | S7: Yes | T7: Yes | U7: Yes | V7: Yes | W7: No | X7: No | Y7: No | Z7: Yes | AA7: Yes | AB7: Yes | AC7: متوسط | AF7: عامل فني تجهيز | AH7: علاقات عامة | BE7: التجهيز | BF7: احمد محمد احمد النجار | BG7: 9987 | BH7: 31 | BI7: 2005-08-25 | BJ7: 2006-08-25 | BK7: 1989-12-28 | BL7: متوسط | BM7: عامل فني تجهيز | BN7: 0
A8: 7355 | B8: ابراهيم محمد ابراهيم احمد | C8: دبلوم صناعي | D8: التجهيز | E8: 1 | F8: 50 | G8: 14.07945205 | H8: 2006-11-11 | I8: =IF(OR(N(H8)=0,N(E8)=0),"",SUM(N(H8),N(E8*365))) -> 2007-11-11 | J8: 2020-12-06 | K8: 1970-09-05 | L8: 180 | M8: 2006-09-21 | N8: =IF(OR(N(M8)=0,N(L8)=0),"",SUM(M8,L8)) -> 2007-03-20 | O8: Yes | P8: Yes | Q8: Yes | R8: No | S8: Yes | T8: Yes | U8: Yes | V8: Yes | W8: No | X8: No | Y8: No | Z8: No | AA8: No | AB8: No | AC8: متوسط | AF8: عامل تجهيز | AH8: Sales | BE8: التجهيز | BF8: ابراهيم محمد ابراهيم احمد | BG8: 7355 | BH8: 50 | BI8: 2006-11-11 | BJ8: 2007-11-11 | BK8: 1970-09-05 | BL8: متوسط | BM8: عامل تجهيز | BN8: 0
A9: 925 | B9: اسامه محمد اسماعيل عباس الشترار | C9: دبلوم تجاره | D9: التجهيز | E9: 1 | F9: 45 | G9: 16.91232877 | H9: 2004-01-12 | I9: 2005-01-11 | J9: 2020-12-06 | K9: 1976-03-25 | L9: 180 | M9: 2004-10-18 | N9: 2005-04-16 | O9: Yes | P9: Yes | Q9: Yes | R9: No | S9: Yes | T9: Yes | U9: Yes | V9: Yes | W9: No | X9: No | Y9: No | Z9: No | AA9: Yes | AB9: Yes | AC9: متوسط | AF9: عامل فني تجهيز | AH9: التخطيط | BE9: التجهيز | BF9: اسامه محمد اسماعيل عباس الشترار | BG9: 925 | BH9: 45 | BI9: 2004-01-12 | BJ9: 2005-01-11 | BK9: 1976-03-25 | BL9: متوسط | BM9: عامل فني تجهيز | BN9: 0
A10: 13709 | B10: اشرف عبد الستار محمد حسن السيد | C10: دبلوم صناعي | D10: التجهيز | E10: 1 | F10: 38 | G10: 2.046575342 | H10: 2018-11-20 | I10: 2019-11-20 | J10: 2020-12-06 | K10: 1982-06-19 | L10: 180 | M10: 2018-11-17 | N10: 2019-05-16 | O10: No | P10: Yes | Q10: Yes | R10: Yes | S10: Yes | T10: Yes | U10: Yes | V10: Yes | W10: Yes | X10: No | Y10: No | Z10: No | AA10: Yes | AB10: No | AC10: متوسط | AF10: عامل تجهيز | AG10: العقد فاضي | AH10: المصبغة | BE10: التجهيز | BF10: اشرف عبد الستار محمد حسن السيد | BG10: 13709 | BH10: 38 | BI10: 2018-11-20 | BJ10: 2019-11-20 | BK10: 1982-06-19 | BL10: متوسط | BM10: عامل تجهيز | BN10: العقد فاضي
A11: 13728 | B11: اسلام سمير عبد ى القوي حسن | C11: دبلوم صناعي | D11: التجهيز | E11: 1 | F11: 25 | G11: 2.021917808 | H11: 2018-11-29 | I11: 2019-11-29 | J11: 2020-12-06 | K11: 1995-12-25 | L11: 180 | O11: No | P11: Yes | Q11: No | R11: Yes | S11: Yes | T11: Yes | U11: Yes | V11: Yes | W11: No | X11: No | Y11: No | Z11: Yes | AA11: No | AB11: No | AC11: متوسط | AF11: عامل فني تجهيز | AH11: التجهيز | BE11: التجهيز | BF11: اسلام سمير عبد ى القوي حسن | BG11: 13728 | BH11: 25 | BI11: 2018-11-29 | BJ11: 2019-11-29 | BK11: 1995-12-25 | BL11: متوسط | BM11: عامل فني تجهيز | BN11: 0
A12: 8566 | B12: حسن ابراهيم محمد محمود عبد الرحيم | C12: بكالوريس زرعه | D12: التجهيز | E12: 1 | F12: 41 | G12: 12.93424658 | H12: 2008-01-03 | I12: 2009-01-02 | J12: 2020-12-06 | K12: 1980-01-02 | L12: 180 | M12: 2008-04-27 | N12: 2008-10-24 | O12: Yes | P12: Yes | Q12: Yes | R12: Yes | S12: Yes | T12: Yes | U12: Yes | V12: Yes | W12: No | X12: No | Y12: No | Z12: Yes | AA12: Yes | AB12: No | AC12: عالي | AF12: مهندس تجهيز | AH12: مخزن الكيماويات | BE12: التجهيز | BF12: حسن ابراهيم محمد محمود عبد الرحيم | BG12: 8566 | BH12: 41 | BI12: 2008-01-03 | BJ12: 2009-01-02 | BK12: 1980-01-02 | BL12: عالي | BM12: مهندس تجهيز | BN12: 0
A13: 904 | B13: حمدي محمود احمد عبد اللطيف | C13: دبلوم صناعي | D13: التجهيز | E13: 1 | F13: 56 | G13: 24.95890411 | H13: 1995-12-28 | I13: 1996-12-27 | J13: 2020-12-06 | K13: 1965-01-20 | L13: 180 | O13: No | P13: No | Q13: No | R13: No | S13: Yes | T13: Yes | U13: Yes | V13: Yes | W13: No | X13: No | Y13: No | Z13: No | AA13: Yes | AB13: No | AC13: متوسط | AF13: متابعه صباغ وتجهيز | AH13: معمل خواص | BE13: التجهيز | BF13: حمدي محمود احمد عبد اللطيف | BG13: 904 | BH13: 56 | BI13: 1995-12-28 | BJ13: 1996-12-27 | BK13: 1965-01-20 | BL13: متوسط | BM13: متابعه صباغ وتجهيز | BN13: 0
A14: 926 | B14: خالد عبد الله عامر | C14: دبلوم زراعي | D14: التجهيز | E14: 1 | F14: 52 | G14: 25.56712329 | H14: 1995-05-20 | I14: 1996-05-19 | J14: 2020-12-06 | K14: 1968-12-30 | L14: 180 | O14: No | P14: No | Q14: No | R14: Yes | S14: Yes | T14: Yes | U14: Yes | V14: Yes | W14: No | X14: No | Y14: No | Z14: No | AA14: Yes | AB14: No | AC14: متوسط | AF14: عامل فني تجهيز | AH14: معمل ألوان | BE14: التجهيز | BF14: خالد عبد الله عامر | BG14: 926 | BH14: 52 | BI14: 1995-05-20 | BJ14: 1996-05-19 | BK14: 1968-12-30 | BL14: متوسط | BM14: عامل فني تجهيز | BN14: 0
A15: 922 | B15: رمضان احمد سرور السيد | C15: بدون مؤهل | D15: التجهيز | E15: 1 | F15: 48 | G15: 23.31232877 | H15: 1997-08-20 | I15: 1998-08-20 | J15: 2020-12-06 | K15: 1972-10-07 | L15: 180 | M15: 1996-02-07 | N15: 1996-08-05 | O15: No | P15: No | Q15: Yes | R15: Yes | S15: Yes | T15: Yes | U15: Yes | V15: Yes | W15: No | X15: No | Y15: No | Z15: No | AA15: Yes | AB15: No | AC15: بدون | AF15: عامل فني تجهيز | AH15: الورشة | BE15: التجهيز | BF15: رمضان احمد سرور السيد | BG15: 922 | BH15: 48 | BI15: 1997-08-20 | BJ15: 1998-08-20 | BK15: 1972-10-07 | BL15: بدون | BM15: عامل فني تجهيز | BN15: 0
A16: 10492 | B16: سعد صلاح سعدرمضان عقاب | C16: بدون | D16: المصبغة | E16: 1 | F16: 35 | G16: 9.602739726 | H16: 2011-05-03 | I16: 2012-05-02 | J16: 2020-12-06 | K16: 1985-11-24 | L16: 180 | M16: 2011-01-24 | N16: 2011-07-23 | O16: No | P16: Yes | Q16: Yes | R16: Yes | S16: Yes | T16: Yes | U16: Yes | V16: Yes | W16: No | X16: No | Y16: No | Z16: Yes | AA16: Yes | AB16: Yes | AC16: بدون | AF16: عامل صباغه | AH16: التريكو | BE16: التجهيز | BF16: سعد صلاح سعدرمضان عقاب | BG16: 10492 | BH16: 35 | BI16: 2011-05-03 | BJ16: 2012-05-02 | BK16: 1985-11-24 | BL16: بدون | BM16: عامل صباغه | BN16: 0
A17: 9608 | B17: سعد محمود سعد محمود حسين | C17: بدون | D17: التجهيز | E17: 1 | F17: 40 | G17: 10.18082192 | H17: 2010-10-04 | I17: 2011-10-04 | J17: 2020-12-06 | K17: 1981-02-25 | L17: 180 | M17: 2010-11-03 | N17: 2011-05-02 | O17: No | P17: Yes | Q17: Yes | R17: Yes | S17: Yes | T17: Yes | U17: Yes | V17: Yes | W17: No | X17: No | Y17: No | Z17: Yes | AA17: Yes | AB17: Yes | AC17: بدون | AF17: عامل فني تجهيز | AH17: الامن الصناعي | BE17: التجهيز | BF17: سعد محمود سعد محمود حسين | BG17: 9608 | BH17: 40 | BI17: 2010-10-04 | BJ17: 2011-10-04 | BK17: 1981-02-25 | BL17: بدون | BM17: عامل فني تجهيز | BN17: 0
A18: 5523 | B18: سعيد بدير شعبان ابراهيم شعبان | C18: اعداديه | D18: التجهيز | E18: 1 | F18: 38 | G18: 15.09041096 | H18: 2005-11-07 | I18: 2006-11-07 | J18: 2020-12-06 | K18: 1982-11-16 | L18: 180 | M18: 2005-04-24 | N18: 2005-10-21 | O18: No | P18: Yes | Q18: Yes | R18: Yes | S18: Yes | T18: No | U18: Yes | V18: Yes | W18: No | X18: No | Y18: No | Z18: No | AA18: Yes | AB18: No | AC18: متوسط | AF18: مشرف تجهيز | AH18: الامن | BE18: التجهيز | BF18: سعيد بدير شعبان ابراهيم شعبان | BG18: 5523 | BH18: 38 | BI18: 2005-11-07 | BJ18: 2006-11-07 | BK18: 1982-11-16 | BL18: متوسط | BM18: مشرف تجهيز | BN18: 0
A19: 910 | B19: سعيد علي يوسف احمد | C19: دبلوم تجاره | D19: التجهيز | E19: 1 | F19: 48 | G19: 25.36986301 | H19: 1995-07-31 | I19: 1996-07-30 | J19: 2020-12-06 | K19: 1972-08-27 | L19: 180 | O19: Yes | P19: No | Q19: No | R19: Yes | S19: Yes | T19: Yes | U19: Yes | V19: Yes | W19: No | X19: No | Y19: No | Z19: No | AA19: Yes | AB19: Yes | AC19: متوسط | AF19: عامل فني تجهيز | AH19: خدمات بوفيه | BE19: التجهيز | BF19: سعيد علي يوسف احمد | BG19: 910 | BH19: 48 | BI19: 1995-07-31 | BJ19: 1996-07-30 | BK19: 1972-08-27 | BL19: متوسط | BM19: عامل فني تجهيز | BN19: 0
A20: 11419 | B20: سعيد نصيب يوسف محمد الدمني | C20: دبلوم صناعي | D20: التجهيز | E20: 1 | F20: 41 | G20: 8.139726027 | H20: 2012-10-18 | I20: 2013-10-18 | J20: 2020-12-06 | K20: 1979-11-10 | L20: 180 | M20: 2012-06-28 | N20: 2012-12-25 | O20: Yes | P20: Yes | Q20: Yes | R20: Yes | S20: Yes | T20: Yes | U20: Yes | V20: Yes | W20: No | X20: No | Y20: No | Z20: Yes | AA20: Yes | AB20: Yes | AC20: متوسط | AF20: عامل تجهيز | AH20: خدمات نظافة | BE20: التجهيز | BF20: سعيد نصيب يوسف محمد الدمني | BG20: 11419 | BH20: 41 | BI20: 2012-10-18 | BJ20: 2013-10-18 | BK20: 1979-11-10 | BL20: متوسط | BM20: عامل تجهيز | BN20: 0
A21: 283 | B21: عادل عبد البدير عويضه غالي | C21: دبلوم تجاره | D21: التجهيز | E21: 1 | F21: 36 | G21: 23.94520548 | H21: 1997-01-01 | I21: 1998-01-01 | J21: 2020-12-06 | K21: 1985-03-19 | L21: 180 | M21: 1997-01-03 | N21: 1997-07-02 | O21: Yes | P21: No | Q21: No | R21: Yes | S21: Yes | T21: Yes | U21: Yes | V21: Yes | W21: No | X21: No | Y21: No | Z21: No | AA21: No | AB21: No | AC21: متوسط | AF21: عامل تجهيز | AH21: الحركة | BE21: التجهيز | BF21: عادل عبد البدير عويضه غالي | BG21: 283 | BH21: 36 | BI21: 1997-01-01 | BJ21: 1998-01-01 | BK21: 1985-03-19 | BL21: متوسط | BM21: عامل تجهيز | BN21: 0
A22: 4239 | B22: عبد الجواد محمد عبدالسلام | C22: بدون | D22: التجهيز | E22: 1 | F22: 49 | G22: 18.83561644 | H22: 2002-02-09 | I22: 2003-02-09 | J22: 2020-12-06 | K22: 1971-06-20 | L22: 180 | M22: 2002-06-30 | N22: 2002-12-27 | O22: No | P22: Yes | Q22: Yes | R22: Yes | S22: Yes | T22: Yes | U22: Yes | V22: Yes | W22: No | X22: No | Y22: No | Z22: No | AA22: Yes | AB22: No | AC22: بدون | AF22: عامل فني تجهيز | AH22: 0.05 | BE22: التجهيز | BF22: عبد الجواد محمد عبدالسلام | BG22: 4239 | BH22: 49 | BI22: 2002-02-09 | BJ22: 2003-02-09 | BK22: 1971-06-20 | BL22: بدون | BM22: عامل فني تجهيز | BN22: 0
A23: 8223 | B23: عبد الحميد يحي عبد الحميد احمد | C23: ليسانس تربيه | D23: التجهيز | E23: 1 | F23: 36 | G23: 13.2109589 | H23: 2007-09-24 | I23: 2008-09-23 | J23: 2020-12-06 | K23: 1985-02-04 | L23: 180 | M23: 2007-09-30 | N23: 2008-03-28 | O23: Yes | P23: Yes | Q23: Yes | R23: Yes | S23: Yes | T23: Yes | U23: Yes | V23: Yes | W23: No | X23: No | Y23: No | Z23: Yes | AA23: Yes | AB23: No | AC23: عالي | AF23: مهندس تجهيز | AH23: المخازن | BE23: التجهيز | BF23: عبد الحميد يحي عبد الحميد احمد | BG23: 8223 | BH23: 36 | BI23: 2007-09-24 | BJ23: 2008-09-23 | BK23: 1985-02-04 | BL23: عالي | BM23: مهندس تجهيز | BN23: 0
A24: 10003 | B24: عبد الجليل عوض عبد الجليل | C24: دبلوم زراعه | D24: التجهيز | E24: 1 | F24: 40 | G24: 10.29041096 | H24: 2010-08-25 | I24: 2011-08-25 | J24: 2020-12-06 | K24: 1981-05-18 | L24: 180 | M24: 2010-08-24 | N24: 2011-02-20 | O24: Yes | P24: Yes | Q24: Yes | R24: Yes | S24: Yes | T24: Yes | U24: Yes | V24: Yes | W24: No | X24: No | Y24: No | Z24: Yes | AA24: Yes | AB24: No | AC24: متوسط | AF24: عامل فني تجهيز | AH24: الاستيك | BE24: التجهيز | BF24: عبد الجليل عوض عبد الجليل | BG24: 10003 | BH24: 40 | BI24: 2010-08-25 | BJ24: 2011-08-25 | BK24: 1981-05-18 | BL24: متوسط | BM24: عامل فني تجهيز | BN24: 0
A25: 13556 | B25: عبدالستار عبدالحميد عبدالستار محمد | C25: دبلوم صناعي | D25: التجهيز | E25: 1 | F25: 26 | G25: 2.495890411 | H25: 2018-06-09 | I25: 2019-06-09 | J25: 2020-12-06 | K25: 1995-06-12 | L25: 180 | O25: No | P25: Yes | Q25: No | R25: No | S25: Yes | T25: Yes | U25: Yes | V25: Yes | W25: No | X25: No | Y25: No | Z25: Yes | AA25: Yes | AB25: No | AC25: متوسط | AF25: عامل تجهيز | AG25: العقد فاضي | BE25: التجهيز | BF25: عبدالستار عبدالحميد عبدالستار محمد | BG25: 13556 | BH25: 26 | BI25: 2018-06-09 | BJ25: 2019-06-09 | BK25: 1995-06-12 | BL25: متوسط | BM25: عامل تجهيز | BN25: العقد فاضي
A26: 572 | B26: عبدالمنعم حسين عبدالحليم | C26: دبلوم صناعي | D26: التجهيز | E26: 1 | F26: 53 | G26: 24.99178082 | H26: 1995-12-16 | I26: 1996-12-15 | J26: 2020-12-06 | K26: 1967-09-24 | L26: 180 | M26: 1984-03-17 | N26: 1984-09-13 | O26: Yes | P26: No | Q26: No | R26: Yes | S26: Yes | T26: Yes | U26: Yes | V26: Yes | W26: No | X26: No | Y26: No | Z26: No | AA26: Yes | AB26: No | AC26: متوسط | AF26: عامل فني تجهيز | BE26: التجهيز | BF26: عبدالمنعم حسين عبدالحليم | BG26: 572 | BH26: 53 | BI26: 1995-12-16 | BJ26: 1996-12-15 | BK26: 1967-09-24 | BL26: متوسط | BM26: عامل فني تجهيز | BN26: 0
A27: 12986 | B27: عصمت احمد ابو اليزيد عبدالغفار | C27: دبلوم زاعه | D27: التجهيز | E27: 1 | F27: 42 | G27: 4.904109589 | H27: 2016-01-12 | I27: 2017-01-11 | J27: 2020-12-06 | K27: 1979-01-01 | L27: 180 | M27: 2016-11-09 | N27: 2017-05-08 | O27: Yes | P27: Yes | Q27: Yes | R27: Yes | S27: Yes | T27: Yes | U27: Yes | V27: Yes | W27: No | X27: No | Y27: No | Z27: Yes | AA27: Yes | AB27: Yes | AC27: متوسط | AF27: عامل تجهيز | BE27: المصبغة | BF27: عصمت احمد ابو اليزيد عبدالغفار | BG27: 12986 | BH27: 42 | BI27: 2016-01-12 | BJ27: 2017-01-11 | BK27: 1979-01-01 | BL27: متوسط | BM27: عامل تجهيز | BN27: 0
A28: 13020 | B28: علي خيري شحاته علي شحاته | C28: بدون | D28: التجهيز | E28: 1 | F28: 30 | G28: 3.808219178 | H28: 2017-02-15 | I28: 2018-02-15 | J28: 2020-12-06 | K28: 1991-02-18 | L28: 180 | M28: 2017-02-06 | N28: 2017-08-05 | O28: No | P28: Yes | Q28: Yes | R28: Yes | S28: Yes | T28: Yes | U28: Yes | V28: Yes | W28: No | X28: No | Y28: No | Z28: Yes | AA28: Yes | AB28: Yes | AC28: بدون | AF28: عامل تجهيز | BF28: علي خيري شحاته علي شحاته | BG28: 13020 | BI28: 42781 | BK28: 33287
A29: 931 | B29: علي محمود علي السيد عطيه | C29: دبلوم مركز تدريب | D29: التجهيز | E29: 1 | F29: 47 | G29: 22.89041096 | H29: 1998-01-21 | I29: 1999-01-21 | J29: 2020-12-06 | K29: 1974-03-16 | L29: 180 | M29: 1990-03-22 | N29: 1990-09-18 | O29: Yes | P29: Yes | Q29: Yes | R29: Yes | S29: Yes | T29: Yes | U29: Yes | V29: Yes | W29: No | X29: No | Y29: No | Z29: No | AA29: Yes | AB29: No | AC29: متوسط | AF29: عامل فني تجهيز | BF29: علي محمود علي السيد عطيه | BG29: 931 | BI29: =H29 -> 35816 | BK29: 27104
A30: 6937 | B30: عيد فؤاد محمد عبد الحميد علي | C30: دبلوم صناعي | D30: التجهيز | E30: 1 | F30: 37 | G30: 14.66027397 | H30: 2006-04-13 | I30: 2007-04-13 | J30: 2020-12-06 | K30: 1983-11-06 | L30: 180 | M30: 2006-03-19 | N30: 2006-09-15 | O30: Yes | P30: Yes | Q30: Yes | R30: Yes | S30: Yes | T30: No | U30: Yes | V30: Yes | W30: No | X30: No | Y30: No | Z30: No | AA30: Yes | AB30: No | AC30: متوسط | AF30: عامل فني تجهيز | BE30: =D30 -> التجهيز | BF30: عيد فؤاد محمد عبد الحميد علي | BG30: 6937 | BI30: 38820 | BK30: 30626
A31: 763 | B31: ماهريونس محمد فهيم الخولي | C31: دبلوم صناعي | D31: التجهيز | E31: 1 | F31: 50 | G31: 24.93424658 | H31: 1996-01-06 | I31: 1997-01-05 | J31: 2020-12-06 | K31: 1970-11-23 | L31: 180 | O31: Yes | P31: No | Q31: No | R31: Yes | S31: Yes | T31: Yes | U31: Yes | V31: Yes | W31: No | X31: No | Y31: No | Z31: No | AA31: Yes | AB31: No | AC31: متوسط | AF31: عامل مسؤول الدسبنسر | BE31: التجهيز | BF31: ماهريونس محمد فهيم الخولي | BG31: 763 | BI31: 35070 | BK31: 25895
A32: 13184 | B32: وجدي شنوده فرويز جوده | C32: ثانويه عامه | D32: التجهيز | E32: 1 | F32: 37 | G32: 3.408219178 | H32: 2017-07-11 | I32: 2018-07-11 | J32: 2020-12-06 | K32: 1984-01-08 | L32: 180 | M32: 2017-10-05 | N32: 2018-04-03 | O32: Yes | P32: Yes | Q32: Yes | R32: Yes | S32: Yes | T32: Yes | U32: Yes | V32: Yes | W32: No | X32: No | Y32: No | Z32: Yes | AA32: Yes | AB32: Yes | AC32: متوسط | AF32: عامل فني تجهيز | BE32: التجهيز | BF32: وجدي شنوده فرويز جوده | BG32: 13184 | BI32: 42927 | BK32: 30689
A33: 902 | B33: مخلص عبد الحميد فرج الله جدو | C33: دبلوم صناعي | D33: التجهيز | E33: 1 | F33: 50 | G33: 24.99178082 | H33: 1995-12-16 | I33: 1996-12-15 | J33: 2020-12-06 | K33: 1971-01-01 | L33: 180 | O33: Yes | P33: No | Q33: No | R33: Yes | S33: Yes | T33: Yes | U33: Yes | V33: Yes | W33: No | X33: No | Y33: No | AA33: Yes | AB33: No | AC33: متوسط | AF33: مشرف تجهيز | BE33: التجهيز | BF33: مخلص عبد الحميد فرج الله جدو | BG33: 902 | BI33: 35049 | BK33: 25934
A34: 9405 | B34: محمود سليمان | C34: ثانويه ازهريه | D34: التجهيز | E34: 1 | F34: 27 | G34: 11.90684932 | H34: 2009-01-12 | I34: 2010-01-12 | J34: 2020-12-06 | K34: 1994-01-23 | L34: 180 | M34: 2009-06-03 | N34: =EDATE(M34,6) -> 2009-12-03 | O34: Yes | P34: Yes | Q34: Yes | R34: Yes | S34: Yes | T34: Yes | U34: Yes | V34: Yes | W34: No | X34: No | Y34: No | Z34: No | AA34: Yes | AB34: Yes | AC34: متوسط | AF34: عامل تجهيز | BE34: التجهيز | BF34: محمود سليمان | BG34: 9405 | BI34: 39825 | BK34: 34357
A35: 12805 | B35: محمود شوقي محمد احمد العالم | C35: دبلوم صناعي | D35: التجهيز | E35: 1 | F35: 30 | G35: 2.208219178 | H35: 2018-09-22 | I35: 2019-09-22 | J35: 2020-12-06 | K35: 1991-03-20 | L35: 180 | M35: 2018-09-20 | N35: 2019-03-19 | O35: No | P35: Yes | Q35: Yes | R35: Yes | S35: Yes | T35: Yes | U35: Yes | V35: Yes | W35: No | X35: No | Y35: No | Z35: Yes | AA35: Yes | AB35: No | AC35: متوسط | AF35: عامل فني تجهيز | AG35: العقد فاضي | BE35: التجهيز | BF35: محمود شوقي محمد احمد العالم | BG35: 12805 | BI35: 43365 | BK35: 33317
A36: 10887 | B36: محمد السيد محمد الحداد | C36: ثانويه ازهريه | D36: التجهيز | E36: 1 | F36: 54 | G36: 9.219178082 | H36: 2011-09-20 | I36: 2012-09-19 | J36: 2020-12-06 | K36: 1967-04-16 | L36: 180 | M36: 2011-08-17 | N36: 2012-02-13 | O36: Yes | P36: Yes | Q36: Yes | R36: Yes | S36: Yes | T36: Yes | U36: Yes | V36: Yes | W36: Yes | X36: No | Y36: No | Z36: Yes | AA36: Yes | AB36: Yes | AC36: متوسط | AF36: عامل تجهيز | BE36: التجهيز | BF36: محمد السيد محمد الحداد | BG36: 10887 | BI36: 40806 | BK36: 24578
A37: 906 | B37: محمد ابو المعاطي عبد النبي مرسي | C37: بدون | D37: التجهيز | E37: 1 | F37: 53 | G37: 25.92876712 | H37: 1995-01-08 | I37: 1996-01-08 | J37: 2020-12-06 | K37: 1967-11-02 | L37: 180 | O37: No | P37: No | Q37: No | R37: Yes | S37: Yes | T37: Yes | U37: Yes | V37: Yes | W37: No | X37: No | Y37: No | Z37: No | AA37: Yes | AB37: No | AC37: بدون | AF37: عامل فني تجهيز | BE37: التجهيز | BF37: محمد ابو المعاطي عبد النبي مرسي | BG37: 906 | BI37: 34707 | BK37: 24778
A38: 12960 | B38: محمد جميل عبد السلام جمعه القراجي | C38: بدون | D38: التجهيز | E38: 1 | F38: 29 | G38: 2.389041096 | H38: 2018-07-18 | I38: 2019-07-18 | J38: 2020-12-06 | K38: 1992-02-24 | L38: 180 | M38: 2018-04-18 | N38: 2018-10-15 | O38: No | P38: Yes | Q38: Yes | R38: Yes | S38: Yes | T38: Yes | U38: Yes | V38: Yes | W38: No | X38: No | Y38: No | Z38: Yes | AA38: Yes | AB38: No | AC38: بدون | AF38: عامل فني تجهيز | BE38: التجهيز | BF38: محمد جميل عبد السلام جمعه القراجي | BG38: 12960 | BI38: 43299 | BK38: 33658
A39: 13057 | B39: محمد رزق فرج فهمي محمد | C39: بدون | D39: التجهيز | E39: 1 | F39: 21 | G39: 3.906849315 | H39: 2017-01-10 | I39: 2018-01-10 | J39: 2020-12-06 | K39: 1999-07-14 | L39: 180 | M39: 2017-07-18 | N39: 2018-01-14 | O39: No | P39: Yes | Q39: Yes | R39: Yes | S39: Yes | T39: Yes | U39: Yes | V39: Yes | W39: No | X39: No | Y39: No | Z39: Yes | AA39: Yes | AB39: No | AC39: بدون | AF39: عامل فني تجهيز | BE39: التجهيز | BF39: محمد رزق فرج فهمي محمد | BG39: 13057 | BI39: 42745 | BK39: 36355
A40: 9473 | B40: محمد رضا حسين عفيفي | C40: بدون | D40: التجهيز | E40: 1 | F40: 29 | G40: 5.153424658 | H40: 2015-10-13 | I40: 2016-10-12 | J40: 2020-12-06 | K40: 1992-05-16 | L40: 180 | M40: 2015-09-20 | N40: 2016-03-18 | O40: No | P40: Yes | Q40: Yes | R40: Yes | S40: Yes | T40: Yes | U40: Yes | V40: Yes | W40: No | X40: No | Y40: No | Z40: Yes | AA40: Yes | AB40: Yes | AC40: بدون | AF40: عامل فني تجهيز | BE40: التجهيز | BF40: محمد رضا حسين عفيفي | BG40: 9473 | BI40: 42290 | BK40: 33740
A41: 5042 | B41: محمد سعيد عبد الوهاب محمد الزهيري | C41: بدون | D41: التجهيز | E41: 1 | F41: 41 | G41: 12.93150685 | H41: 2008-01-04 | I41: 2009-01-03 | J41: 2020-12-06 | K41: 1980-02-16 | L41: 180 | M41: 2008-02-27 | N41: 2008-08-25 | O41: No | P41: Yes | Q41: Yes | R41: Yes | S41: Yes | T41: No | U41: Yes | V41: Yes | W41: No | X41: No | Y41: No | Z41: Yes | AA41: Yes | AB41: Yes | AC41: بدون | AF41: عامل فني تجهيز | AG41: العقد مش ممضي بنفس القلم | BE41: التجهيز | BF41: محمد سعيد عبد الوهاب محمد الزهيري | BG41: 5042 | BI41: 39451 | BK41: 29267
A42: 10495 | B42: محمد سمير عبدالله عبد الحميد | C42: دبلوم فني | D42: التجهيز | E42: 1 | F42: 34 | G42: 9.8 | H42: 2011-02-20 | I42: 2012-02-20 | J42: 2020-12-06 | K42: 1986-10-11 | L42: 180 | M42: 2011-10-20 | N42: 2012-04-17 | O42: Yes | P42: Yes | Q42: Yes | R42: Yes | S42: Yes | T42: Yes | U42: Yes | V42: Yes | W42: No | X42: No | Y42: No | Z42: Yes | AA42: Yes | AB42: Yes | AC42: بدون | AF42: عامل فني تجهيز | BE42: التجهيز | BF42: محمد سمير عبدالله عبد الحميد | BG42: 10495 | BI42: 40594 | BK42: 31696
A43: 13989 | B43: محمد عادل عبدالحميد الكومي ربيع | C43: الابتدائيه | D43: التجهيز | E43: 1 | F43: 24 | G43: 1.2 | H43: 2019-09-25 | I43: 2020-09-24 | J43: 2020-12-06 | K43: 1996-09-21 | L43: 180 | M43: 2019-09-28 | N43: 2020-03-26 | O43: No | P43: Yes | Q43: Yes | R43: Yes | S43: Yes | T43: Yes | U43: Yes | V43: Yes | W43: No | X43: No | Y43: No | Z43: No | AA43: No | AB43: No | AC43: بدون | AF43: عامل تجهيز | BE43: التجهيز | BF43: محمد عادل عبدالحميد الكومي ربيع | BG43: 13989 | BI43: 43733 | BK43: 35329
A44: 9520 | B44: محمد عبد الحليم سليمان عبدالحليم | C44: دبلوم صناعي | D44: التجهيز | E44: 1 | F44: 34 | G44: 10.18356164 | H44: 2010-10-03 | I44: 2011-10-03 | J44: 2020-12-06 | K44: 1987-06-02 | L44: 180 | M44: 2010-01-26 | N44: 2010-07-25 | O44: Yes | P44: Yes | Q44: Yes | R44: Yes | S44: Yes | T44: Yes | U44: Yes | V44: Yes | W44: No | X44: No | Y44: No | Z44: Yes | AA44: Yes | AB44: No | AC44: متوسط | AF44: عامل فني تجهيز | BE44: التجهيز | BF44: محمد عبد الحليم سليمان عبدالحليم | BG44: 9520 | BI44: 40454 | BK44: 31930
A45: 13614 | B45: محمد علام خليفه عيسي | C45: دبلوم زراعه | D45: التجهيز | E45: 1 | F45: 24 | G45: 2.197260274 | H45: 2018-09-26 | I45: 2019-09-26 | J45: 2020-12-06 | K45: 1997-05-03 | L45: 180 | M45: 2018-09-22 | N45: 2019-03-21 | O45: No | P45: Yes | Q45: Yes | R45: Yes | S45: Yes | T45: Yes | U45: Yes | V45: Yes | W45: No | X45: No | Y45: No | Z45: No | AA45: No | AB45: No | AC45: متوسط | AF45: عامل تجهيز | AG45: العقد فاضي | BE45: التجهيز | BF45: محمد علام خليفه عيسي | BG45: 13614 | BI45: 43369 | BK45: 35553
A46: 938 | B46: محمد كمال حسن علي | C46: دبلوم تجاره | D46: التجهيز | E46: 1 | F46: =IF(SUM(N(J46),-N(K46))=0,"",ROUND(SUM(N(J46),-N(K46))/365,0)) -> 50 | G46: =IF(SUM(N(J46),-N(H46))=0,"",SUM(N(J46),-N(H46))/365) -> 25.51232877 | H46: 1995-06-09 | I46: 1996-06-08 | J46: 2020-12-06 | K46: 1971-02-15 | L46: 180 | O46: Yes | P46: No | Q46: Yes | R46: Yes | S46: Yes | T46: Yes | U46: Yes | V46: Yes | W46: No | X46: No | Y46: No | Z46: No | AA46: Yes | AB46: No | AC46: متوسط | AF46: مشرف تجهيز | BE46: التجهيز | BF46: محمد كمال حسن علي | BG46: 938 | BI46: 34859 | BK46: 25979
A47: 756 | B47: محمد يونس مصطفي محمد | C47: دبلوم تجاره | D47: التجهيز | E47: 1 | F47: 49 | G47: 25.36986301 | H47: 1995-07-31 | I47: 1996-07-30 | J47: 2020-12-06 | K47: 1972-05-27 | L47: 180 | O47: Yes | P47: No | Q47: No | R47: Yes | S47: Yes | T47: Yes | U47: Yes | V47: Yes | W47: No | X47: No | Y47: No | Z47: Yes | AA47: Yes | AB47: No | AC47: متوسط | AF47: عامل فني تجهيز | BE47: التجهيز | BF47: محمد يونس مصطفي محمد | BG47: 756 | BI47: 34911 | BK47: 26446
A48: 9341 | B48: مراد فكري مصطفي صالح رزق | C48: دبلوم صناعي | D48: التجهيز | E48: 1 | F48: 40 | G48: 11.14246575 | H48: 2009-10-18 | I48: 2010-10-18 | J48: 2020-12-06 | K48: 1981-03-21 | L48: 180 | M48: 2009-09-30 | N48: 2010-03-29 | O48: Yes | P48: Yes | Q48: Yes | R48: No | S48: Yes | T48: Yes | U48: Yes | V48: Yes | W48: No | X48: No | Y48: No | Z48: Yes | AA48: Yes | AB48: Yes | AC48: متوسط | AF48: عامل فني تجهيز | BE48: التجهيز | BF48: مراد فكري مصطفي صالح رزق | BG48: 9341 | BI48: 40104 | BK48: 29666
A49: 13936 | B49: مينا وديع كيرلس عوض الله | C49: ثانويه عامه | D49: التجهيز | E49: 1 | F49: 26 | G49: 1.498630137 | H49: 2019-06-08 | I49: 2020-06-07 | J49: 2020-12-06 | K49: 1994-07-23 | L49: 180 | M49: 2019-07-20 | N49: 2020-01-16 | O49: No | P49: Yes | Q49: Yes | R49: Yes | S49: Yes | T49: Yes | U49: Yes | V49: Yes | W49: No | X49: No | Y49: No | Z49: Yes | AA49: No | AB49: No | AC49: بدون | AF49: عامل تجهيز | BE49: التجهيز | BF49: مينا وديع كيرلس عوض الله | BG49: 13936 | BI49: 43624 | BK49: 34538
A50: 1389 | B50: فؤاد كمال محمد مرسي نوار | C50: بدون | D50: التجهيز | E50: 1 | F50: 45 | G50: 21.64383562 | H50: 1999-04-21 | I50: 2000-04-20 | J50: 2020-12-06 | K50: 1975-10-15 | L50: 180 | M50: 1999-02-24 | N50: 1999-08-23 | O50: No | P50: No | Q50: Yes | R50: Yes | S50: Yes | T50: No | U50: Yes | V50: No | W50: No | X50: No | Y50: No | Z50: No | AA50: Yes | AB50: No | AC50: بدون | AF50: عامل تجهيز | BE50: التجهيز | BF50: فؤاد كمال محمد مرسي نوار | BG50: 1389 | BI50: 36271 | BK50: 27682
A51: 10704 | B51: فكري كمال فهمي ميخائيل | C51: بدون | D51: التجهيز | E51: 1 | F51: 50 | G51: 9.553424658 | H51: 2011-05-21 | I51: 2012-05-20 | J51: 2020-12-06 | K51: 1970-08-01 | L51: 180 | M51: 2011-02-20 | N51: 2011-08-19 | O51: No | P51: Yes | Q51: Yes | R51: Yes | S51: Yes | T51: Yes | U51: Yes | V51: Yes | W51: No | X51: No | Y51: No | Z51: Yes | AA51: Yes | AB51: Yes | AC51: بدون | AF51: عامل تجهيز | BE51: التجهيز | BF51: فكري كمال فهمي ميخائيل | BG51: 10704 | BI51: 40684 | BK51: 25781
A52: 4038 | B52: كريم سالم جعفر محمد عثمان | C52: دبلوم فندقي | D52: التخطيط | E52: 1 | F52: 42 | G52: 19.59178082 | H52: 2001-05-09 | I52: 2002-05-09 | J52: 2020-12-06 | K52: 1979-05-18 | L52: 180 | M52: 2001-02-13 | N52: 2001-08-12 | O52: Yes | P52: Yes | Q52: Yes | R52: Yes | S52: Yes | T52: Yes | U52: Yes | V52: Yes | W52: No | X52: No | Y52: No | Z52: No | AA52: Yes | AB52: No | AC52: متوسط | AF52: عامل تجهيز | BE52: التخطيط | BF52: كريم سالم جعفر محمد عثمان | BG52: 4038 | BI52: 37020 | BK52: 28993
A53: 909 | B53: نبيل نقولا حنا داود | C53: بدون | D53: التجهيز | E53: 1 | F53: 63 | G53: 25.25753425 | H53: 1995-09-10 | I53: 1996-09-09 | J53: 2020-12-06 | K53: 1958-06-08 | L53: 180 | O53: No | P53: Yes | Q53: Yes | R53: Yes | S53: Yes | T53: Yes | U53: Yes | V53: No | W53: No | X53: No | Y53: No | Z53: No | AA53: No | AB53: No | AC53: بدون | AF53: عامل فني تجهيز | BE53: التجهيز | BF53: نبيل نقولا حنا داود | BG53: 909 | BI53: 34952 | BK53: 21344
A54: 761 | B54: ياسر احمدعبد الغني احمد | C54: دبلوم تجاره | D54: التجهيز | E54: 1 | F54: 55 | G54: 24.99178082 | H54: 1995-12-16 | I54: 1996-12-15 | J54: 2020-12-06 | K54: 1966-01-28 | L54: 180 | M54: 1993-09-13 | N54: 1994-03-12 | O54: No | P54: No | Q54: Yes | R54: Yes | S54: Yes | T54: Yes | U54: Yes | V54: Yes | W54: No | X54: No | Y54: No | Z54: No | AA54: Yes | AB54: No | AC54: متوسط | AF54: عامل تجهيز | BE54: التجهيز | BF54: ياسر احمدعبد الغني احمد | BG54: 761 | BI54: 35049 | BK54: 24135
A55: 9590 | B55: ياسر قاسم عبد الخالق عبد السلام | C55: ليسانس شريعه وقانون | D55: التجهيز | E55: 1 | F55: 47 | G55: 10.18082192 | H55: 2010-10-04 | I55: 2011-10-04 | J55: 2020-12-06 | K55: 1974-01-12 | L55: 180 | M55: 2010-03-07 | N55: 2010-09-03 | O55: No | P55: Yes | Q55: Yes | R55: Yes | S55: Yes | T55: Yes | U55: Yes | V55: Yes | W55: No | X55: No | Y55: No | Z55: Yes | AA55: Yes | AB55: Yes | AC55: عالي | AF55: عامل فني تجهيز | BE55: التجهيز | BF55: ياسر قاسم عبد الخالق عبد السلام | BG55: 9590 | BI55: 40455 | BK55: 27041
A56: 932 | B56: ياسر محمد سيد محمد | C56: دبلوم تجاره | D56: التجهيز | E56: 1 | F56: 44 | G56: 21.29863014 | H56: 1999-08-25 | I56: 2000-08-24 | J56: 2020-12-06 | K56: 1976-08-02 | L56: 180 | M56: 1999-08-04 | N56: 2000-01-31 | O56: Yes | P56: Yes | Q56: Yes | R56: Yes | S56: Yes | T56: No | U56: Yes | V56: No | W56: No | X56: No | Y56: No | Z56: No | AA56: Yes | AB56: No | AC56: متوسط | AF56: عامل فني تجهيز | BE56: التجهيز | BF56: ياسر محمد سيد محمد | BG56: 932 | BI56: 36397 | BK56: 27974
A57: 8460 | B57: يوسف محمد حسن خالد | C57: دبلوم صناعي | D57: التجهيز | E57: 1 | F57: 38 | G57: 12.93972603 | H57: 2008-01-01 | I57: 2008-12-31 | J57: 2020-12-06 | K57: 1983-01-08 | L57: 180 | M57: 2007-11-25 | N57: 2008-05-23 | O57: Yes | P57: Yes | Q57: Yes | R57: Yes | S57: Yes | T57: Yes | U57: Yes | V57: Yes | W57: No | X57: No | Y57: No | Z57: Yes | AA57: Yes | AB57: No | AC57: متوسط | AF57: عامل تجهيز | BE57: التجهيز | BF57: يوسف محمد حسن خالد | BG57: 8460 | BI57: 39448 | BK57: 30324
A58: 3875 | B58: ابراهيم احمد علام عبد الله | C58: دبلوم صناعي | D58: المصبغة | E58: 1 | F58: 48 | G58: 19.91506849 | H58: 2001-01-11 | I58: 2002-01-11 | J58: 2020-12-06 | K58: 1973-01-19 | L58: 180 | O58: Yes | P58: No | Q58: No | R58: No | S58: Yes | T58: No | U58: Yes | V58: Yes | W58: No | X58: No | Y58: No | Z58: No | AA58: Yes | AB58: No | AC58: متوسط | AE58: D001 | AF58: عامل صباغه | BE58: المصبغة | BF58: ابراهيم احمد علام عبد الله | BG58: 3875 | BI58: 36902 | BK58: 26683
A59: 8018 | B59: ابراهيم محمد ابراهيم رزق | C59: بدون | D59: المصبغة | E59: 1 | F59: 34 | G59: 13.4 | H59: 2007-07-17 | I59: 2008-07-16 | J59: 2020-12-06 | K59: 1987-02-14 | L59: 180 | M59: 2007-07-26 | N59: 2008-01-22 | O59: No | P59: Yes | Q59: Yes | R59: Yes | S59: Yes | T59: No | U59: Yes | V59: No | W59: No | X59: No | Y59: No | Z59: Yes | AA59: Yes | AB59: No | AC59: بدون | AE59: D002 | AF59: عامل صباغه | BE59: المصبغة | BF59: ابراهيم محمد ابراهيم رزق | BG59: 8018 | BI59: 39280 | BK59: 31822
A60: 794 | B60: احمد السعيد فهمي محمد المصري | C60: دبلوم صناعي | D60: المصبغة | E60: 1 | F60: 48 | G60: 23.60547945 | H60: 1997-05-05 | I60: 1998-05-05 | J60: 2020-12-06 | K60: 1972-10-09 | L60: 180 | M60: 1997-05-03 | N60: 1997-10-30 | O60: Yes | P60: No | Q60: Yes | R60: No | S60: Yes | T60: Yes | U60: Yes | V60: Yes | W60: No | X60: No | Y60: No | Z60: Yes | AA60: Yes | AB60: Yes | AC60: متوسط | AE60: D003 | AF60: عامل صباغه | BE60: المصبغة | BF60: احمد السعيد فهمي محمد المصري | BG60: 794 | BI60: 35555 | BK60: 26581
A61: 5267 | B61: صبحي عبدالله عامر ابو الخير | C61: دبلوم صناعي | D61: المصبغة | E61: 1 | F61: =IF(SUM(N(J61),-N(K61))=0,"",ROUND(SUM(N(J61),-N(K61))/365,0)) -> 56 | G61: =IF(SUM(N(J61),-N(H61))=0,"",SUM(N(J61),-N(H61))/365) -> 16.49863014 | H61: 2004-06-11 | I61: 2005-06-11 | J61: 2020-12-06 | K61: 1965-03-06 | L61: 180 | O61: Yes | P61: Yes | Q61: Yes | R61: Yes | S61: Yes | T61: No | U61: Yes | V61: Yes | W61: No | X61: No | Y61: No | Z61: No | AA61: Yes | AB61: No | AC61: متوسط | AF61: عامل فرادات | AI61: Prouduction | BE61: المصبغة | BF61: صبحي عبدالله عامر ابو الخير | BG61: 5267 | BI61: 38149 | BK61: 23807
A62: 10492 | B62: سعد صلاح سعد رمضان عقاب | C62: بدون | D62: المصبغة | E62: 1 | F62: 35 | G62: 9.602739726 | H62: 2011-05-03 | I62: 2012-05-02 | J62: 2020-12-06 | K62: 1985-11-24 | L62: 180 | M62: 2011-01-24 | N62: 2011-07-23 | O62: No | P62: Yes | Q62: Yes | R62: Yes | S62: Yes | T62: Yes | U62: Yes | V62: Yes | W62: No | X62: No | Y62: No | Z62: Yes | AA62: Yes | AB62: Yes | AC62: بدون | AF62: عامل فرادات | AI62: Prouduction | BE62: المصبغة | BF62: سعد صلاح سعد رمضان عقاب | BG62: 10492 | BI62: 40666 | BK62: 31375
A63: 9473 | B63: محمد رضا حسيني عفيفي | C63: بدون | D63: المصبغة | E63: 1 | F63: 29 | G63: 5.153424658 | H63: 2015-10-13 | I63: 2016-10-12 | J63: 2020-12-06 | K63: 1992-05-16 | L63: 180 | M63: 2019-09-19 | N63: 2020-03-17 | O63: No | P63: Yes | Q63: Yes | R63: Yes | S63: Yes | T63: Yes | U63: Yes | V63: Yes | W63: No | X63: No | Y63: No | Z63: Yes | AA63: Yes | AB63: Yes | AC63: بدون | AF63: عامل فرادات | AI63: Prouduction | BE63: المصبغة | BF63: محمد رضا حسيني عفيفي | BG63: 9473 | BI63: 42290 | BK63: 33740
A64: 13742 | B64: احمد بشير ابراهيم عبد العزيز | C64: بدون | D64: المصبغة | E64: 1 | F64: 20 | G64: 1.095890411 | H64: 2019-11-02 | I64: 2020-11-01 | J64: 2020-12-06 | K64: 2001-01-01 | L64: 180 | M64: 2019-01-21 | N64: 2019-07-20 | O64: No | P64: Yes | Q64: Yes | R64: Yes | S64: Yes | T64: Yes | U64: Yes | V64: Yes | W64: No | X64: No | Y64: No | Z64: Yes | AA64: Yes | AB64: Yes | AC64: بدون | AF64: عامل فرادات | AI64: Prouduction | BE64: المصبغة | BF64: احمد بشير ابراهيم عبد العزيز | BG64: 13742 | BI64: 43771 | BK64: 36892
A65: 776 | B65: احمد عبدالحق ابو العنين حنفي السقا | C65: دبلوم تجاره | D65: المصبغة | E65: 1 | F65: 46 | G65: 24.93424658 | H65: 1996-01-06 | I65: 1997-01-05 | J65: 2020-12-06 | K65: 1974-09-02 | L65: 180 | O65: Yes | P65: No | Q65: Yes | R65: No | S65: Yes | T65: Yes | U65: Yes | V65: Yes | W65: No | X65: No | Y65: No | Z65: No | AA65: Yes | AB65: No | AC65: بدون | AF65: مشرف صباغه | AI65: Prouduction | BE65: المصبغة | BF65: احمد عبدالحق ابو العنين حنفي السقا | BG65: 776 | BI65: 35070 | BK65: 27274
A66: 7228 | B66: احمد محمد حسين عبد الغني | C66: بدون مؤهل | D66: المصبغة | E66: 1 | F66: 14 | G66: 14.83287671 | H66: 2006-02-09 | I66: =IF(OR(N(H66)=0,N(E66)=0),"",SUM(N(H66),N(E66*365))) -> 2007-02-09 | J66: =IF(B66="","",TODAY()) -> 2020-12-06 | K66: 2006-09-07 | L66: 180 | M66: 2006-07-27 | N66: =IF(OR(N(M66)=0,N(L66)=0),"",SUM(M66,L66)) -> 2007-01-23 | O66: No | P66: Yes | Q66: Yes | R66: Yes | S66: Yes | T66: No | U66: Yes | V66: Yes | W66: No | X66: No | Y66: No | Z66: No | AA66: Yes | AB66: No | AC66: متوسط | AF66: عامل فرادات | AI66: Prouduction | BE66: المصبغة | BF66: =B66 -> احمد محمد حسين عبد الغني | BG66: =A66 -> 7228 | BI66: 38757 | BK66: =K66 -> 38967
A67: 12649 | B67: ادريس جمعه معوض خميس | C67: بدون | D67: المصبغة | E67: 1 | F67: =IF(SUM(N(J67),-N(K67))=0,"",ROUND(SUM(N(J67),-N(K67))/365,0)) -> 34 | G67: =IF(SUM(N(J67),-N(H67))=0,"",SUM(N(J67),-N(H67))/365) -> 5.323287671 | H67: 2015-08-12 | I67: 2016-08-11 | J67: 2020-12-06 | K67: 1986-09-01 | L67: 180 | M67: 2015-10-21 | N67: 2016-04-18 | O67: No | P67: Yes | Q67: Yes | R67: Yes | S67: Yes | T67: Yes | U67: Yes | V67: Yes | W67: No | X67: No | Y67: No | Z67: Yes | AA67: Yes | AB67: Yes | AC67: بدون | AF67: عامل مصبغه | AI67: Prouduction | BE67: المصبغة | BF67: ادريس جمعه معوض خميس | BG67: 12649 | BI67: 42228 | BK67: 31656
A68: 762 | B68: اسماعيل احمد عبد الجليل | C68: بدون | D68: المصبغة | E68: 1 | F68: 53 | G68: 25.16986301 | H68: 1995-10-12 | I68: 1996-10-11 | J68: 2020-12-06 | K68: 1968-03-10 | L68: 180 | O68: No | P68: No | Q68: No | R68: No | S68: Yes | T68: Yes | U68: Yes | V68: Yes | W68: No | X68: No | Y68: No | Z68: No | AA68: No | AB68: No | AC68: بدون | AF68: مشرف صباغه | AI68: Prouduction | BE68: المصبغة | BF68: اسماعيل احمد عبد الجليل | BG68: 762 | BI68: 34984 | BK68: 24907
A69: 13005 | B69: امين محمد امين غريب | C69: معهد سياحه وفنادق | D69: المصبغة | E69: 1 | F69: 35 | G69: 3.931506849 | H69: 2017-01-01 | I69: 2018-01-01 | J69: 2020-12-06 | K69: 1985-10-25 | L69: 180 | M69: 2016-12-24 | N69: 2017-06-22 | O69: Yes | P69: Yes | Q69: Yes | R69: Yes | S69: Yes | T69: Yes | U69: Yes | V69: Yes | W69: No | X69: No | Y69: No | Z69: Yes | AA69: Yes | AB69: No | AC69: فوق متوسط | AF69: عامل صباغه | AI69: Prouduction | BE69: المصبغة | BF69: امين محمد امين غريب | BG69: 13005 | BI69: 42736 | BK69: 31345
A70: 927 | B70: ايهاب طلعت احمد عبد اللطيف | C70: اعداديه | D70: المصبغة | E70: 1 | F70: 54 | G70: 23.81917808 | H70: 1997-02-16 | I70: 1998-02-16 | J70: 2020-12-06 | K70: 1966-08-06 | L70: 180 | O70: No | P70: No | Q70: Yes | R70: Yes | S70: Yes | T70: Yes | U70: Yes | V70: Yes | W70: No | X70: No | Y70: No | Z70: No | AA70: Yes | AB70: No | AC70: متوسط | AF70: عامل باتش | AI70: Prouduction | BE70: المصبغة | BF70: ايهاب طلعت احمد عبد اللطيف | BG70: 927 | BI70: 35477 | BK70: 24325
A71: 757 | B71: جمعه عبدالفتاح النوبي | C71: دبلوم صناعي | D71: المصبغة | E71: 1 | F71: 54 | G71: 25.36986301 | H71: 1995-07-31 | I71: 1996-07-30 | J71: 2020-12-06 | K71: 1967-02-14 | L71: 180 | O71: Yes | P71: No | Q71: No | R71: No | S71: Yes | T71: Yes | U71: Yes | V71: Yes | W71: No | X71: No | Y71: No | Z71: No | AA71: Yes | AB71: No | AC71: متوسط | AF71: مشرف فرادات | AI71: Prouduction | BE71: المصبغة | BF71: جمعه عبدالفتاح النوبي | BG71: 757 | BI71: 34911 | BK71: 24517
A72: 755 | B72: خالد ثابت عبده حموده | C72: الابتدائيه | D72: المصبغة | E72: 1 | F72: 45 | G72: 21.41917808 | H72: 1999-07-12 | I72: 2000-07-11 | J72: 2020-12-06 | K72: 1976-03-13 | L72: 180 | M72: 1999-06-14 | N72: 1999-12-11 | O72: Yes | P72: Yes | Q72: Yes | R72: Yes | S72: Yes | T72: Yes | U72: Yes | V72: No | W72: No | X72: No | Y72: No | Z72: No | AA72: Yes | AB72: No | AC72: بدون | AF72: عامل صباغه | AI72: Prouduction | BE72: المصبغة | BF72: خالد ثابت عبده حموده | BG72: 755 | BI72: 36353 | BK72: 27832
A73: 5394 | B73: رافت محمد مصطفي صالح رزق | C73: دبلوم تجاره | D73: المصبغة | E73: 1 | F73: 37 | G73: 15.51780822 | H73: 2005-06-04 | I73: 2006-06-04 | J73: 2020-12-06 | K73: 1983-12-01 | L73: 180 | M73: 2004-03-14 | N73: 2004-09-10 | O73: Yes | P73: Yes | Q73: Yes | R73: Yes | S73: Yes | T73: No | U73: Yes | V73: Yes | W73: No | X73: No | Y73: No | Z73: No | AA73: Yes | AB73: No | AC73: متوسط | AF73: عامل صباغه | AI73: Prouduction | BE73: المصبغة | BF73: رافت محمد مصطفي صالح رزق | BG73: 5394 | BI73: 38507 | BK73: 30651
A74: 5463 | B74: رجب محمود عبد العزيز سعد | C74: دبلوم صناعي | D74: المصبغة | E74: 1 | F74: 46 | G74: 15.67945205 | H74: 2005-04-06 | I74: 2006-04-06 | J74: 2020-12-06 | K74: 1975-03-17 | L74: 180 | M74: 2005-03-29 | N74: 2005-09-25 | O74: Yes | P74: No | Q74: Yes | R74: No | S74: Yes | T74: No | U74: Yes | V74: Yes | W74: No | X74: No | Y74: No | Z74: No | AA74: No | AB74: No | AC74: متوسط | AF74: عامل صباغه | AI74: Prouduction | BE74: المصبغة | BF74: رجب محمود عبد العزيز سعد | BG74: 5463 | BI74: 38448 | BK74: 27470
A75: 754 | B75: رفعت محمد ابراهيم اسماعيل | C75: دبلوم صناعي | D75: المصبغة | E75: 1 | F75: 56 | G75: 25.16986301 | H75: 1995-10-12 | I75: 1996-10-11 | J75: 2020-12-06 | K75: 1965-06-08 | L75: 180 | O75: No | P75: No | Q75: No | R75: Yes | S75: Yes | T75: Yes | U75: Yes | V75: Yes | W75: No | X75: No | Y75: No | Z75: Yes | AA75: Yes | AB75: No | AC75: متوسط | AF75: مشرف صباغه | AI75: Prouduction | BE75: المصبغة | BF75: رفعت محمد ابراهيم اسماعيل | BG75: 754 | BI75: 34984 | BK75: 23901
A76: 777 | B76: عادل خميس ابو عجيله بدوي | C76: دبلوم صناعي | D76: المصبغة | E76: 1 | F76: 50 | G76: 24.93150685 | H76: 1996-01-07 | I76: 1997-01-06 | J76: 2020-12-06 | K76: 1971-06-02 | L76: 180 | M76: 1996-06-05 | N76: 1996-12-02 | O76: Yes | P76: No | Q76: Yes | R76: Yes | S76: Yes | T76: No | U76: Yes | V76: Yes | W76: No | X76: No | Y76: No | Z76: No | AA76: Yes | AB76: No | AC76: متوسط | AF76: مشرف فرادات | AI76: Prouduction | BE76: المصبغة | BF76: عادل خميس ابو عجيله بدوي | BG76: 777 | BI76: 35071 | BK76: 26086
A77: 4698 | B77: علاء السعيد عوف عبدالرحمن | C77: دبلوم صناعي | D77: المصبغة | E77: 1 | F77: 41 | G77: 17.15616438 | H77: 2003-10-15 | I77: 2004-10-14 | J77: 2020-12-06 | K77: 1979-11-11 | L77: 180 | M77: 2003-08-17 | N77: 2004-02-13 | O77: Yes | P77: No | Q77: Yes | R77: Yes | S77: Yes | T77: No | U77: Yes | V77: Yes | W77: No | X77: No | Y77: No | Z77: No | AA77: Yes | AB77: No | AC77: متوسط | AF77: فني صباغه | AI77: Prouduction | BE77: المصبغة | BF77: علاء السعيد عوف عبدالرحمن | BG77: 4698 | BI77: 37909 | BK77: 29170
A78: 5559 | B78: عمرو صبحي المحمدي امام شلبي | C78: دبلوم صناعي | D78: المصبغة | E78: 1 | F78: 40 | G78: 15.50684932 | H78: 2005-06-08 | I78: 2006-06-08 | J78: 2020-12-06 | K78: 1981-04-12 | L78: 180 | M78: 2005-06-05 | N78: 2005-12-02 | O78: Yes | P78: Yes | Q78: Yes | R78: Yes | S78: No | T78: No | U78: Yes | V78: No | W78: No | X78: No | Y78: No | Z78: No | AA78: Yes | AB78: No | AC78: متوسط | AF78: عامل صباغه | AI78: Prouduction | BE78: المصبغة | BF78: عمرو صبحي المحمدي امام شلبي | BG78: 5559 | BI78: 38511 | BK78: 29688
A79: 5241 | B79: عمرو خميس ابو عجيله بدوي | C79: دبلوم صناعي | D79: المصبغة | E79: 1 | F79: 39 | G79: 16.92054795 | H79: 2004-01-09 | I79: 2005-01-08 | J79: 2020-12-06 | K79: 1981-08-05 | L79: 180 | M79: 2004-06-29 | N79: 2004-12-26 | O79: Yes | P79: No | Q79: No | R79: Yes | S79: No | T79: No | U79: Yes | V79: Yes | W79: No | X79: No | Y79: No | Z79: No | AA79: Yes | AB79: No | AC79: متوسط | AF79: عامل صباغه | AI79: Prouduction | BE79: المصبغة | BF79: عمرو خميس ابو عجيله بدوي | BG79: 5241 | BI79: 37995 | BK79: 29803
A80: 760 | B80: فتحي توفيق حسن سالم | C80: دبلوم صناعي | D80: المصبغة | E80: 1 | F80: 48 | G80: 25.36986301 | H80: 1995-07-31 | I80: 1996-07-30 | J80: 2020-12-06 | K80: 1972-12-16 | L80: 180 | O80: Yes | P80: No | Q80: Yes | R80: Yes | S80: No | T80: Yes | U80: Yes | V80: Yes | W80: No | X80: No | Y80: No | Z80: Yes | AA80: Yes | AB80: No | AC80: متوسط | AF80: فني مصباغه | AI80: Prouduction | BE80: المصبغة | BF80: فتحي توفيق حسن سالم | BG80: 760 | BI80: 34911 | BK80: 26649
A81: 6644 | B81: فضل احمد فضل جاد | C81: دبلوم صناعي | D81: المصبغة | E81: 1 | F81: 40 | G81: 14.81917808 | H81: 2006-02-14 | I81: 2007-02-14 | J81: 2020-12-06 | K81: 1980-11-23 | L81: 180 | O81: Yes | P81: No | Q81: No | R81: Yes | S81: No | T81: No | U81: Yes | V81: Yes | W81: No | X81: No | Y81: No | Z81: No | AA81: Yes | AB81: No | AC81: متوسط | AF81: عامل صباغه | AI81: Prouduction | BE81: المصبغة | BF81: فضل احمد فضل جاد | BG81: 6644 | BI81: 38762 | BK81: 29548
A82: 775 | B82: محمد حسن ابرهيم السيد | C82: دبلوم صناعي | D82: المصبغة | E82: 1 | F82: 49 | G82: 24.66575342 | H82: 1996-04-13 | I82: 1997-04-13 | J82: 2020-12-06 | K82: 1972-04-03 | L82: 180 | O82: Yes | P82: No | Q82: Yes | R82: Yes | S82: No | T82: Yes | U82: Yes | V82: Yes | W82: No | X82: No | Y82: No | Z82: No | AA82: Yes | AB82: No | AC82: متوسط | AF82: عمل صباغه | AI82: Prouduction | BE82: المصبغة | BF82: محمد حسن ابرهيم السيد | BG82: 775 | BI82: 35168 | BK82: 26392
A83: 9432 | B83: محمد احمد فضل جاد عقاب | C83: دبلوم صناعي | D83: المصبغة | E83: 1 | F83: 34 | G83: 10.85205479 | H83: 2010-02-01 | I83: 2011-02-01 | J83: 2020-12-06 | K83: 1987-03-01 | L83: 180 | M83: 2009-11-13 | N83: 2010-05-12 | O83: Yes | P83: Yes | Q83: Yes | R83: Yes | S83: No | T83: No | U83: Yes | V83: Yes | W83: No | X83: No | Y83: No | Z83: Yes | AA83: Yes | AB83: Yes | AC83: متوسط | AF83: عامل صباغه | AI83: Prouduction | BE83: المصبغة | BF83: محمد احمد فضل جاد عقاب | BG83: 9432 | BI83: 40210 | BK83: 31837
A84: 780 | B84: محمد صلاح عطية الله محمد | C84: دبلوم ثانوي زراعي | D84: المصبغة | E84: 1 | F84: 57 | G84: 21.99726027 | H84: 1998-12-13 | I84: 1999-12-13 | J84: 2020-12-06 | K84: 1964-06-02 | L84: 180 | O84: Yes | P84: Yes | Q84: Yes | R84: Yes | S84: Yes | T84: Yes | U84: Yes | V84: Yes | W84: No | X84: No | Y84: No | Z84: No | AA84: Yes | AB84: No | AC84: متوسط | AF84: مشرف فرادات | AI84: Prouduction | BE84: المصبغة | BF84: محمد صلاح عطية الله محمد | BG84: 780 | BI84: 36142 | BK84: 23530
A85: 7344 | B85: محمد سعد بدوي بدوي | C85: بدون مؤهل | D85: المصبغة | E85: 1 | F85: 47 | G85: 14.07945205 | H85: 2006-11-11 | I85: 2007-11-11 | J85: 2020-12-06 | K85: 1973-10-22 | L85: 180 | M85: 2006-09-04 | N85: 2007-03-03 | O85: No | P85: Yes | Q85: Yes | R85: Yes | S85: Yes | T85: Yes | U85: Yes | V85: Yes | W85: No | X85: No | Y85: No | Z85: No | AA85: Yes | AB85: No | AC85: متوسط | AF85: عامل صباغه | AI85: Prouduction | BE85: المصبغة | BF85: محمد سعد بدوي بدوي | BG85: 7344 | BI85: 39032 | BK85: 26959
A86: 13248 | B86: محمد عوض محمد عبدالمقصود | C86: بدون | D86: المصبغة | E86: 1 | F86: 28 | G86: 2.898630137 | H86: 2018-01-13 | I86: 2019-01-13 | J86: 2020-12-06 | K86: 1993-06-05 | L86: 180 | M86: 2017-12-24 | N86: 2018-06-22 | O86: No | P86: Yes | Q86: Yes | R86: Yes | S86: Yes | T86: Yes | U86: Yes | V86: Yes | W86: No | X86: No | Y86: No | Z86: Yes | AA86: Yes | AB86: No | AC86: متوسط | AF86: عامل فرادات | AI86: Prouduction | BE86: المصبغة | BF86: محمد عوض محمد عبدالمقصود | BG86: 13248 | BI86: 43113 | BK86: 34125
A87: 7518 | B87: محمد رزق ضيف اسماعيل محمد الابياري | C87: دبلوم تجاره | D87: المصبغة | E87: 1 | F87: 41 | G87: 13.35890411 | H87: 2007-08-01 | I87: 2008-07-31 | J87: 2020-12-06 | K87: 1980-04-12 | L87: 180 | M87: 2006-11-08 | N87: 2007-05-07 | O87: Yes | P87: Yes | Q87: Yes | R87: Yes | S87: Yes | T87: No | U87: Yes | V87: Yes | W87: No | X87: No | Y87: No | Z87: Yes | AA87: Yes | AB87: No | AC87: متوسط | AF87: عامل صباغه | AI87: Prouduction | BE87: المصبغة | BF87: محمد رزق ضيف اسماعيل محمد الابياري | BG87: 7518 | BI87: 39295 | BK87: 29323
A88: 8163 | B88: محمد رمضان سعد بدوي | C88: الاعداديه | D88: المصبغة | E88: 1 | F88: 33 | G88: 13.2109589 | H88: 2007-09-24 | I88: 2008-09-23 | J88: 2020-12-06 | K88: 1987-10-03 | L88: 180 | M88: 2007-07-22 | N88: 2008-01-18 | O88: Yes | P88: Yes | Q88: Yes | R88: Yes | S88: No | T88: No | U88: Yes | V88: Yes | W88: No | X88: No | Y88: No | Z88: Yes | AA88: Yes | AB88: No | AC88: متوسط | AF88: عامل صباغه | AI88: Prouduction | BE88: المصبغة | BF88: محمد رمضان سعد بدوي | BG88: 8163 | BI88: 39349 | BK88: 32053
A89: 13119 | B89: محمد محمود كامل طه | C89: ليسانس شريعه وقانون | D89: المصبغة | E89: 1 | F89: 3 | G89: 3.293150685 | H89: 2017-08-22 | I89: 2018-08-22 | J89: 2020-12-06 | K89: 2017-08-25 | L89: 180 | M89: 2017-08-14 | N89: 2018-02-10 | O89: No | P89: Yes | Q89: Yes | R89: Yes | S89: No | T89: No | U89: Yes | V89: Yes | W89: No | X89: No | Y89: No | Z89: Yes | AA89: Yes | AB89: No | AC89: عالي | AF89: عامل صبغه | AI89: Prouduction | BE89: المصبغة | BF89: محمد محمود كامل طه | BG89: 13119 | BI89: 42969 | BK89: 42972
A90: 5531 | B90: محمود فوزي عبد العليم عبدالناصر | C90: دبلوم ترسانه بحريه | D90: المصبغة | E90: 1 | F90: 39 | G90: 15.09041096 | H90: 2005-11-07 | I90: 2006-11-07 | J90: 2020-12-06 | K90: 1981-11-03 | L90: 180 | M90: 2005-06-02 | N90: 2005-11-29 | O90: No | P90: Yes | Q90: Yes | R90: Yes | S90: Yes | T90: No | U90: Yes | V90: Yes | W90: No | X90: No | Y90: No | Z90: No | AA90: Yes | AB90: No | AC90: متوسط | AF90: عامل صباغه | AG90: شهاده تدريب تبريد وتكيف | AI90: Prouduction | BE90: المصبغة | BF90: محمود فوزي عبد العليم عبدالناصر | BG90: 5531 | BI90: 38663 | BK90: 29893
A91: 5762 | B91: مصطفي رزق ضيف اسماعيل محمد | C91: دبلوم صناعي | D91: المصبغة | E91: 1 | F91: 36 | G91: 15.74794521 | H91: 2005-03-12 | I91: 2006-03-12 | J91: 2020-12-06 | K91: 1985-04-20 | L91: 180 | M91: 2005-07-31 | N91: 2006-01-27 | O91: Yes | P91: Yes | Q91: Yes | R91: No | S91: Yes | T91: No | U91: Yes | V91: Yes | W91: No | X91: No | Y91: No | Z91: No | AA91: Yes | AB91: No | AC91: متوسط | AF91: عامل صباغه | AI91: Prouduction | BE91: المصبغة | BF91: مصطفي رزق ضيف اسماعيل محمد | BG91: 5762 | BI91: 38423 | BK91: 31157
A92: 8154 | B92: مصطفي صادق توفيق عبد الرحيم | C92: دبلوم صناعي | D92: المصبغة | E92: 1 | F92: 35 | G92: 13.20273973 | H92: 2007-09-27 | I92: 2008-09-26 | J92: 2020-12-06 | K92: 1986-05-13 | L92: 180 | O92: Yes | P92: Yes | Q92: Yes | R92: Yes | S92: Yes | T92: Yes | U92: Yes | V92: Yes | W92: No | X92: No | Y92: No | Z92: Yes | AA92: Yes | AB92: No | AC92: متوسط | AF92: عامل فرادات | AI92: Prouduction | BE92: المصبغة | BF92: مصطفي صادق توفيق عبد الرحيم | BG92: 8154 | BI92: 39352 | BK92: 31545
A93: 13706 | B93: مصطفي عبد النبي مصطفي احمد كوشتي | C93: دبلوم صناعي | D93: المصبغة | E93: 1 | F93: 27 | G93: 2.060273973 | H93: 2018-11-15 | I93: 2019-11-15 | J93: 2020-12-06 | K93: 1994-04-09 | L93: 180 | M93: 2018-11-14 | N93: 2019-05-13 | O93: Yes | P93: No | Q93: Yes | R93: Yes | S93: Yes | T93: Yes | U93: Yes | V93: Yes | W93: No | X93: No | Y93: No | Z93: Yes | AA93: Yes | AB93: No | AC93: فوق متوسط | AF93: عامل المصبغه | AI93: Prouduction | BE93: المصبغة | BF93: مصطفي عبد النبي مصطفي احمد كوشتي | BG93: 13706 | BI93: =H93 -> 43419 | BK93: 34433
A94: 13273 | B94: هيثم كمال حسين محمد الدقيقي | C94: دبلوم زراعه | D94: المصبغة | E94: 1 | F94: 28 | G94: 2.432876712 | H94: 2018-07-02 | I94: 2019-07-02 | J94: 2020-12-06 | K94: 1992-10-07 | L94: 180 | M94: 2018-01-18 | N94: 2018-07-17 | O94: No | P94: Yes | Q94: Yes | R94: No | S94: Yes | T94: Yes | U94: Yes | V94: Yes | W94: No | X94: No | Y94: No | Z94: Yes | AA94: Yes | AB94: No | AC94: متوسط | AF94: عامل صباغه | AI94: Prouduction | BE94: =D94 -> المصبغة | BF94: هيثم كمال حسين محمد الدقيقي | BG94: 13273 | BI94: 43283 | BK94: 33884
A95: 13766 | B95: احمد سمير محمود عبد الخالق | C95: اعداديه | D95: مخزن الكيماويات | E95: 1 | F95: 29 | G95: 1.764383562 | H95: 2019-03-03 | I95: 2020-03-02 | J95: 2020-12-06 | K95: 1992-01-01 | L95: 180 | M95: 2019-02-12 | N95: 2019-08-11 | O95: No | P95: No | Q95: Yes | R95: Yes | S95: Yes | T95: Yes | U95: Yes | V95: Yes | W95: No | X95: No | Y95: No | Z95: No | AA95: No | AB95: No | AC95: متوسط | AF95: عامل مخزن الكيماويات | AI95: Prouduction | BE95: مخزن الكيماويات | BF95: احمد سمير محمود عبد الخالق | BG95: 13766 | BI95: 43527 | BK95: 33604
A96: 1053 | B96: اسامه محمد عبدالله الشبراوي | C96: دبلوم صناعي | D96: مخزن الكيماويات | E96: 1 | F96: 56 | G96: 25.92876712 | H96: 1995-01-08 | I96: 1996-01-08 | J96: 2020-12-06 | K96: 1965-03-02 | L96: 180 | O96: Yes | P96: No | Q96: No | R96: No | S96: Yes | T96: Yes | U96: Yes | V96: Yes | W96: No | X96: No | Y96: No | Z96: Yes | AA96: Yes | AB96: No | AC96: متوسط | AF96: عامل مخزن الكيماويات | AI96: Prouduction | BE96: مخزن الكيماويات | BF96: اسامه محمد عبدالله الشبراوي | BG96: 1053 | BI96: 34707 | BK96: 23803
A97: 571 | B97: ايمن احمد احمد حجاب | C97: دبلوم صناعي | D97: مخزن الكيماويات | E97: 1 | F97: 49 | G97: 24.74520548 | H97: 1996-03-15 | I97: 1997-03-15 | J97: 2020-12-06 | K97: 1972-01-01 | L97: 180 | O97: Yes | P97: No | Q97: No | R97: No | S97: No | T97: No | U97: Yes | V97: Yes | W97: No | X97: No | Y97: No | Z97: No | AA97: Yes | AB97: Yes | AC97: متوسط | AF97: عامل مخزن الكيماويات | AI97: Prouduction | BE97: مخزن الكيماويات | BF97: ايمن احمد احمد حجاب | BG97: 571 | BI97: 35139 | BK97: 26299
A98: 1553 | B98: ايمن كمال حسن عاشور | C98: معهد فني تجاري | D98: مخزن الكيماويات | E98: 1 | F98: 47 | G98: 8.6 | H98: 2012-05-03 | I98: 2013-05-03 | J98: 2020-12-06 | K98: 1974-04-05 | L98: 180 | M98: 2012-02-29 | N98: 2012-08-27 | O98: Yes | P98: Yes | Q98: Yes | R98: Yes | S98: Yes | T98: Yes | U98: Yes | V98: Yes | W98: No | X98: No | Y98: No | Z98: Yes | AA98: Yes | AB98: Yes | AC98: فوق متوسط | AF98: امين مخزن الكيماويات | AI98: Prouduction | BE98: مخزن الكيماويات | BF98: ايمن كمال حسن عاشور | BG98: 1553 | BI98: 41032 | BK98: 27124
A99: 13732 | B99: سعيد عبدالعزيز خليل الفقي | C99: بدون | D99: مخزن الكيماويات | E99: 1 | F99: 44 | G99: 1.926027397 | H99: 2019-01-03 | I99: 2020-01-03 | J99: 2020-12-06 | K99: 1977-04-15 | L99: 180 | M99: 2018-12-24 | N99: 2019-06-22 | O99: No | P99: Yes | Q99: Yes | R99: Yes | S99: Yes | T99: Yes | U99: Yes | V99: Yes | W99: No | X99: No | Y99: No | Z99: Yes | AA99: Yes | AB99: No | AC99: بدون | AF99: عامل مخزن الكيماويات | AG99: العقد فاضي | AI99: Prouduction | BE99: مخزن الكيماويات | BF99: سعيد عبدالعزيز خليل الفقي | BG99: 13732 | BI99: 43468 | BK99: 28230
A100: 7542 | B100: شريف حماد محمد علي حماد | C100: بدون | D100: مخزن الكيماويات | E100: 1 | F100: 42 | G100: 13.35890411 | H100: 2007-08-01 | I100: 2008-07-31 | J100: 2020-12-06 | K100: 1978-11-01 | L100: 180 | O100: Yes | P100: Yes | Q100: Yes | R100: Yes | S100: Yes | T100: Yes | U100: Yes | V100: Yes | W100: No | X100: No | Y100: No | Z100: No | AA100: Yes | AB100: No | AC100: بدون | AF100: عامل مخزن الكيماويات | AI100: Prouduction | BE100: مخزن الكيماويات | BF100: شريف حماد محمد علي حماد | BG100: 7542 | BI100: 39295 | BK100: 28795
A101: 13710 | B101: محمد صالح امين سيد احمد | C101: دبلوم صناعي | D101: مخزن الكيماويات | E101: 1 | F101: 32 | G101: 1.884931507 | H101: 2019-01-18 | I101: 2020-01-18 | J101: 2020-12-06 | K101: 1989-01-01 | L101: 180 | M101: 2018-10-18 | N101: 2019-04-16 | O101: Yes | P101: Yes | Q101: Yes | R101: Yes | S101: No | T101: Yes | U101: Yes | V101: Yes | W101: No | X101: No | Y101: No | Z101: Yes | AA101: Yes | AB101: No | AC101: متوسط | AF101: عامل مخزن الكيماويات | AI101: Prouduction | BE101: مخزن الكيماويات | BF101: محمد صالح امين سيد احمد | BG101: 13710 | BI101: 43483 | BK101: 32509
A102: 4795 | B102: يوسف محمد مصطفي صالح | C102: دبلوم صناعي | D102: مخزن الكيماويات | E102: 1 | F102: 41 | G102: 16.60821918 | H102: 2004-05-02 | I102: 2005-05-02 | J102: 2020-12-06 | K102: 1979-12-24 | L102: 180 | O102: Yes | P102: Yes | Q102: Yes | R102: Yes | S102: Yes | T102: Yes | U102: Yes | V102: Yes | W102: No | X102: No | Y102: No | Z102: No | AA102: Yes | AB102: No | AC102: متوسط | AF102: عامل مخزن الكيماويات | AI102: Prouduction | BE102: مخزن الكيماويات | BF102: يوسف محمد مصطفي صالح | BG102: 4795 | BI102: 38109 | BK102: 29213
A103: 9385 | B103: تامر صابر محمد جميل محمد | C103: معهد خدمه اجنماعيه | D103: معمل خواص | E103: 1 | F103: 42 | G103: 11.90684932 | H103: 2009-01-12 | I103: 2010-01-12 | J103: 2020-12-06 | K103: 1979-01-12 | L103: 180 | O103: Yes | P103: Yes | Q103: Yes | R103: Yes | S103: Yes | T103: Yes | U103: Yes | V103: Yes | W103: No | X103: No | Y103: No | Z103: Yes | AA103: Yes | AB103: Yes | AC103: فوق متوسط | AF103: فني معمل الالوان | AG103: شهاده موقته | AI103: Prouduction | BE103: معمل خواص | BF103: تامر صابر محمد جميل محمد | BG103: 9385 | BI103: 39825 | BK103: 28867
A104: 1055 | B104: عادل محمد حسين حسين العش | C104: بدون | D104: معمل خواص | E104: 1 | F104: 47 | G104: 23.81917808 | H104: 1997-02-16 | I104: 1998-02-16 | J104: 2020-12-06 | K104: 1973-09-01 | L104: 180 | O104: No | P104: Yes | Q104: Yes | R104: Yes | S104: Yes | T104: Yes | U104: Yes | V104: Yes | W104: No | X104: No | Y104: No | Z104: No | AA104: Yes | AB104: No | AC104: بدون | AF104: فني معمل الخواص | AG104: تاريخ استماره واحد مختلف مع العقد | AI104: Prouduction | BE104: معمل خواص | BF104: عادل محمد حسين حسين العش | BG104: 1055 | BI104: 35477 | BK104: 26908
A105: 6619 | B105: محمد خميس عبد ربه علي رضوان | C105: دبلوم تجاره | D105: معمل خواص | E105: 1 | F105: 24 | G105: 14.81917808 | H105: 2006-02-14 | I105: 2007-02-14 | J105: 2020-12-06 | K105: 1997-01-10 | L105: 180 | O105: Yes | P105: No | Q105: Yes | R105: Yes | S105: Yes | T105: Yes | U105: Yes | V105: Yes | W105: No | X105: No | Y105: No | Z105: No | AA105: Yes | AB105: No | AC105: متوسط | AF105: فني معمل الخواص | AI105: Prouduction | BE105: معمل خواص | BF105: محمد خميس عبد ربه علي رضوان | BG105: 6619 | BI105: 38762 | BK105: 35440
A106: 913 | B106: محمود علي يوسف احمد | C106: دبلوم تجاره | D106: معمل خواص | E106: 1 | F106: 49 | G106: 25.29863014 | H106: 1995-08-26 | I106: 1996-08-25 | J106: 2020-12-06 | K106: 1972-02-03 | L106: 180 | O106: Yes | P106: No | Q106: No | R106: Yes | S106: Yes | T106: Yes | U106: Yes | V106: Yes | W106: No | X106: No | Y106: No | Z106: No | AA106: Yes | AB106: No | AC106: متوسط | AF106: مشرف معمل الخواص | AI106: Prouduction | BE106: معمل خواص | BF106: محمود علي يوسف احمد | BG106: 913 | BI106: 34937 | BK106: 26332
A107: 12846 | B107: احمد محمد عبداللطيف ابو عرب | C107: بكالوريوس علوم | D107: معمل خواص | E107: 1 | F107: 29 | G107: 4.208219178 | H107: 2016-09-22 | I107: 2017-09-22 | J107: 2020-12-06 | K107: 1991-07-10 | L107: 180 | M107: 2016-05-09 | N107: 2016-11-05 | O107: Yes | P107: Yes | Q107: Yes | R107: Yes | S107: Yes | T107: Yes | U107: No | V107: Yes | W107: No | X107: No | Y107: No | Z107: Yes | AA107: Yes | AB107: Yes | AC107: عالي | AF107: مهندس معمل الالوان | AG107: العقد فاضي بدون توقيعات | AI107: Prouduction | BE107: معمل خواص | BF107: احمد محمد عبداللطيف ابو عرب | BG107: 12846 | BI107: 42635 | BK107: 33429
A108: 8232 | B108: خالد محمد شعبان الصافي | C108: دبلوم صناعي | D108: معمل خواص | E108: 1 | F108: 35 | G108: 12.60547945 | H108: 2008-05-02 | I108: 2009-05-02 | J108: 2020-12-06 | K108: 1985-09-03 | L108: 180 | M108: 2007-12-10 | N108: 2008-06-07 | O108: Yes | P108: Yes | Q108: Yes | R108: Yes | S108: Yes | T108: Yes | U108: Yes | V108: Yes | W108: No | X108: No | Y108: No | Z108: Yes | AA108: Yes | AB108: Yes | AC108: متوسط | AF108: فني معمل الالوان | AG108: كذا استمار 1 | AI108: Prouduction | BE108: معمل خواص | BF108: خالد محمد شعبان الصافي | BG108: 8232 | BI108: 39570 | BK108: 31293
A109: 5898 | B109: عماد فاروق فهمي بشاي | C109: بكالوريس تربيه | D109: معمل خواص | E109: 1 | F109: 47 | G109: 14.85205479 | H109: 2006-02-02 | I109: 2007-02-02 | J109: 2020-12-06 | K109: 1973-08-05 | L109: 180 | M109: 2005-12-12 | N109: 2006-06-10 | O109: Yes | P109: Yes | Q109: Yes | R109: Yes | S109: Yes | T109: Yes | U109: Yes | V109: Yes | W109: No | X109: No | Y109: No | Z109: No | AA109: Yes | AB109: No | AC109: عالي | AF109: مهندس معمل الالوان | AI109: Admin | BE109: معمل خواص | BF109: عماد فاروق فهمي بشاي | BG109: 5898 | BI109: 38750 | BK109: 26881
A110: 1050 | B110: محمد خميس سليمان حيدر | C110: دبلوم صناعي | D110: معمل خواص | E110: 1 | F110: 56 | G110: 25.16986301 | H110: 1995-10-12 | I110: 1996-10-11 | J110: 2020-12-06 | K110: 1965-04-05 | L110: 180 | O110: Yes | P110: No | Q110: No | R110: Yes | S110: No | T110: Yes | U110: Yes | V110: Yes | W110: No | X110: No | Y110: No | Z110: No | AA110: Yes | AB110: No | AC110: متوسط | AF110: مشرف معمل الالوان | AI110: Prouduction | BE110: معمل خواص | BF110: محمد خميس سليمان حيدر | BG110: 1050 | BI110: 34984 | BK110: 23837
A111: 13735 | B111: محمد سعيد محمد محمود السيد | C111: بكالوريوسعلوم كمياء | D111: معمل خواص | E111: 1 | F111: 28 | G111: 1.893150685 | H111: 2019-01-15 | I111: 2020-01-15 | J111: 2020-12-06 | K111: 1993-04-07 | L111: 180 | M111: 2019-01-12 | N111: 2019-07-11 | O111: Yes | P111: Yes | Q111: Yes | R111: Yes | S111: Yes | T111: Yes | U111: Yes | V111: Yes | W111: No | X111: Yes | Y111: No | Z111: Yes | AA111: Yes | AB111: No | AC111: عالي | AF111: مهندس كيمائي معمل الالوان | AG111: تاريخ استماره 1 (3-3-2019) | AI111: Prouduction | BE111: معمل خواص | BF111: محمد سعيد محمد محمود السيد | BG111: 13735 | BI111: 43480 | BK111: 34066
A112: 7611 | B112: وليد يونس فهيم السيد الخولي | C112: دبلوم صناعي | D112: معمل خواص | E112: 1 | F112: 38 | G112: 13.81917808 | H112: 2007-02-14 | I112: 2008-02-14 | J112: 2020-12-06 | K112: 1983-01-01 | L112: 180 | M112: 2006-12-11 | N112: 2007-06-09 | O112: Yes | P112: Yes | Q112: Yes | R112: Yes | S112: Yes | T112: Yes | U112: Yes | V112: Yes | W112: No | X112: No | Y112: No | Z112: Yes | AA112: Yes | AB112: No | AC112: متوسط | AF112: فني معمل الالوان | AI112: Prouduction | BE112: معمل خواص | BF112: وليد يونس فهيم السيد الخولي | BG112: 7611 | BI112: 39127 | BK112: 30317
A113: 13615 | B113: ابراهيم حسن سعيد رمضان شقيدف | C113: بدون | D113: المخازن | E113: 1 | F113: 21 | G113: 1.912328767 | H113: 2019-01-08 | I113: 2020-01-08 | J113: 2020-12-06 | K113: 2000-06-10 | L113: 180 | M113: 2018-10-02 | N113: 2019-03-31 | O113: No | P113: Yes | Q113: Yes | R113: Yes | S113: Yes | T113: Yes | U113: Yes | V113: Yes | W113: No | X113: No | Y113: No | Z113: Yes | AA113: Yes | AB113: No | AC113: بدون | AF113: عامل مخزن الخام | AG113: العقد فاضي | AI113: Prouduction | BE113: المخازن | BF113: ابراهيم حسن سعيد رمضان شقيدف | BG113: 13615 | BI113: 43473 | BK113: 36687
A114: 4491 | B114: ابراهيم رزق منصور الصابر | C114: بدون | D114: المخازن | E114: 1 | F114: 47 | G114: 16.49863014 | H114: 2004-06-11 | I114: 2005-06-11 | J114: 2020-12-06 | K114: 1973-08-05 | L114: 180 | O114: No | P114: Yes | Q114: No | R114: No | S114: Yes | T114: No | U114: Yes | V114: Yes | W114: No | X114: No | Y114: No | Z114: No | AA114: Yes | AB114: No | AC114: بدون | AF114: عامل مخزن دايس | AI114: Prouduction | BE114: المخازن | BF114: ابراهيم رزق منصور الصابر | BG114: 4491 | BI114: 38149 | BK114: 26881
A115: 9505 | B115: احمد شاكر احمد السيد | C115: دبلوم صناعي | D115: المخازن | E115: 1 | F115: 36 | G115: 10.18356164 | H115: 2010-10-03 | I115: 2011-10-03 | J115: 2020-12-06 | K115: 1984-11-06 | L115: 180 | M115: 2009-12-20 | N115: 2010-06-18 | O115: Yes | P115: Yes | Q115: Yes | R115: Yes | S115: Yes | T115: Yes | U115: Yes | V115: Yes | W115: No | X115: No | Y115: No | Z115: Yes | AA115: Yes | AB115: No | AC115: متوسط | AF115: عامل مخزن دايس | AI115: Prouduction | BE115: المخازن | BF115: احمد شاكر احمد السيد | BG115: 9505 | BI115: 40454 | BK115: 30992
A116: 13395 | B116: احمد صلاح سعد الله صالح | C116: بدون | D116: المخازن | E116: 1 | F116: 19 | G116: 2.389041096 | H116: 2018-07-18 | I116: 2019-07-18 | J116: 2020-12-06 | K116: 2002-01-15 | L116: 180 | O116: No | P116: Yes | Q116: No | R116: Yes | S116: Yes | T116: No | U116: Yes | V116: Yes | W116: No | X116: No | Y116: No | Z116: Yes | AA116: Yes | AB116: No | AC116: بدون | AF116: عامل مخزن دايس | AI116: Prouduction | BE116: المخازن | BF116: احمد صلاح سعد الله صالح | BG116: 13395 | BI116: 43299 | BK116: 37271
A117: 10278 | B117: احمد علي محمد علي حسن | C117: دبلوم صناعي | D117: المخازن | E117: 1 | F117: 41 | G117: 10.41369863 | H117: 2010-07-11 | I117: 2011-07-11 | J117: 2020-12-06 | K117: 1979-07-02 | L117: 180 | M117: 2010-10-18 | N117: 2011-04-16 | O117: Yes | P117: Yes | Q117: Yes | R117: No | S117: Yes | T117: Yes | U117: Yes | V117: Yes | W117: No | X117: Yes | Y117: Yes | Z117: Yes | AA117: No | AB117: Yes | AC117: متوسط | AF117: عامل مخزن البواقي | AI117: Prouduction | BE117: المخازن | BF117: احمد علي محمد علي حسن | BG117: 10278 | BI117: 40370 | BK117: 29038
A118: 13907 | B118: احمد فرحات الشافعي احمد | C118: بدون | D118: المخازن | E118: 1 | F118: 25 | G118: 1.753424658 | H118: 2019-03-07 | I118: 2020-03-06 | J118: 2020-12-06 | K118: 1995-10-08 | L118: 180 | M118: 2019-06-16 | N118: 2019-12-13 | O118: No | P118: Yes | Q118: Yes | R118: Yes | S118: Yes | T118: Yes | U118: Yes | V118: Yes | W118: No | X118: No | Y118: No | Z118: Yes | AA118: Yes | AB118: No | AC118: بدون | AF118: عامل مخزن دايس | AI118: Prouduction | BE118: المخازن | BF118: احمد فرحات الشافعي احمد | BG118: 13907 | BI118: 43531 | BK118: 34980
A119: 641 | B119: احمد محمود مصطفي صالح | C119: بدون | D119: المخازن | E119: 1 | F119: 44 | G119: 20.85205479 | H119: 2000-02-04 | I119: 2001-02-03 | J119: 2020-12-06 | K119: 1976-11-16 | L119: 180 | O119: No | P119: Yes | Q119: No | R119: No | S119: Yes | T119: Yes | U119: Yes | V119: Yes | W119: No | X119: No | Y119: No | Z119: No | AA119: Yes | AB119: No | AC119: بدون | AF119: عامل مخزن الخام | AI119: Prouduction | BE119: المخازن | BF119: احمد محمود مصطفي صالح | BG119: 641 | BI119: 36560 | BK119: 28080
A120: 787 | B120: اشرف اسماعيل محمد خلاف | C120: دبلوم صناعي | D120: المخازن | E120: 1 | F120: 47 | G120: 20.41917808 | H120: 2000-07-11 | I120: 2001-07-11 | J120: 2020-12-06 | K120: 1974-01-07 | L120: 180 | M120: 2000-08-24 | N120: 2001-02-20 | O120: Yes | P120: Yes | Q120: Yes | R120: No | S120: Yes | T120: Yes | U120: Yes | V120: Yes | W120: No | X120: No | Y120: No | Z120: No | AA120: Yes | AB120: No | AC120: متوسط | AF120: عامل مخزن الخام | AG120: تاريخ استماره 1(3-9-200) | AI120: Prouduction | BE120: المخازن | BF120: اشرف اسماعيل محمد خلاف | BG120: 787 | BI120: 36718 | BK120: 27036
A121: 4961 | B121: اشرف السيد | C121: دبلوم صناعي | D121: المخازن | E121: 1 | F121: 0 | G121: 16.17808219 | H121: 2004-10-06 | I121: 2005-10-06 | J121: 2020-12-06 | K121: 2020-09-29 | L121: 180 | M121: 2004-02-16 | N121: 2004-08-14 | O121: Yes | P121: Yes | Q121: Yes | R121: Yes | S121: Yes | T121: Yes | U121: Yes | V121: Yes | W121: No | X121: No | Y121: No | Z121: No | AA121: Yes | AB121: No | AC121: متوسط | AF121: امين مخزن الاستيك | AI121: Prouduction | BE121: المخازن | BF121: اشرف السيد | BG121: 4961 | BI121: 38266 | BK121: 44103
A122: 13896 | B122: السيد فتحي محمد البحيري | C122: ابتدائيه | D122: المخازن | E122: 1 | F122: 32 | G122: 1.536986301 | H122: 2019-05-25 | I122: 2020-05-24 | J122: 2020-12-06 | K122: 1988-08-02 | L122: 180 | M122: 2019-05-14 | N122: 2019-11-10 | O122: No | P122: No | Q122: Yes | R122: Yes | S122: Yes | T122: Yes | U122: Yes | V122: Yes | W122: No | X122: Yes | Y122: Yes | Z122: Yes | AA122: Yes | AB122: Yes | AC122: بدون | AF122: عامل مخزن دايس | AG122: العقد فاضي استماره 1 (1-8-2019) | AI122: Prouduction | BE122: المخازن | BF122: السيد فتحي محمد البحيري | BG122: 13896 | BI122: 43610 | BK122: 32357
A123: 1548 | B123: السيد كامل عبدالجواد محمد خطاب | C123: بدون | D123: المخازن | E123: 1 | F123: 42 | G123: 20.35890411 | H123: 2000-08-02 | I123: 2001-08-02 | J123: 2020-12-06 | K123: 1978-12-20 | L123: 180 | M123: 1999-08-22 | N123: 2000-02-18 | O123: No | P123: Yes | Q123: Yes | R123: No | S123: Yes | T123: Yes | U123: Yes | V123: Yes | W123: No | X123: No | Y123: No | Z123: No | AA123: Yes | AB123: No | AC123: بدون | AF123: عامل مخزن الدرجه | AI123: Prouduction | BE123: المخازن | BF123: السيد كامل عبدالجواد محمد خطاب | BG123: 1548 | BI123: 36740 | BK123: 28844
A124: 13405 | B124: الصافي محمد علي | C124: بدون | D124: خدمات نظافة | E124: 1 | F124: 28 | G124: 2.463013699 | H124: 2018-06-21 | I124: 2019-06-21 | J124: 2020-12-06 | K124: 1993-04-25 | L124: 180 | M124: 2018-08-30 | N124: 2019-02-26 | O124: No | P124: Yes | Q124: Yes | R124: Yes | S124: Yes | T124: Yes | U124: Yes | V124: Yes | W124: No | X124: Yes | Y124: Yes | Z124: Yes | AA124: Yes | AB124: No | AC124: بدون | AF124: عامل مخزن الخام | AG124: الورق فاضي | AI124: Prouduction | BE124: خدمات نظافة | BF124: الصافي محمد علي | BG124: 13405 | BI124: 43272 | BK124: 34084
A125: 3802 | B125: ايهاب حسن علي راضي | C125: دبلوم صناعي | D125: المخازن | E125: 1 | F125: 44 | G125: 18.90684932 | H125: 2002-01-14 | I125: 2003-01-14 | J125: 2020-12-06 | K125: 1977-01-01 | L125: 180 | M125: 2001-03-21 | N125: 2001-09-17 | O125: Yes | P125: Yes | Q125: Yes | R125: Yes | S125: Yes | T125: Yes | U125: Yes | V125: Yes | W125: No | X125: No | Y125: No | Z125: No | AA125: Yes | AB125: No | AC125: متوسط | AF125: امين مخزن القاش الجاهز | AI125: Prouduction | BE125: المخازن | BF125: ايهاب حسن علي راضي | BG125: 3802 | BI125: 37270 | BK125: 28126
A126: 12155 | B126: جمعه محمد محمد قطب تعيلب | C126: بدون | D126: المخازن | E126: 1 | F126: 45 | G126: 6.797260274 | H126: 2014-02-20 | I126: 2015-02-20 | J126: 2020-12-06 | K126: 1976-01-30 | L126: 180 | M126: 2014-01-04 | N126: 2014-07-03 | O126: No | P126: Yes | Q126: Yes | R126: Yes | S126: Yes | T126: Yes | U126: Yes | V126: Yes | W126: No | X126: No | Y126: No | Z126: Yes | AA126: Yes | AB126: Yes | AC126: بدون | AF126: عامل مخزن القماش الجاهز | AI126: Prouduction | BE126: المخازن | BF126: جمعه محمد محمد قطب تعيلب | BG126: 12155 | BI126: 41690 | BK126: 27789
A127: 901 | B127: حافظ محمد محفوظ | C127: دبلوم صناعي | D127: المخازن | E127: 1 | F127: 56 | G127: 24.93424658 | H127: 1996-01-06 | I127: 1997-01-05 | J127: 2020-12-06 | K127: 1965-06-11 | L127: 180 | O127: Yes | P127: No | Q127: No | R127: No | S127: Yes | T127: Yes | U127: Yes | V127: Yes | W127: No | X127: No | Y127: No | Z127: No | AA127: Yes | AB127: No | AC127: بدون | AF127: عامل مخزن القماش الجاهز | AI127: Prouduction | BE127: المخازن | BF127: حافظ محمد محفوظ | BG127: 901 | BI127: 35070 | BK127: 23904
A128: 552 | B128: حجاج اسماعيل حسين جاد | C128: بدون | D128: المخازن | E128: 1 | F128: 55 | G128: 22.31506849 | H128: 1998-08-19 | I128: 1999-08-19 | J128: 2020-12-06 | K128: 1966-01-01 | L128: 180 | O128: No | P128: Yes | Q128: Yes | R128: Yes | S128: Yes | T128: Yes | U128: Yes | V128: Yes | W128: No | X128: No | Y128: No | Z128: No | AA128: Yes | AB128: No | AC128: بدون | AF128: عامل مخزن دايس | AI128: Prouduction | BE128: المخازن | BF128: حجاج اسماعيل حسين جاد | BG128: 552 | BI128: 36026 | BK128: 24108
A129: 5217 | B129: حسام الدين محمود علي القمني | C129: عهد فني صناعي | D129: المخازن | E129: 1 | F129: 42 | G129: 16.92328767 | H129: 2004-01-08 | I129: 2005-01-07 | J129: 2020-12-06 | K129: 1979-05-15 | L129: 180 | O129: Yes | P129: Yes | Q129: Yes | R129: Yes | S129: Yes | T129: No | U129: Yes | V129: Yes | W129: No | X129: No | Y129: No | Z129: No | AA129: Yes | AB129: No | AC129: فوق متوسط | AF129: امين مخزن الابر | AI129: Prouduction | BE129: المخازن | BF129: حسام الدين محمود علي القمني | BG129: 5217 | BI129: 37994 | BK129: 28990
A130: 13758 | B130: حسين احمد احمد الخضرجي | C130: بدون | D130: المخازن | E130: 1 | F130: 46 | G130: 1.915068493 | H130: 2019-01-07 | I130: =IF(OR(N(H130)=0,N(E130)=0),"",SUM(N(H130),N(E130*365))) -> 2020-01-07 | J130: =IF(B130="","",TODAY()) -> 2020-12-06 | K130: 1975-04-09 | L130: 180 | M130: 2019-02-18 | N130: =IF(OR(N(M130)=0,N(L130)=0),"",SUM(M130,L130)) -> 2019-08-17 | O130: No | P130: Yes | Q130: Yes | R130: Yes | S130: Yes | T130: Yes | U130: Yes | V130: Yes | W130: No | X130: No | Y130: No | Z130: Yes | AA130: Yes | AB130: No | AC130: بدون | AF130: عامل مخزن دايس | AI130: Prouduction | BE130: المخازن | BF130: =B130 -> حسين احمد احمد الخضرجي | BG130: =A130 -> 13758 | BI130: 43472 | BK130: =K130 -> 27493
A131: 13554 | B131: حسين خلف علي محمد | C131: بدون | D131: المخازن | E131: 1 | F131: =IF(SUM(N(J131),-N(K131))=0,"",ROUND(SUM(N(J131),-N(K131))/365,0)) -> 26 | G131: =IF(SUM(N(J131),-N(H131))=0,"",SUM(N(J131),-N(H131))/365) -> 1.928767123 | H131: 2019-01-02 | I131: 2020-01-02 | J131: 2020-12-06 | K131: 1995-03-06 | L131: 180 | M131: 2018-09-01 | N131: 2019-02-28 | O131: No | P131: Yes | Q131: Yes | R131: Yes | S131: Yes | T131: Yes | U131: No | V131: Yes | W131: No | X131: No | Y131: No | Z131: Yes | AA131: Yes | AB131: No | AC131: بدون | AF131: عامل مخزن القماش الجاهز | AG131: العقد فاضي | AI131: Prouduction | BE131: المخازن | BF131: حسين خلف علي محمد | BG131: 13554 | BI131: 43467 | BK131: 34764
A132: 530 | B132: رشاد مدحت محمود عبد الجواد جويد | C132: دبلوم صناعي | D132: المخازن | E132: 1 | F132: 43 | G132: 21.91506849 | H132: 1999-01-12 | I132: 2000-01-12 | J132: 2020-12-06 | K132: 1977-09-24 | L132: 180 | M132: 1999-11-13 | N132: 2000-05-11 | O132: Yes | P132: Yes | Q132: Yes | R132: Yes | S132: Yes | T132: Yes | U132: Yes | V132: Yes | W132: No | X132: No | Y132: No | Z132: No | AA132: Yes | AB132: No | AC132: متوسط | AF132: امين مساعد مخزن الخام | AI132: Prouduction | BE132: المخازن | BF132: رشاد مدحت محمود عبد الجواد جويد | BG132: 530 | BI132: 36172 | BK132: 28392
A133: 5107 | B133: سلامه جمعه عبد الشهيد محمد | C133: بدون | D133: المخازن | E133: 1 | F133: 48 | G133: 15.09041096 | H133: 2005-11-07 | I133: 2006-11-07 | J133: 2020-12-06 | K133: 1973-04-07 | L133: 180 | M133: 2005-05-07 | N133: 2005-11-03 | O133: No | P133: Yes | Q133: Yes | R133: Yes | S133: Yes | T133: Yes | U133: Yes | V133: No | W133: No | X133: No | Y133: No | Z133: No | AA133: Yes | AB133: No | AC133: بدون | AF133: عامل مخزن 6 ب | AI133: Prouduction | BE133: المخازن | BF133: سلامه جمعه عبد الشهيد محمد | BG133: 5107 | BI133: 38663 | BK133: 26761
A134: 5789 | B134: شعبان محمد عبد الرحمن السيد | C134: بدون | D134: المخازن | E134: 1 | F134: 46 | G134: 15.24931507 | H134: 2005-09-10 | I134: 2006-09-10 | J134: 2020-12-06 | K134: 1975-02-02 | L134: 180 | M134: 2005-08-09 | N134: 2006-02-05 | O134: No | P134: Yes | Q134: Yes | R134: Yes | S134: Yes | T134: Yes | U134: Yes | V134: Yes | W134: No | X134: No | Y134: No | Z134: No | AA134: Yes | AB134: No | AC134: بدون | AF134: عامل مخزن دايس | AI134: Prouduction | BE134: المخازن | BF134: شعبان محمد عبد الرحمن السيد | BG134: 5789 | BI134: 38605 | BK134: 27427
A135: 10364 | B135: صبري قاسم محمد قاقه | C135: دبلوم زراعه | D135: المخازن | E135: 1 | F135: 46 | G135: 10.66027397 | H135: 2010-04-12 | I135: 2011-04-12 | J135: 2020-12-06 | K135: 1974-11-19 | L135: 180 | M135: 2010-10-09 | N135: 2011-04-07 | O135: No | P135: Yes | Q135: Yes | R135: Yes | S135: Yes | T135: Yes | U135: Yes | V135: Yes | W135: No | X135: No | Y135: No | Z135: Yes | AA135: Yes | AB135: No | AC135: متوسط | AF135: عامل مخزن الخام | AI135: Prouduction | BE135: المخازن | BF135: صبري قاسم محمد قاقه | BG135: 10364 | BI135: 40280 | BK135: 27352
A136: 258 | B136: طارق عبدالعزيز عبدالعزيز سيلمان | C136: بدون | D136: المخازن | E136: 1 | F136: 52 | G136: 23.15890411 | H136: 1997-10-15 | I136: 1998-10-15 | J136: 2020-12-06 | K136: 1969-03-29 | L136: 180 | M136: 1997-09-30 | N136: 1998-03-29 | O136: No | P136: Yes | Q136: Yes | R136: Yes | S136: Yes | T136: Yes | U136: Yes | V136: Yes | W136: No | X136: No | Y136: No | Z136: No | AA136: Yes | AB136: No | AC136: بدون | AF136: عامل مخزن الغزل | AI136: Prouduction | BE136: المخازن | BF136: طارق عبدالعزيز عبدالعزيز سيلمان | BG136: 258 | BI136: 35718 | BK136: 25291
A137: 7213 | B137: عادل السيد عبيد شحاته | C137: بدون | D137: المخازن | E137: 1 | F137: 44 | G137: 14.83287671 | H137: 2006-02-09 | I137: 2007-02-09 | J137: 2020-12-06 | K137: 1977-03-29 | L137: 180 | M137: 2005-05-26 | N137: 2005-11-22 | O137: No | P137: Yes | Q137: Yes | R137: Yes | S137: Yes | T137: No | U137: Yes | V137: Yes | W137: No | X137: No | Y137: No | Z137: No | AA137: Yes | AB137: Yes | AC137: بدون | AF137: عامل مخزن الخام | AI137: Prouduction | BE137: المخازن | BF137: عادل السيد عبيد شحاته | BG137: 7213 | BI137: 38757 | BK137: 28213
A138: 582 | B138: عبدالجيد شريف عبدالجيد شريف | C138: بدون | D138: المخازن | E138: 1 | F138: 45 | G138: 20.88493151 | H138: 2000-01-23 | I138: 2001-01-22 | J138: 2020-12-06 | K138: 1975-07-27 | L138: 180 | M138: 1999-12-12 | N138: 2000-06-09 | O138: No | P138: Yes | Q138: Yes | R138: Yes | S138: Yes | T138: Yes | U138: Yes | V138: Yes | W138: No | X138: No | Y138: No | Z138: No | AA138: Yes | AB138: No | AC138: بدون | AF138: عامل مخزن الخام | AI138: Prouduction | BE138: المخازن | BF138: عبدالجيد شريف عبدالجيد شريف | BG138: 582 | BI138: 36548 | BK138: 27602
A139: 9066 | B139: محمود سعد محمود علي | C139: بكالوريس حقوق | D139: شؤون قانونية | E139: 1 | F139: 67 | G139: 24.94794521 | H139: 1996-01-01 | I139: 1996-12-31 | J139: 2020-12-06 | K139: 1953-10-20 | L139: 180 | O139: No | P139: No | Q139: No | R139: No | S139: Yes | T139: No | U139: Yes | V139: No | W139: No | X139: No | Y139: No | Z139: No | AA139: No | AB139: No | AC139: عالي | AE139: Alw001 | AF139: مدير عام الاداره القانونيه | AI139: Admin | BE139: شؤون قانونية | BF139: محمود سعد محمود علي | BG139: 9066 | BI139: 35065 | BK139: 19652
A140: 10260 | B140: محمد صلاح حمدي احمد ابو زيد | C140: بكالوريس حقوق | D140: شؤون قانونية | E140: 1 | F140: 37 | G140: 10.41369863 | H140: 2010-07-11 | I140: 2011-07-11 | J140: 2020-12-06 | K140: 1983-11-12 | L140: 180 | M140: 2010-10-07 | N140: 2011-04-05 | O140: Yes | P140: No | Q140: Yes | R140: Yes | S140: Yes | T140: Yes | U140: Yes | V140: Yes | W140: No | X140: No | Y140: No | Z140: Yes | AA140: Yes | AB140: Yes | AC140: عالي | AE140: Alw002 | AF140: محامي | AI140: Admin | BE140: شؤون قانونية | BF140: محمد صلاح حمدي احمد ابو زيد | BG140: 10260 | BI140: 40370 | BK140: 30632
A141: 9313 | B141: مدحت محمد احمد قاسم | C141: بكالورويس تجاره | D141: الحسابات | E141: 1 | F141: 35 | G141: 11.58356164 | H141: 2009-05-10 | I141: 2010-05-10 | J141: 2020-12-06 | K141: 1986-03-13 | L141: 180 | M141: 2009-08-22 | N141: 2010-02-18 | O141: Yes | P141: Yes | Q141: Yes | R141: Yes | S141: Yes | T141: Yes | U141: Yes | V141: Yes | W141: No | X141: No | Y141: No | Z141: Yes | AA141: Yes | AB141: No | AC141: عالي | AE141: Opu001 | AF141: مدير المشتريات | AI141: Admin | BE141: الحسابات | BF141: مدحت محمد احمد قاسم | BG141: 9313 | BI141: 39943 | BK141: 31484
A142: 750 | B142: عماد الدين فهمي عبدالمقصود | C142: دبلوم زراعه | D142: الحسابات | E142: 1 | F142: 55 | G142: 24.99178082 | H142: 1995-12-16 | I142: 1996-12-15 | J142: 2020-12-06 | K142: 1965-08-23 | L142: 180 | O142: No | P142: No | Q142: No | R142: Yes | S142: Yes | T142: No | U142: Yes | V142: Yes | W142: No | X142: No | Y142: No | Z142: No | AA142: Yes | AB142: No | AC142: متوسط | AE142: Opu002 | AF142: مندوب مشتريات | AI142: Admin | BE142: الحسابات | BF142: عماد الدين فهمي عبدالمقصود | BG142: 750 | BI142: 35049 | BK142: 23977
A143: 130 | B143: عصام الدين عبده سلامه موسي | C143: بكالورويس تجاره | D143: الحسابات | E143: 1 | F143: 54 | G143: 26.9260274 | H143: 1994-01-09 | I143: 1995-01-09 | J143: 2020-12-06 | K143: 1967-01-23 | L143: 180 | O143: Yes | P143: No | Q143: No | R143: Yes | S143: Yes | T143: No | U143: Yes | V143: No | W143: No | X143: No | Y143: No | Z143: No | AA143: Yes | AB143: No | AC143: عالي | AE143: Ofn001 | AF143: مدير قسم الاموال | AI143: Admin | BE143: الحسابات | BF143: عصام الدين عبده سلامه موسي | BG143: 130 | BI143: 34343 | BK143: 24495
A144: 996 | B144: اسماعيل صبري علي | C144: بكالوريوس تجاره | D144: الحسابات | E144: 1 | F144: 45 | G144: 26.94794521 | H144: 1994-01-01 | I144: 1995-01-01 | J144: 2020-12-06 | K144: 1975-07-10 | L144: 180 | M144: 1993-10-19 | N144: 1994-04-17 | O144: Yes | P144: No | Q144: Yes | R144: No | S144: Yes | T144: No | U144: Yes | V144: No | W144: No | X144: Yes | Y144: No | Z144: Yes | AA144: No | AB144: No | AC144: عالي | AE144: Ofn002 | AF144: مسؤول الخزينه | AI144: Admin | BE144: الحسابات | BF144: اسماعيل صبري علي | BG144: 996 | BI144: 34335 | BK144: 27585
A145: 10628 | B145: محمود محمد معروف احمد | C145: بكالويوس تجاره | D145: الحسابات | E145: 1 | F145: 35 | G145: 9.569863014 | H145: 2011-05-15 | I145: 2012-05-14 | J145: 2020-12-06 | K145: 1985-10-18 | L145: 180 | M145: 2001-04-19 | N145: 2001-10-16 | O145: Yes | P145: No | Q145: Yes | R145: Yes | S145: Yes | T145: Yes | U145: Yes | V145: Yes | W145: No | X145: No | Y145: No | Z145: Yes | AA145: No | AB145: No | AC145: عالي | AF145: محاسب مبيعات | AI145: Admin | BE145: الحسابات | BF145: محمود محمد معروف احمد | BG145: 10628 | BI145: 40678 | BK145: 31338
A146: 4555 | B146: محمد السيد عثمان احمد | C146: دبلوم تجاري | D146: الحسابات | E146: 1 | F146: 46 | G146: 18.94246575 | H146: 2002-01-01 | I146: 2003-01-01 | J146: 2020-12-06 | K146: 1975-04-27 | L146: 180 | M146: 2001-12-24 | N146: 2002-06-22 | O146: Yes | P146: No | Q146: Yes | R146: Yes | S146: No | T146: No | U146: Yes | V146: Yes | W146: No | X146: No | Y146: No | Z146: No | AA146: No | AB146: Yes | AC146: متوسط | AF146: مندوب مبيعات | AI146: Admin | BE146: الحسابات | BF146: محمد السيد عثمان احمد | BG146: 4555 | BI146: 37257 | BK146: 27511
A147: 10438 | B147: احمد كمال عبدالحفيظ عبدالحميد | C147: بكالوريوس تجاره | D147: الحسابات | E147: 1 | F147: 36 | G147: 9.8 | H147: 2011-02-20 | I147: 2012-02-20 | J147: 2020-12-06 | K147: 1985-04-03 | L147: 180 | M147: 2010-12-09 | N147: 2011-06-07 | O147: Yes | P147: Yes | Q147: Yes | R147: Yes | S147: Yes | T147: Yes | U147: Yes | V147: Yes | W147: No | X147: No | Y147: No | Z147: Yes | AA147: Yes | AB147: Yes | AC147: عالي | AF147: محاسب مبيعات | AI147: Admin | BE147: الحسابات | BF147: احمد كمال عبدالحفيظ عبدالحميد | BG147: 10438 | BI147: 40594 | BK147: 31140
A148: 114 | B148: سامح فتحي عجبان لوقا | C148: بكالوريوس تجاره | D148: الحسابات | E148: 1 | F148: 43 | G148: 20.9369863 | H148: 2000-01-04 | I148: 2001-01-03 | J148: 2020-12-06 | K148: 1977-10-28 | L148: 180 | O148: Yes | P148: Yes | Q148: No | R148: No | S148: Yes | T148: No | U148: Yes | V148: Yes | W148: No | X148: No | Y148: No | Z148: No | AA148: Yes | AB148: No | AC148: عالي | AE148: Oga001 | AF148: مسؤول حسابات الموردين | AI148: Admin | BE148: الحسابات | BF148: سامح فتحي عجبان لوقا | BG148: 114 | BI148: 36529 | BK148: 28426
A149: 116 | B149: محمد احمد علي محمد الديب | C149: معهد فني تجاري | D149: الحسابات | E149: 1 | F149: 51 | G149: 22.48493151 | H149: 1998-06-18 | I149: 1999-06-18 | J149: 2020-12-06 | K149: 1970-01-26 | L149: 180 | O149: Yes | P149: No | Q149: Yes | R149: No | S149: Yes | T149: No | U149: Yes | V149: Yes | W149: No | X149: No | Y149: No | Z149: No | AA149: No | AB149: No | AC149: فوق متوسط | AE149: Oga002 | AF149: محاسب الضرئب والاصول الثابته | AI149: Admin | BE149: الحسابات | BF149: محمد احمد علي محمد الديب | BG149: 116 | BI149: 35964 | BK149: 25594
A150: 13712 | B150: احمد عبدالكريم عبد العزيز | C150: بكالوريوس تجاره | D150: الحسابات | E150: 1 | F150: 29 | G150: 1.928767123 | H150: 2019-01-02 | I150: 2020-01-02 | J150: 2020-12-06 | K150: 1991-09-14 | L150: 180 | M150: 2018-11-17 | N150: 2019-05-16 | O150: Yes | P150: Yes | Q150: Yes | R150: Yes | S150: Yes | T150: Yes | U150: Yes | V150: No | W150: Yes | X150: No | Y150: No | Z150: Yes | AA150: Yes | AB150: No | AC150: عالي | AE150: Oga003 | AF150: محاسب مرقبة مخزون | AG150: العقد فاضي | AI150: Admin | BE150: الحسابات | BF150: احمد عبدالكريم عبد العزيز | BG150: 13712 | BI150: 43467 | BK150: 33495
A151: 140 | B151: شريف كمال شريف علي | C151: بكالوريوس تجاره | D151: الحسابات | E151: 1 | F151: 57 | G151: 20.54246575 | H151: 2000-05-27 | I151: 2001-05-27 | J151: 2020-12-06 | K151: 1964-01-03 | L151: 180 | M151: 2000-05-13 | N151: 2000-11-09 | O151: Yes | P151: Yes | Q151: Yes | R151: Yes | S151: Yes | T151: Yes | U151: Yes | V151: Yes | W151: No | X151: No | Y151: No | Z151: No | AA151: No | AB151: No | AC151: عالي | AE151: Apr001 | AF151: مسؤول العلاقات العامه | AI151: Admin | BE151: الحسابات | BF151: شريف كمال شريف علي | BG151: 140 | BI151: 36673 | BK151: 23379
A152: 0 | B152: اشرف عطا عمر عمر حريره | C152: بكالوريوس تجاره | D152: HR | E152: 1 | F152: 51 | G152: 22.84109589 | H152: 1998-02-08 | I152: 1999-02-08 | J152: 2020-12-06 | K152: 1969-12-09 | L152: 180 | O152: Yes | P152: Yes | Q152: Yes | R152: Yes | S152: Yes | T152: No | U152: Yes | V152: Yes | W152: No | X152: No | Y152: No | Z152: No | AA152: Yes | AB152: No | AC152: عالي | AE152: HR002 | AF152: مسؤول الاجور | AI152: Admin | BE152: HR | BF152: اشرف عطا عمر عمر حريره | BG152: 0 | BI152: 35834 | BK152: 25546
A153: 6896 | B153: محمد علي محمد ابو هيف | C153: دبلوم صناعي | D153: HR | E153: 1 | F153: 44 | G153: 14.60273973 | H153: 2006-05-04 | I153: 2007-05-04 | J153: 2020-12-06 | K153: 1976-08-08 | L153: 180 | O153: Yes | P153: Yes | Q153: No | R153: Yes | S153: Yes | T153: No | U153: Yes | V153: Yes | W153: No | X153: No | Y153: No | Z153: No | AA153: Yes | AB153: No | AC153: متوسط | AE153: HR003 | AF153: مندوب تامينات | AI153: Admin | BE153: HR | BF153: محمد علي محمد ابو هيف | BG153: 6896 | BI153: 38841 | BK153: 27980
A154: 1304 | B154: محمد علي مخمد احمد الفار | C154: بكالوريوس هندسه الكتورونيه | D154: IT | E154: 1 | F154: 52 | G154: 19.9369863 | H154: 2001-01-03 | I154: 2002-01-03 | J154: 2020-12-06 | K154: 1968-09-02 | L154: 180 | M154: 2001-01-14 | N154: 2001-07-13 | O154: Yes | P154: Yes | Q154: Yes | R154: Yes | S154: Yes | T154: Yes | U154: Yes | V154: Yes | W154: No | X154: No | Y154: No | Z154: No | AA154: Yes | AB154: No | AC154: عالي | AE154: Itm001 | AF154: مدير (it ) | AI154: Admin | BE154: IT | BF154: محمد علي مخمد احمد الفار | BG154: 1304 | BI154: 36894 | BK154: 25083
A155: 11488 | B155: باسم رشدي محمود محمد | C155: معهد حاسب الي | D155: IT | E155: 1 | F155: 33 | G155: 3.931506849 | H155: 2017-01-01 | I155: 2018-01-01 | J155: 2020-12-06 | K155: 1987-12-20 | L155: 180 | O155: No | P155: Yes | Q155: No | R155: Yes | S155: Yes | T155: Yes | U155: Yes | V155: Yes | W155: No | X155: No | Y155: No | Z155: Yes | AA155: Yes | AB155: No | AC155: فوق متوسط | AE155: Itn002 | AF155: اخصائي مبرامج اليه | AG155: العقد فاضي | AI155: Admin | BE155: IT | BF155: باسم رشدي محمود محمد | BG155: 11488 | BI155: 42736 | BK155: 32131
A156: 1303 | B156: النميري جمال عبد الرازق | C156: معهد فني صناعي | D156: IT | E156: 1 | F156: 49 | G156: 19.27671233 | H156: 2001-09-01 | I156: 2002-09-01 | J156: 2020-12-06 | K156: 1971-08-06 | L156: 180 | M156: 2000-10-30 | N156: 2001-04-28 | O156: Yes | P156: Yes | Q156: Yes | R156: No | S156: Yes | T156: Yes | U156: Yes | V156: Yes | W156: No | X156: No | Y156: No | Z156: No | AA156: Yes | AB156: No | AC156: فوق متوسط | AE156: Ith003 | AF156: فني اصلاح وصيانه حاسب الي | AI156: Admin | BE156: IT | BF156: النميري جمال عبد الرازق | BG156: 1303 | BI156: 37135 | BK156: 26151
A157: 1300 | B157: احمد عوض ابراهيم سلامه | C157: بكالوريوس تجاره | D157: IT | E157: 1 | F157: 51 | G157: 13.20273973 | H157: 2007-09-27 | I157: 2008-09-26 | J157: 2020-12-06 | K157: 1970-01-01 | L157: 180 | O157: Yes | P157: Yes | Q157: No | R157: No | S157: Yes | T157: Yes | U157: Yes | V157: Yes | W157: No | X157: No | Y157: No | Z157: Yes | AA157: Yes | AB157: No | AC157: عالي | AE157: Itd004 | AF157: مسؤول نظام (ERP) | AI157: Admin | BE157: IT | BF157: احمد عوض ابراهيم سلامه | BG157: 1300 | BI157: =H157 -> 39352 | BK157: 25569
A158: 1301 | B158: محمد احمد يوسف فراج | C158: معهد فني تجاري | D158: IT | E158: 1 | F158: 49 | G158: 24.60273973 | H158: 1996-05-06 | I158: 1997-05-06 | J158: 2020-12-06 | K158: 1971-10-29 | L158: 180 | O158: Yes | P158: No | Q158: No | R158: Yes | S158: Yes | T158: No | U158: Yes | V158: No | W158: No | X158: No | Y158: No | Z158: Yes | AA158: Yes | AB158: No | AC158: فوق متوسط | AE158: Ita005 | AF158: مسؤول برنامج اريك | AI158: Admin | BE158: =D158 -> IT | BF158: محمد احمد يوسف فراج | BG158: 1301 | BI158: 35191 | BK158: 26235
A159: 13629 | B159: محمد عبداللطيف عبدالله عبدالفتاح | C159: بكالوريوس علوم | D159: المصبغة | E159: 1 | F159: 26 | G159: 1.931506849 | H159: 2019-01-01 | I159: 2020-01-01 | J159: 2020-12-06 | K159: 1995-05-15 | L159: 180 | M159: 2018-10-09 | N159: 2019-04-07 | O159: No | P159: Yes | Q159: Yes | R159: Yes | S159: Yes | T159: Yes | U159: No | V159: Yes | W159: Yes | X159: No | Y159: No | Z159: Yes | AA159: Yes | AB159: No | AC159: عالي | AF159: مهندس صباغه | AG159: مفيش عقد الاورق فاضيه | AI159: Admin | BE159: المصبغة | BF159: محمد عبداللطيف عبدالله عبدالفتاح | BG159: 13629 | BI159: 43466 | BK159: 34834
A160: 9591 | B160: رجب عبد الفتاح عبد الرؤوف محمد | C160: بكالوريوس علوم | D160: المصبغة | E160: 1 | F160: 36 | G160: 10.18082192 | H160: 2010-10-04 | I160: 2011-10-04 | J160: 2020-12-06 | K160: 1985-03-23 | L160: 180 | M160: 2010-03-01 | N160: 2010-08-28 | O160: Yes | P160: Yes | Q160: Yes | R160: Yes | S160: Yes | T160: Yes | U160: Yes | V160: Yes | Z160: Yes | AA160: Yes | AB160: Yes | AF160: مساعد مدير المصبغه | BE160: المصبغة | BF160: رجب عبد الفتاح عبد الرؤوف محمد | BG160: 9591 | BI160: 40455 | BK160: 31129
A161: 13628 | B161: طاهر رجب طاهر احمد عبدالرحيم | C161: بكالوريوس كمياء | D161: المصبغة | E161: 1 | F161: 27 | G161: 1.931506849 | H161: 2019-01-01 | I161: 2020-01-01 | J161: 2020-12-06 | K161: 1993-08-19 | L161: 180 | O161: Yes | P161: Yes | Q161: No | R161: Yes | S161: Yes | T161: No | U161: No | V161: Yes | W161: Yes | X161: No | Y161: No | Z161: Yes | AA161: Yes | AB161: Yes | AC161: عالي | AF161: مهندس صباغه | AG161: مفيش عقد والورق فاضي | AI161: Admin | BE161: المصبغة | BF161: طاهر رجب طاهر احمد عبدالرحيم | BG161: 13628 | BI161: 43466 | BK161: 34200
A162: 7138 | B162: عصام عبد المنعم عبد الكريم عبدالله | C162: دبلوم صناعي | D162: المخازن | E162: 1 | F162: 39 | G162: 14.92054795 | H162: 2006-01-08 | I162: 2007-01-08 | J162: 2020-12-06 | K162: 1982-05-22 | L162: 180 | M162: 2006-03-19 | N162: 2006-09-15 | O162: No | P162: Yes | Q162: Yes | R162: Yes | S162: Yes | T162: No | U162: Yes | V162: Yes | W162: No | X162: No | Y162: No | Z162: No | AA162: Yes | AB162: Yes | AC162: متوسط | AF162: عامل مخزن دايس | AI162: Prouduction | BE162: المخازن | BF162: عصام عبد المنعم عبد الكريم عبدالله | BG162: 7138 | BI162: 38725 | BK162: 30093
A163: 13714 | B163: عصام محمد زكي مصطفي | C163: بدون | D163: المخازن | E163: 1 | F163: 49 | G163: 1.180821918 | H163: 2019-10-02 | I163: 2020-10-01 | J163: 2020-12-06 | K163: 1972-02-24 | L163: 180 | M163: 2018-11-14 | N163: 2019-05-13 | O163: No | P163: Yes | Q163: Yes | R163: Yes | S163: Yes | T163: Yes | U163: Yes | V163: Yes | W163: Yes | X163: No | Y163: No | Z163: Yes | AA163: Yes | AB163: No | AC163: بدون | AF163: عامل مخزن القماش الجاهز | AG163: العقد فاضي | AI163: Prouduction | BE163: المخازن | BF163: عصام محمد زكي مصطفي | BG163: 13714 | BI163: 43740 | BK163: 26353
A164: 13577 | B164: علاء محمد عبدالحليم هلال | C164: بدون | D164: المخازن | E164: 1 | F164: 40 | G164: 1.871232877 | H164: 2019-01-23 | I164: 2020-01-23 | J164: 2020-12-06 | K164: 1981-02-05 | L164: 180 | O164: No | P164: Yes | Q164: No | R164: Yes | S164: Yes | T164: Yes | U164: Yes | V164: Yes | W164: Yes | X164: No | Y164: No | Z164: Yes | AA164: Yes | AB164: No | AC164: بدون | AF164: عامل مخزن الخام | AG164: العقد فاضي | AI164: Prouduction | BE164: المخازن | BF164: علاء محمد عبدالحليم هلال | BG164: 13577 | BI164: 43488 | BK164: 29622
A165: 13917 | B165: علي حسين علي حسين | C165: دبلوم صناعي | D165: المخازن | E165: 1 | F165: 24 | G165: 1.082191781 | H165: 2019-11-07 | I165: 2020-11-06 | J165: 2020-12-06 | K165: 1996-11-15 | L165: 180 | M165: 2019-06-19 | N165: 2019-12-16 | O165: No | P165: Yes | Q165: Yes | R165: Yes | S165: Yes | T165: Yes | U165: Yes | V165: Yes | W165: Yes | X165: No | Y165: No | Z165: Yes | AA165: Yes | AB165: No | AC165: بدون | AF165: عامل مخزن مستلزمات | AI165: Prouduction | BE165: المخازن | BF165: علي حسين علي حسين | BG165: 13917 | BI165: 43776 | BK165: 35384
A166: 10460 | B166: عماد شعبان عبدالله محمد | C166: بدون | D166: المخازن | E166: 1 | F166: 36 | G166: 9.8 | H166: 2011-02-20 | I166: 2012-02-20 | J166: 2020-12-06 | K166: 1985-03-30 | L166: 180 | M166: 2011-03-15 | N166: 2011-09-11 | O166: No | P166: Yes | Q166: Yes | R166: Yes | S166: Yes | T166: Yes | U166: Yes | V166: Yes | W166: No | X166: No | Y166: No | Z166: Yes | AA166: No | AB166: Yes | AC166: بدون | AF166: عامل مخزن الخام | AI166: Prouduction | BE166: المخازن | BF166: عماد شعبان عبدالله محمد | BG166: 10460 | BI166: 40594 | BK166: 31136
A167: 13971 | B167: عمر صبري ابراهيم محمد حماد | C167: بدون | D167: المخازن | E167: 1 | F167: 25 | G167: 1.112328767 | H167: 2019-10-27 | I167: 2020-10-26 | J167: 2020-12-06 | K167: 1995-09-10 | L167: 180 | M167: 2019-09-09 | N167: 2020-03-07 | O167: No | P167: Yes | Q167: Yes | R167: Yes | S167: Yes | T167: Yes | U167: Yes | V167: Yes | W167: No | X167: No | Y167: No | Z167: Yes | AA167: No | AB167: No | AC167: بدون | AF167: عامل مخزن الخام | AI167: Prouduction | BE167: المخازن | BF167: عمر صبري ابراهيم محمد حماد | BG167: 13971 | BI167: 43765 | BK167: 34952
A168: 1126 | B168: علي محمود علي محمود | C168: دبلوم صناعي | D168: المخازن | E168: 1 | F168: 31 | G168: 8.575342466 | H168: 2012-05-12 | I168: 2013-05-12 | J168: 2020-12-06 | K168: 1989-07-06 | L168: 180 | M168: 2012-11-10 | N168: 2013-05-09 | O168: No | P168: Yes | Q168: Yes | R168: Yes | S168: Yes | T168: No | U168: Yes | V168: Yes | W168: No | X168: No | Y168: No | Z168: Yes | AA168: Yes | AB168: Yes | AC168: متوسط | AF168: عامل مخزن دايس | AI168: Prouduction | BE168: المخازن | BF168: علي محمود علي محمود | BG168: 1126 | BI168: 41041 | BK168: 32695
A169: 561 | B169: عيد عبدالله بسيوني محمد | C169: دبلوم زراعي | D169: المخازن | E169: 1 | F169: 47 | G169: 21.85205479 | H169: 1999-02-04 | I169: 2000-02-04 | J169: 2020-12-06 | K169: 1973-12-02 | L169: 180 | M169: 1999-01-16 | N169: 1999-07-15 | O169: Yes | P169: Yes | Q169: Yes | R169: Yes | S169: Yes | T169: Yes | U169: Yes | V169: Yes | W169: No | X169: No | Y169: No | Z169: No | AA169: Yes | AB169: No | AC169: متوسط | AF169: امين مخزن البواقي | AI169: Prouduction | BE169: المخازن | BF169: عيد عبدالله بسيوني محمد | BG169: 561 | BI169: 36195 | BK169: 27000
A170: 531 | B170: فرج ناجي جويد زايد | C170: بدون | D170: المخازن | E170: 1 | F170: 40 | G170: 21.64383562 | H170: 1999-04-21 | I170: 2000-04-20 | J170: 2020-12-06 | K170: 1981-03-30 | L170: 180 | O170: No | P170: Yes | Q170: No | R170: Yes | S170: Yes | T170: Yes | U170: Yes | V170: Yes | W170: No | X170: No | Y170: No | Z170: No | AA170: Yes | AB170: No | AC170: بدون | AF170: امين مخزن الدرجه | AI170: Prouduction | BE170: المخازن | BF170: فرج ناجي جويد زايد | BG170: 531 | BI170: 36271 | BK170: 29675
A171: 7790 | B171: محمد حجاب محمد زيدان الجبارسي | C171: دبلوم زراعي | D171: المخازن | E171: 1 | F171: 34 | G171: 13.78356164 | H171: 2007-02-27 | I171: 2008-02-27 | J171: 2020-12-06 | K171: 1987-01-18 | L171: 180 | M171: 2007-02-24 | N171: 2007-08-23 | O171: Yes | P171: Yes | Q171: Yes | R171: Yes | S171: Yes | T171: No | U171: Yes | V171: Yes | W171: No | X171: No | Y171: No | Z171: Yes | AA171: No | AB171: No | AC171: متوسط | AF171: عامل مخزن دايس | AI171: Prouduction | BE171: المخازن | BF171: محمد حجاب محمد زيدان الجبارسي | BG171: 7790 | BI171: 39140 | BK171: 31795
A172: 10151 | B172: محمد حسين محمد عبداللا | C172: دبلوم صناعي | D172: المخازن | E172: 1 | F172: 44 | G172: 10.14520548 | H172: 2010-10-17 | I172: 2011-10-17 | J172: 2020-12-06 | K172: 1976-10-06 | L172: 180 | M172: 2010-09-28 | N172: 2011-03-27 | O172: Yes | P172: Yes | Q172: Yes | R172: Yes | S172: Yes | T172: Yes | U172: Yes | V172: Yes | W172: No | X172: No | Y172: No | Z172: Yes | AA172: Yes | AB172: No | AC172: متوسط | AF172: عامل مخزن دايس | AI172: Prouduction | BE172: المخازن | BF172: محمد حسين محمد عبداللا | BG172: 10151 | BI172: 40468 | BK172: 28039
A173: 562 | B173: محمد زكي محمود بدوي | C173: دبلوم صناعي | D173: المخازن | E173: 1 | F173: 45 | G173: 21.01917808 | H173: 1999-12-05 | I173: 2000-12-04 | J173: 2020-12-06 | K173: 1976-04-27 | L173: 180 | O173: Yes | P173: Yes | Q173: No | R173: Yes | S173: Yes | T173: Yes | U173: Yes | V173: Yes | W173: No | X173: No | Y173: No | Z173: No | AA173: Yes | AB173: No | AC173: متوسط | AF173: عامل مخزن الخام | AI173: Prouduction | BE173: المخازن | BF173: محمد زكي محمود بدوي | BG173: 562 | BI173: 36499 | BK173: 27877
A174: 632 | B174: محمد شاكر عبدالجيد شريف | C174: دبلوم صناعي | D174: المخازن | E174: 1 | F174: 42 | G174: 21.4739726 | H174: 1999-06-22 | I174: 2000-06-21 | J174: 2020-12-06 | K174: 1978-09-26 | L174: 180 | M174: 1999-05-30 | N174: 1999-11-26 | O174: Yes | P174: Yes | Q174: Yes | R174: Yes | S174: Yes | T174: Yes | U174: Yes | V174: No | W174: No | X174: No | Y174: No | Z174: No | AA174: Yes | AB174: No | AC174: متوسط | AF174: امين مخزن المستلزمات | AI174: Prouduction | BE174: المخازن | BF174: محمد شاكر عبدالجيد شريف | BG174: 632 | BI174: 36333 | BK174: 28759
A175: 7934 | B175: محمد شوقي فهمي حسن | C175: دبلوم تجاره | D175: المخازن | E175: 1 | F175: 46 | G175: 13.59726027 | H175: 2007-05-06 | I175: 2008-05-05 | J175: 2020-12-06 | K175: 1974-07-14 | L175: 180 | M175: 2007-05-21 | N175: 2007-11-17 | O175: Yes | P175: Yes | Q175: Yes | R175: Yes | S175: Yes | T175: Yes | U175: Yes | V175: Yes | W175: No | X175: No | Y175: No | Z175: Yes | AA175: Yes | AB175: No | AC175: متوسط | AF175: امين مخزن الاستيك | AI175: Prouduction | BE175: المخازن | BF175: محمد شوقي فهمي حسن | BG175: 7934 | BI175: 39208 | BK175: 27224
A176: 4041 | B176: محمد عبدالحميد عبدالمعطي عطيه | C176: بدون | D176: المخازن | E176: 1 | F176: 43 | G176: 14.66027397 | H176: 2006-04-13 | I176: 2007-04-13 | J176: 2020-12-06 | K176: 1977-12-10 | L176: 180 | M176: 2006-03-15 | N176: 2006-09-11 | O176: No | P176: Yes | Q176: Yes | R176: Yes | S176: Yes | T176: Yes | U176: Yes | V176: Yes | W176: No | X176: No | Y176: No | Z176: No | AA176: Yes | AB176: No | AF176: عامل مخزن الغزل | AI176: Prouduction | BE176: المخازن | BF176: محمد عبدالحميد عبدالمعطي عطيه | BG176: 4041 | BI176: 38820 | BK176: 28469
A177: 3920 | B177: محمد محمد مزارع سليم | C177: بدون مؤهل | D177: المخازن | E177: 1 | F177: 60 | G177: 19.75890411 | H177: 2001-03-09 | I177: 2002-03-09 | J177: 2020-12-06 | K177: 1961-03-03 | L177: 180 | O177: No | P177: Yes | Q177: Yes | R177: Yes | S177: Yes | T177: Yes | U177: Yes | V177: Yes | W177: No | X177: No | Y177: No | Z177: No | AA177: Yes | AB177: No | AC177: بدون | AF177: عامل مخزن البواقي | AI177: Prouduction | BE177: المخازن | BF177: محمد محمد مزارع سليم | BG177: 3920 | BI177: 36959 | BK177: 22343
A178: 10115 | B178: محمد محممود عبدالعزيز المرسي | C178: بدون | D178: المخازن | E178: 1 | F178: 38 | G178: 10.41369863 | H178: 2010-07-11 | I178: 2011-07-11 | J178: 2020-12-06 | K178: 1983-02-23 | L178: 180 | M178: 2010-08-10 | N178: 2011-02-06 | O178: No | P178: Yes | Q178: Yes | R178: Yes | S178: Yes | T178: Yes | U178: Yes | V178: Yes | W178: Yes | X178: No | Y178: No | Z178: No | AA178: Yes | AB178: Yes | AC178: بدون | AF178: عامل مخزن دايس | AI178: Prouduction | BE178: المخازن | BF178: محمد محممود عبدالعزيز المرسي | BG178: 10115 | BI178: 40370 | BK178: 30370
A179: 7100 | B179: محمود جاد الكريم محمد محمد | C179: بدون | D179: المخازن | E179: 1 | F179: 48 | G179: 14.9260274 | H179: 2006-01-06 | I179: 2007-01-06 | J179: 2020-12-06 | K179: 1972-10-19 | L179: 180 | M179: 2006-05-06 | N179: 2006-11-02 | O179: No | P179: Yes | Q179: Yes | R179: Yes | S179: Yes | T179: Yes | U179: Yes | V179: Yes | W179: No | X179: No | Y179: No | Z179: No | AA179: Yes | AB179: No | AC179: بدون | AF179: عامل مخزن الغزل | AI179: Prouduction | BE179: المخازن | BF179: محمود جاد الكريم محمد محمد | BG179: 7100 | BI179: 38723 | BK179: 26591
A180: 10501 | B180: محمود شاكر احمد السيد اللافي | C180: بدون | D180: المخازن | E180: 1 | F180: 33 | G180: 9.849315068 | H180: 2011-02-02 | I180: 2012-02-02 | J180: 2020-12-06 | K180: 1987-08-01 | L180: 180 | M180: 2011-03-17 | N180: 2011-09-13 | O180: No | P180: Yes | Q180: Yes | R180: Yes | S180: Yes | T180: Yes | U180: Yes | V180: Yes | W180: No | X180: No | Y180: No | Z180: No | AA180: Yes | AB180: Yes | AC180: بدون | AF180: عامل مخزن الخام | AI180: Prouduction | BE180: المخازن | BF180: محمود شاكر احمد السيد اللافي | BG180: 10501 | BI180: 40576 | BK180: 31990
A181: 13901 | B181: محمود صابر محمود الطباخ | C181: بكالوريوس رقابه جوده | D181: المخازن | E181: 1 | F181: 26 | G181: 1.536986301 | H181: 2019-05-25 | I181: 2020-05-24 | J181: 2020-12-06 | K181: 1995-04-02 | L181: 180 | M181: 2019-05-15 | N181: 2019-11-11 | O181: No | P181: Yes | Q181: Yes | R181: Yes | S181: Yes | T181: Yes | U181: Yes | V181: Yes | W181: Yes | X181: No | Y181: No | Z181: Yes | AA181: Yes | AB181: No | AC181: عالي | AF181: عامل مخزن الابر | AI181: Prouduction | BE181: المخازن | BF181: محمود صابر محمود الطباخ | BG181: 13901 | BI181: 43610 | BK181: 34791
A182: 1116 | B182: محمود عبد الغني احمد علي ابو يوسف | C182: دبلوم صناعي | D182: المخازن | E182: 1 | F182: 44 | G182: 23.58082192 | H182: 1997-05-14 | I182: 1998-05-14 | J182: 2020-12-06 | K182: 1977-02-04 | L182: 180 | M182: 1997-04-29 | N182: 1997-10-26 | O182: No | P182: Yes | Q182: Yes | R182: Yes | S182: Yes | T182: Yes | U182: Yes | V182: Yes | W182: No | X182: No | Y182: No | Z182: No | AA182: No | AB182: No | AC182: متوسط | AF182: عامل مخزن الغزل | AI182: Prouduction | BE182: المخازن | BF182: محمود عبد الغني احمد علي ابو يوسف | BG182: 1116 | BI182: 35564 | BK182: 28160
A183: 339 | B183: محمود محمد ابو المجد | C183: بدون | D183: المخازن | E183: 1 | F183: 50 | G183: 16.83287671 | H183: 2004-02-10 | I183: 2005-02-09 | J183: 2020-12-06 | K183: 1970-07-13 | L183: 180 | M183: 2004-05-04 | N183: 2004-10-31 | O183: No | P183: Yes | Q183: Yes | R183: Yes | S183: Yes | T183: Yes | U183: Yes | V183: Yes | W183: No | X183: No | Y183: No | Z183: No | AA183: Yes | AB183: No | AC183: بدون | AF183: عامل مخزن دايس | AI183: Prouduction | BE183: المخازن | BF183: محمود محمد ابو المجد | BG183: 339 | BI183: 38027 | BK183: 25762
A184: 525 | B184: محمود محمد علي ابراهيم | C184: دبلوم تجاره | D184: المخازن | E184: 1 | F184: 58 | G184: 25.36986301 | H184: 1995-07-31 | I184: 1996-07-30 | J184: 2020-12-06 | K184: 1962-08-25 | L184: 180 | O184: Yes | P184: No | Q184: No | R184: Yes | S184: Yes | T184: Yes | U184: Yes | V184: Yes | W184: No | X184: No | Y184: No | Z184: No | AA184: Yes | AB184: No | AC184: متوسط | AF184: امين مخزن الغزل | AI184: Prouduction | BE184: المخازن | BF184: محمود محمد علي ابراهيم | BG184: 525 | BI184: 34911 | BK184: 22883
A185: 2601 | B185: مصطفي علي مصطفي عاشور علي | C185: دبلوم صناعي | D185: المخازن | E185: 1 | F185: 46 | G185: 16.73424658 | H185: 2004-03-17 | I185: 2005-03-17 | J185: 2020-12-06 | K185: 1975-01-22 | L185: 180 | M185: 2003-12-30 | N185: 2004-06-27 | O185: Yes | P185: Yes | Q185: Yes | R185: Yes | S185: Yes | T185: Yes | U185: Yes | V185: No | W185: No | X185: No | Y185: No | Z185: No | AA185: Yes | AB185: No | AC185: متوسط | AF185: امين مخزن دايس | AI185: Prouduction | BE185: المخازن | BF185: مصطفي علي مصطفي عاشور علي | BG185: 2601 | BI185: 38063 | BK185: 27416
A186: 6620 | B186: منصور سالم رشيد عبدالرواف | C186: بدون | D186: المخازن | E186: 1 | F186: 36 | G186: 14.81917808 | H186: 2006-02-14 | I186: 2007-02-14 | J186: 2020-12-06 | K186: 1985-02-01 | L186: 180 | M186: 2005-12-11 | N186: 2006-06-09 | O186: No | P186: Yes | Q186: Yes | R186: No | S186: Yes | T186: Yes | U186: Yes | V186: Yes | W186: No | X186: No | Y186: No | Z186: No | AA186: Yes | AB186: No | AC186: بدون | AF186: عامل مخزن القماش الجاهز | AI186: Prouduction | BE186: المخازن | BF186: منصور سالم رشيد عبدالرواف | BG186: 6620 | BI186: 38762 | BK186: 31079
A187: 2046 | B187: منصوره صبره محمد عبد العال | C187: بدون | D187: المخازن | E187: 1 | F187: 52 | G187: 25.71780822 | H187: 1995-03-26 | I187: 1996-03-25 | J187: 2020-12-06 | K187: 1968-11-19 | L187: 180 | O187: No | P187: No | Q187: No | R187: Yes | S187: Yes | T187: Yes | U187: Yes | V187: Yes | W187: No | X187: No | Y187: No | Z187: No | AA187: Yes | AB187: No | AC187: بدون | AF187: عامل مخزن قماش جاهز | AI187: Prouduction | BE187: المخازن | BF187: منصوره صبره محمد عبد العال | BG187: 2046 | BI187: 34784 | BK187: 25161
A188: 6924 | B188: نعيم فاروق حسن راضي | C188: بدون مؤهل | D188: المخازن | E188: 1 | F188: 45 | G188: 14.66027397 | H188: 2006-04-13 | I188: 2007-04-13 | J188: 2020-12-06 | K188: 1976-03-07 | L188: 180 | M188: 2006-03-08 | N188: 2006-09-04 | O188: No | P188: Yes | Q188: Yes | R188: Yes | S188: Yes | T188: No | U188: Yes | V188: Yes | W188: No | X188: No | Y188: No | Z188: No | AA188: Yes | AB188: No | AC188: بدون | AF188: عامل مخزن الرابش | AI188: Prouduction | BE188: المخازن | BF188: نعيم فاروق حسن راضي | BG188: 6924 | BI188: 38820 | BK188: 27826
A189: 527 | B189: هشام سعيد مرعي مصلوبي | C189: بدون | D189: المخازن | E189: 1 | F189: 48 | G189: 22.91780822 | H189: 1998-01-11 | I189: 1999-01-11 | J189: 2020-12-06 | K189: 1972-10-05 | L189: 180 | M189: 1998-08-24 | N189: 1999-02-20 | O189: No | P189: Yes | Q189: Yes | R189: Yes | S189: Yes | T189: Yes | U189: Yes | V189: Yes | W189: No | X189: Yes | Y189: No | Z189: No | AA189: Yes | AB189: No | AC189: بدون | AF189: عامل مخزن الغزل | AI189: Prouduction | BE189: المخازن | BF189: هشام سعيد مرعي مصلوبي | BG189: 527 | BI189: 35806 | BK189: 26577
A190: 661 | B190: وائل عبدالعزيز عبد الجليل احمد جمعه | C190: الاعداديه | D190: المخازن | E190: 1 | F190: 41 | G190: 22.82191781 | H190: 1998-02-15 | I190: 1999-02-15 | J190: 2020-12-06 | K190: 1979-12-14 | L190: 180 | M190: 1998-03-16 | N190: 1998-09-12 | O190: Yes | P190: Yes | Q190: Yes | R190: Yes | S190: Yes | T190: Yes | U190: Yes | V190: Yes | W190: No | X190: No | Y190: No | Z190: No | AA190: Yes | AB190: No | AC190: بدون | AF190: عامل مخزن القماش الجاهز | AI190: Prouduction | BE190: المخازن | BF190: وائل عبدالعزيز عبد الجليل احمد جمعه | BG190: 661 | BI190: 35841 | BK190: 29203
A191: 9358 | B191: وليد صلاح علي جلاله | C191: ليسانس حقوق | D191: المخازن | E191: 1 | F191: 47 | G191: 11.14246575 | H191: 2009-10-18 | I191: 2010-10-18 | J191: 2020-12-06 | K191: 1974-05-08 | L191: 180 | M191: 2009-09-23 | N191: 2010-03-22 | O191: Yes | P191: Yes | Q191: Yes | R191: Yes | S191: Yes | T191: Yes | U191: Yes | V191: Yes | W191: No | X191: No | Y191: No | Z191: Yes | AA191: Yes | AB191: No | AC191: عالي | AF191: امين مخزن الخام | AI191: Prouduction | BE191: المخازن | BF191: وليد صلاح علي جلاله | BG191: 9358 | BI191: 40104 | BK191: 27157
A192: 560 | B192: وليد محمد موسي عبد الوهاب | C192: دبلوم صناعي | D192: المخازن | E192: 1 | F192: 50 | G192: 20.25479452 | H192: 2000-09-09 | I192: 2001-09-09 | J192: 2020-12-06 | K192: 1971-01-20 | L192: 180 | M192: 2000-08-03 | N192: 2001-01-30 | O192: No | P192: Yes | Q192: Yes | R192: Yes | S192: Yes | T192: No | U192: Yes | V192: Yes | W192: No | X192: No | Y192: No | Z192: No | AA192: No | AB192: No | AC192: متوسط | AF192: امين مخزن قطع الغيار | AI192: Prouduction | BE192: المخازن | BF192: وليد محمد موسي عبد الوهاب | BG192: 560 | BI192: 36778 | BK192: 25953
A193: 9332 | B193: احمد عادل محمد محمد | C193: دبلوم صناعي | D193: الامن الصناعي | E193: 1 | F193: 39 | G193: 18.15068493 | H193: 2002-10-17 | I193: 2003-10-17 | J193: 2020-12-06 | K193: 1982-03-26 | L193: 180 | M193: 2009-06-21 | N193: 2009-12-18 | O193: Yes | P193: Yes | Q193: Yes | R193: No | S193: Yes | T193: Yes | U193: Yes | V193: Yes | W193: No | X193: No | Y193: No | Z193: Yes | AA193: Yes | AB193: No | AC193: متوسط | AF193: مراقب امن صناعي | AI193: Prouduction | BE193: الامن الصناعي | BF193: احمد عادل محمد محمد | BG193: 9332 | BI193: 37546 | BK193: 30036
A194: 7677 | B194: سعيد عبدالحافظ عبدالله المصري | C194: معهد فني تجاري | D194: الامن الصناعي | E194: 1 | F194: 46 | G194: 13.81917808 | H194: 2007-02-14 | I194: =IF(OR(N(H194)=0,N(E194)=0),"",SUM(N(H194),N(E194*365))) -> 2008-02-14 | J194: =IF(B194="","",TODAY()) -> 2020-12-06 | K194: 1975-03-31 | L194: 180 | M194: 2006-10-29 | N194: =IF(OR(N(M194)=0,N(L194)=0),"",SUM(M194,L194)) -> 2007-04-27 | O194: Yes | P194: Yes | Q194: Yes | R194: Yes | S194: Yes | T194: No | U194: Yes | V194: Yes | W194: No | X194: No | Y194: No | Z194: Yes | AA194: Yes | AB194: Yes | AC194: فوق متوسط | AF194: مراقب امن صناعي | AI194: Prouduction | BE194: الامن الصناعي | BF194: =B194 -> سعيد عبدالحافظ عبدالله المصري | BG194: =A194 -> 7677 | BI194: 39127 | BK194: =K194 -> 27484
A195: 10289 | B195: كريم السيد ابراهيم علي عبدالرحيم | C195: دبلوم تجاري | D195: الامن الصناعي | E195: 1 | F195: =IF(SUM(N(J195),-N(K195))=0,"",ROUND(SUM(N(J195),-N(K195))/365,0)) -> 33 | G195: =IF(SUM(N(J195),-N(H195))=0,"",SUM(N(J195),-N(H195))/365) -> 9.8 | H195: 2011-02-20 | I195: 2012-02-20 | J195: 2020-12-06 | K195: 1987-09-14 | L195: 180 | M195: 2010-11-02 | N195: 2011-05-01 | O195: Yes | P195: Yes | Q195: Yes | R195: Yes | S195: Yes | T195: Yes | U195: Yes | V195: Yes | W195: No | X195: No | Y195: No | Z195: Yes | AA195: Yes | AB195: Yes | AC195: متوسط | AF195: مراقب امن صناعي | AI195: Prouduction | BE195: الامن الصناعي | BF195: كريم السيد ابراهيم علي عبدالرحيم | BG195: 10289 | BI195: 40594 | BK195: 32034
A196: 9953 | B196: كرم احمد محمد عمر | C196: دبلوم صناعي | D196: الامن الصناعي | E196: 1 | F196: 37 | G196: 10.29041096 | H196: 2010-08-25 | I196: 2011-08-25 | J196: 2020-12-06 | K196: 1984-04-09 | L196: 180 | M196: 2010-08-08 | N196: 2011-02-04 | O196: Yes | P196: Yes | Q196: Yes | R196: Yes | S196: Yes | T196: Yes | U196: Yes | V196: Yes | W196: No | X196: No | Y196: No | Z196: Yes | AA196: Yes | AB196: No | AC196: متوسط | AF196: مراقب امن صناعي | AI196: Prouduction | BE196: الامن الصناعي | BF196: كرم احمد محمد عمر | BG196: 9953 | BI196: 40415 | BK196: 30781
A197: 9793 | B197: محمد فوزي علي خلف محمد | C197: دبلوم صناعي | D197: الامن الصناعي | E197: 1 | F197: 33 | G197: 10.55890411 | H197: 2010-05-19 | I197: 2011-05-19 | J197: 2020-12-06 | K197: 1988-01-01 | L197: 180 | M197: 2010-03-22 | N197: 2010-09-18 | O197: Yes | P197: Yes | Q197: Yes | R197: Yes | S197: Yes | T197: Yes | U197: Yes | V197: Yes | W197: No | X197: No | Y197: No | Z197: Yes | AA197: Yes | AB197: No | AC197: متوسط | AF197: مراقب امن صناعي | AI197: Prouduction | BE197: الامن الصناعي | BF197: محمد فوزي علي خلف محمد | BG197: 9793 | BI197: 40317 | BK197: 32143
A198: 11360 | B198: احمد فرج مرسال مبروك | C198: معهد فني صناعي | D198: الامن | E198: 1 | F198: 42 | G198: 8.663013699 | H198: 2012-04-10 | I198: 2013-04-10 | J198: 2020-12-06 | K198: 1979-03-25 | L198: 180 | M198: 2018-03-15 | N198: 2018-09-11 | O198: Yes | P198: Yes | Q198: No | R198: Yes | S198: Yes | T198: Yes | U198: Yes | V198: Yes | W198: No | X198: No | Y198: No | Z198: Yes | AA198: Yes | AB198: Yes | AC198: فوق متوسط | AF198: مراقب امن | AI198: Prouduction | BE198: الامن | BF198: احمد فرج مرسال مبروك | BG198: 11360 | BI198: 41009 | BK198: 28939
A199: 7925 | B199: محمد زكريا محمد محمد نويشي | C199: دبلوم زراعي | D199: الامن | E199: 1 | F199: 24 | G199: 9.8 | H199: 2011-02-20 | I199: 2012-02-20 | J199: 2020-12-06 | K199: 1996-06-24 | L199: 180 | M199: 2018-03-12 | N199: 2018-09-08 | O199: Yes | P199: Yes | Q199: No | R199: Yes | S199: Yes | T199: Yes | U199: Yes | V199: Yes | W199: No | X199: No | Y199: No | Z199: Yes | AA199: Yes | AB199: No | AC199: متوسط | AF199: مراقب امن | AI199: Prouduction | BE199: الامن | BF199: محمد زكريا محمد محمد نويشي | BG199: 7925 | BI199: 40594 | BK199: 35240
A200: 8635 | B200: كامل سليم احمد عبيد | C200: بكالوريوس زراعه | D200: الامن | E200: 1 | F200: 52 | G200: 3.408219178 | H200: 2017-07-11 | I200: 2018-07-11 | J200: 2020-12-06 | K200: 1969-01-20 | L200: 180 | M200: 2017-10-14 | N200: 2018-04-12 | O200: Yes | P200: Yes | Q200: Yes | R200: Yes | S200: Yes | T200: Yes | U200: Yes | V200: Yes | W200: No | X200: No | Y200: No | Z200: Yes | AA200: Yes | AB200: Yes | AC200: عالي | AF200: مراقب امن | AI200: Prouduction | BE200: الامن | BF200: كامل سليم احمد عبيد | BG200: 8635 | BI200: 42927 | BK200: 25223
... 799 more rows

Sheet الادارة
A1: رقم الكارتة | B1: الاسم | C1: أسم المؤهل | D1: القسم | E1: السن | F1: الخبرة | G1: بداية التعين | H1: تاريخ انتهاء العقد | I1: تاريخ اليوم | J1: تاريخ الميلاد | K1: بداية الفيش | L1: انتهاء الفيش | M1: المؤهل | N1: كعب العمل | O1: الفيش | P1: شهادة الميلاد | Q1: صورة البطاقة | R1: صورة شخصية | S1: العقد | T1: استمارة 1 | U1: استمارة 6 | V1: استقالة | W1: اخلاء طرف | X1: اقرار استلام عمل | Y1: صحيفة الحالة الاجتماعية | Z1: أستمارة 11 | AA1: نوع المؤهل | AB1: رقم كود الادارة | AC1: الوظيفة | AD1: ملاحظات | AE1: القسم العام | AF1: عالي

Sheet HR
A1: رقم الكارتة | B1: الاسم | C1: أسم المؤهل | D1: القسم | E1: السن | F1: الخبرة | G1: بداية التعين | H1: تاريخ انتهاء العقد | I1: تاريخ اليوم | J1: تاريخ الميلاد | K1: بداية الفيش | L1: انتهاء الفيش | M1: المؤهل | N1: كعب العمل | O1: الفيش | P1: شهادة الميلاد | Q1: صورة البطاقة | R1: صورة شخصية | S1: العقد | T1: استمارة 1 | U1: استمارة 6 | V1: استقالة | W1: اخلاء طرف | X1: اقرار استلام عمل | Y1: صحيفة الحالة الاجتماعية | Z1: أستمارة 11 | AA1: نوع المؤهل | AB1: رقم كود الادارة | AC1: الوظيفة | AD1: ملاحظات | AE1: القسم العام | AF1: عالي
A2: 0 | B2: اشرف عطا عمر عمر حريره | C2: بكالوريوس تجاره | D2: HR | E2: 51 | F2: 22.83287671 | G2: 1998-02-08 | H2: 1999-02-08 | I2: 2020-12-03 | J2: 1969-12-09 | M2: Yes | N2: Yes | O2: Yes | P2: Yes | Q2: Yes | R2: No | S2: Yes | T2: Yes | U2: No | V2: No | W2: No | X2: No | Y2: Yes | Z2: No | AA2: عالي | AB2: HR002 | AC2: مسؤول الاجور | AE2: Admin
A3: 6896 | B3: محمد علي محمد ابو هيف | C3: دبلوم صناعي | D3: HR | E3: 44 | F3: 14.59452055 | G3: 2006-05-04 | H3: 2007-05-04 | I3: 2020-12-03 | J3: 1976-08-08 | M3: Yes | N3: Yes | O3: No | P3: Yes | Q3: Yes | R3: No | S3: Yes | T3: Yes | U3: No | V3: No | W3: No | X3: No | Y3: Yes | Z3: No | AA3: متوسط | AB3: HR003 | AC3: مندوب تامينات | AE3: Admin

Sheet IT
A1: رقم الكارتة | B1: الاسم | C1: أسم المؤهل | D1: القسم | E1: السن | F1: الخبرة | G1: بداية التعين | H1: تاريخ انتهاء العقد | I1: تاريخ اليوم | J1: تاريخ الميلاد | K1: بداية الفيش | L1: انتهاء الفيش | M1: المؤهل | N1: كعب العمل | O1: الفيش | P1: شهادة الميلاد | Q1: صورة البطاقة | R1: صورة شخصية | S1: العقد | T1: استمارة 1 | U1: استمارة 6 | V1: استقالة | W1: اخلاء طرف | X1: اقرار استلام عمل | Y1: صحيفة الحالة الاجتماعية | Z1: أستمارة 11 | AA1: نوع المؤهل | AB1: رقم كود الادارة | AC1: الوظيفة | AD1: ملاحظات | AE1: القسم العام | AF1: عالي
A2: 1300 | B2: احمد عوض ابراهيم سلامه | C2: بكالوريوس تجاره | D2: IT | E2: 51 | F2: 13.19452055 | G2: 2007-09-27 | H2: 2008-09-26 | I2: 2020-12-03 | J2: 1970-01-01 | M2: Yes | N2: Yes | O2: No | P2: No | Q2: Yes | R2: Yes | S2: Yes | T2: Yes | U2: No | V2: No | W2: No | X2: Yes | Y2: Yes | Z2: No | AA2: عالي | AB2: Itd004 | AC2: مسؤول نظام (ERP) | AE2: Admin
A3: 1303 | B3: النميري جمال عبد الرازق | C3: معهد فني صناعي | D3: IT | E3: 49 | F3: 19.26849315 | G3: 2001-09-01 | H3: 2002-09-01 | I3: 2020-12-03 | J3: 1971-08-06 | K3: 2000-10-30 | L3: 2001-04-28 | M3: Yes | N3: Yes | O3: Yes | P3: No | Q3: Yes | R3: Yes | S3: Yes | T3: Yes | U3: No | V3: No | W3: No | X3: No | Y3: Yes | Z3: No | AA3: فوق متوسط | AB3: Ith003 | AC3: فني اصلاح وصيانه حاسب الي | AE3: Admin
A4: 11488 | B4: باسم رشدي محمود محمد | C4: معهد حاسب الي | D4: IT | E4: 33 | F4: 3.923287671 | G4: 2017-01-01 | H4: 2018-01-01 | I4: 2020-12-03 | J4: 1987-12-20 | M4: No | N4: Yes | O4: No | P4: Yes | Q4: Yes | R4: Yes | S4: Yes | T4: Yes | U4: No | V4: No | W4: No | X4: Yes | Y4: Yes | Z4: No | AA4: فوق متوسط | AB4: Itn002 | AC4: اخصائي مبرامج اليه | AD4: العقد فاضي | AE4: Admin
A5: 1301 | B5: محمد احمد يوسف فراج | C5: معهد فني تجاري | D5: IT | E5: 49 | F5: 24.59452055 | G5: 1996-05-06 | H5: 1997-05-06 | I5: 2020-12-03 | J5: 1971-10-29 | M5: Yes | N5: No | O5: No | P5: Yes | Q5: Yes | R5: No | S5: Yes | T5: No | U5: No | V5: No | W5: No | X5: Yes | Y5: Yes | Z5: No | AA5: فوق متوسط | AB5: Ita005 | AC5: مسؤول برنامج اريك | AE5: Admin
A6: 1304 | B6: محمد علي مخمد احمد الفار | C6: بكالوريوس هندسه الكتورونيه | D6: IT | E6: 52 | F6: 19.92876712 | G6: 2001-01-03 | H6: 2002-01-03 | I6: 2020-12-03 | J6: 1968-09-02 | K6: 2001-01-14 | L6: 2001-07-13 | M6: Yes | N6: Yes | O6: Yes | P6: Yes | Q6: Yes | R6: Yes | S6: Yes | T6: Yes | U6: No | V6: No | W6: No | X6: No | Y6: Yes | Z6: No | AA6: عالي | AB6: Itm001 | AC6: مدير (it ) | AE6: Admin

Sheet الحسابات
A1: رقم الكارتة | B1: الاسم | C1: أسم المؤهل | D1: القسم | E1: السن | F1: الخبرة | G1: بداية التعين | H1: تاريخ انتهاء العقد | I1: تاريخ اليوم | J1: تاريخ الميلاد | K1: بداية الفيش | L1: انتهاء الفيش | M1: المؤهل | N1: كعب العمل | O1: الفيش | P1: شهادة الميلاد | Q1: صورة البطاقة | R1: صورة شخصية | S1: العقد | T1: استمارة 1 | U1: استمارة 6 | V1: استقالة | W1: اخلاء طرف | X1: اقرار استلام عمل | Y1: صحيفة الحالة الاجتماعية | Z1: أستمارة 11 | AA1: نوع المؤهل | AB1: رقم كود الادارة | AC1: الوظيفة | AD1: ملاحظات | AE1: القسم العام | AF1: عالي
A2: 13712 | B2: احمد عبدالكريم عبد العزيز | C2: بكالوريوس تجاره | D2: الحسابات | E2: 29 | F2: 1.920547945 | G2: 2019-01-02 | H2: 2020-01-02 | I2: 2020-12-03 | J2: 1991-09-14 | K2: 2018-11-17 | L2: 2019-05-16 | M2: Yes | N2: Yes | O2: Yes | P2: Yes | Q2: Yes | R2: Yes | S2: Yes | T2: No | U2: Yes | V2: No | W2: No | X2: Yes | Y2: Yes | Z2: No | AA2: عالي | AB2: Oga003 | AC2: محاسب مرقبة مخزون | AD2: العقد فاضي | AE2: Admin
A3: 10438 | B3: احمد كمال عبدالحفيظ عبدالحميد | C3: بكالوريوس تجاره | D3: الحسابات | E3: 36 | F3: 9.791780822 | G3: 2011-02-20 | H3: 2012-02-20 | I3: 2020-12-03 | J3: 1985-04-03 | K3: 2010-12-09 | L3: 2011-06-07 | M3: Yes | N3: Yes | O3: Yes | P3: Yes | Q3: Yes | R3: Yes | S3: Yes | T3: Yes | U3: No | V3: No | W3: No | X3: Yes | Y3: Yes | Z3: Yes | AA3: عالي | AC3: محاسب مبيعات | AE3: Admin
A4: 996 | B4: اسماعيل صبري علي | C4: بكالوريوس تجاره | D4: الحسابات | E4: 45 | F4: 26.93972603 | G4: 1994-01-01 | H4: 1995-01-01 | I4: 2020-12-03 | J4: 1975-07-10 | K4: 1993-10-19 | L4: 1994-04-17 | M4: Yes | N4: No | O4: Yes | P4: No | Q4: Yes | R4: No | S4: Yes | T4: No | U4: No | V4: Yes | W4: No | X4: Yes | Y4: No | Z4: No | AA4: عالي | AB4: Ofn002 | AC4: مسؤول الخزينه | AE4: Admin
A5: 114 | B5: سامح فتحي عجبان لوقا | C5: بكالوريوس تجاره | D5: الحسابات | E5: 43 | F5: 20.92876712 | G5: 2000-01-04 | H5: 2001-01-03 | I5: 2020-12-03 | J5: 1977-10-28 | M5: Yes | N5: Yes | O5: No | P5: No | Q5: Yes | R5: No | S5: Yes | T5: Yes | U5: No | V5: No | W5: No | X5: No | Y5: Yes | Z5: No | AA5: عالي | AB5: Oga001 | AC5: مسؤول حسابات الموردين | AE5: Admin
A6: 140 | B6: شريف كمال شريف علي | C6: بكالوريوس تجاره | D6: الحسابات | E6: 57 | F6: 20.53424658 | G6: 2000-05-27 | H6: 2001-05-27 | I6: 2020-12-03 | J6: 1964-01-03 | K6: 2000-05-13 | L6: 2000-11-09 | M6: Yes | N6: Yes | O6: Yes | P6: Yes | Q6: Yes | R6: Yes | S6: Yes | T6: Yes | U6: No | V6: No | W6: No | X6: No | Y6: No | Z6: No | AA6: عالي | AB6: Apr001 | AC6: مسؤول العلاقات العامه | AE6: Admin
A7: 130 | B7: عصام الدين عبده سلامه موسي | C7: بكالورويس تجاره | D7: الحسابات | E7: 54 | F7: 26.91780822 | G7: 1994-01-09 | H7: 1995-01-09 | I7: 2020-12-03 | J7: 1967-01-23 | M7: Yes | N7: No | O7: No | P7: Yes | Q7: Yes | R7: No | S7: Yes | T7: No | U7: No | V7: No | W7: No | X7: No | Y7: Yes | Z7: No | AA7: عالي | AB7: Ofn001 | AC7: مدير قسم الاموال | AE7: Admin
A8: 750 | B8: عماد الدين فهمي عبدالمقصود | C8: دبلوم زراعه | D8: الحسابات | E8: 55 | F8: 24.98356164 | G8: 1995-12-16 | H8: 1996-12-15 | I8: 2020-12-03 | J8: 1965-08-23 | M8: No | N8: No | O8: No | P8: Yes | Q8: Yes | R8: No | S8: Yes | T8: Yes | U8: No | V8: No | W8: No | X8: No | Y8: Yes | Z8: No | AA8: متوسط | AB8: Opu002 | AC8: مندوب مشتريات | AE8: Admin
A9: 116 | B9: محمد احمد علي محمد الديب | C9: معهد فني تجاري | D9: الحسابات | E9: 51 | F9: 22.47671233 | G9: 1998-06-18 | H9: 1999-06-18 | I9: 2020-12-03 | J9: 1970-01-26 | M9: Yes | N9: No | O9: Yes | P9: No | Q9: Yes | R9: No | S9: Yes | T9: Yes | U9: No | V9: No | W9: No | X9: No | Y9: No | Z9: No | AA9: فوق متوسط | AB9: Oga002 | AC9: محاسب الضرئب والاصول الثابته | AE9: Admin
A10: 4555 | B10: محمد السيد عثمان احمد | C10: دبلوم تجاري | D10: الحسابات | E10: 46 | F10: 18.93424658 | G10: 2002-01-01 | H10: 2003-01-01 | I10: 2020-12-03 | J10: 1975-04-27 | K10: 2001-12-24 | L10: 2002-06-22 | M10: Yes | N10: No | O10: Yes | P10: Yes | Q10: No | R10: No | S10: Yes | T10: Yes | U10: No | V10: No | W10: No | X10: No | Y10: No | Z10: Yes | AA10: متوسط | AC10: مندوب مبيعات | AE10: Admin
A11: 10628 | B11: محمود محمد معروف احمد | C11: بكالويوس تجاره | D11: الحسابات | E11: 35 | F11: 9.561643836 | G11: 2011-05-15 | H11: 2012-05-14 | I11: 2020-12-03 | J11: 1985-10-18 | K11: 2001-04-19 | L11: 2001-10-16 | M11: Yes | N11: No | O11: Yes | P11: Yes | Q11: Yes | R11: Yes | S11: Yes | T11: Yes | U11: No | V11: No | W11: No | X11: Yes | Y11: No | Z11: No | AA11: عالي | AC11: محاسب مبيعات | AE11: Admin
A12: 9313 | B12: مدحت محمد احمد قاسم | C12: بكالورويس تجاره | D12: الحسابات | E12: 35 | F12: 11.57534247 | G12: 2009-05-10 | H12: 2010-05-10 | I12: 2020-12-03 | J12: 1986-03-13 | K12: 2009-08-22 | L12: 2010-02-18 | M12: Yes | N12: Yes | O12: Yes | P12: Yes | Q12: Yes | R12: Yes | S12: Yes | T12: Yes | U12: No | V12: No | W12: No | X12: Yes | Y12: Yes | Z12: No | AA12: عالي | AB12: Opu001 | AC12: مدير المشتريات | AE12: Admin

Sheet شؤون قانونبة

Sheet علاقات عامة
A1: رقم الكارتة | B1: الاسم | C1: أسم المؤهل | D1: القسم | E1: السن | F1: الخبرة | G1: بداية التعين | H1: تاريخ انتهاء العقد | I1: تاريخ اليوم | J1: تاريخ الميلاد | K1: بداية الفيش | L1: انتهاء الفيش | M1: المؤهل | N1: كعب العمل | O1: الفيش | P1: شهادة الميلاد | Q1: صورة البطاقة | R1: صورة شخصية | S1: العقد | T1: استمارة 1 | U1: استمارة 6 | V1: استقالة | W1: اخلاء طرف | X1: اقرار استلام عمل | Y1: صحيفة الحالة الاجتماعية | Z1: أستمارة 11 | AA1: نوع المؤهل | AB1: رقم كود الادارة | AC1: الوظيفة | AD1: ملاحظات | AE1: القسم العام | AF1: عالي

Sheet Sales
A1: رقم الكارتة | B1: الاسم | C1: أسم المؤهل | D1: القسم | E1: السن | F1: الخبرة | G1: بداية التعين | H1: تاريخ انتهاء العقد | I1: تاريخ اليوم | J1: تاريخ الميلاد | K1: بداية الفيش | L1: انتهاء الفيش | M1: المؤهل | N1: كعب العمل | O1: الفيش | P1: شهادة الميلاد | Q1: صورة البطاقة | R1: صورة شخصية | S1: العقد | T1: استمارة 1 | U1: استمارة 6 | V1: استقالة | W1: اخلاء طرف | X1: اقرار استلام عمل | Y1: صحيفة الحالة الاجتماعية | Z1: أستمارة 11 | AA1: نوع المؤهل | AB1: رقم كود الادارة | AC1: الوظيفة | AD1: ملاحظات | AE1: القسم العام | AF1: عالي

Sheet التخطيط
A1: رقم الكارتة | B1: الاسم | C1: أسم المؤهل | D1: القسم | E1: السن | F1: الخبرة | G1: بداية التعين | H1: تاريخ انتهاء العقد | I1: تاريخ اليوم | J1: تاريخ الميلاد | K1: بداية الفيش | L1: انتهاء الفيش | M1: المؤهل | N1: كعب العمل | O1: الفيش | P1: شهادة الميلاد | Q1: صورة البطاقة | R1: صورة شخصية | S1: العقد | T1: استمارة 1 | U1: استمارة 6 | V1: استقالة | W1: اخلاء طرف | X1: اقرار استلام عمل | Y1: صحيفة الحالة الاجتماعية | Z1: أستمارة 11 | AA1: نوع المؤهل | AB1: رقم كود الادارة | AC1: الوظيفة | AD1: ملاحظات | AE1: القسم العام | AF1: عالي
A2: 4038 | B2: كريم سالم جعفر محمد عثمان | C2: دبلوم فندقي | D2: التخطيط | E2: 42 | F2: 19.58356164 | G2: 2001-05-09 | H2: 2002-05-09 | I2: 2020-12-03 | J2: 1979-05-18 | K2: 2001-02-13 | L2: 2001-08-12 | M2: Yes | N2: Yes | O2: Yes | P2: Yes | Q2: Yes | R2: Yes | S2: Yes | T2: Yes | U2: No | V2: No | W2: No | X2: No | Y2: Yes | Z2: No | AA2: متوسط | AC2: عامل تجهيز

Sheet المصبغة
A1: رقم الكارتة | B1: الاسم | C1: أسم المؤهل | D1: القسم | E1: السن | F1: الخبرة | G1: بداية التعين | H1: تاريخ انتهاء العقد | I1: تاريخ اليوم | J1: تاريخ الميلاد | K1: بداية الفيش | L1: انتهاء الفيش | M1: المؤهل | N1: كعب العمل | O1: الفيش | P1: شهادة الميلاد | Q1: صورة البطاقة | R1: صورة شخصية | S1: العقد | T1: استمارة 1 | U1: استمارة 6 | V1: استقالة | W1: اخلاء طرف | X1: اقرار استلام عمل | Y1: صحيفة الحالة الاجتماعية | Z1: أستمارة 11 | AA1: نوع المؤهل | AB1: رقم كود الادارة | AC1: الوظيفة | AD1: ملاحظات | AE1: القسم العام | AF1: عالي
A2: 3875 | B2: ابراهيم احمد علام عبد الله | C2: دبلوم صناعي | D2: المصبغة | E2: 48 | F2: 19.90684932 | G2: 2001-01-11 | H2: 2002-01-11 | I2: 2020-12-03 | J2: 1973-01-19 | M2: Yes | N2: No | O2: No | P2: No | Q2: Yes | R2: No | S2: Yes | T2: Yes | U2: No | V2: No | W2: No | X2: No | Y2: Yes | Z2: No | AA2: متوسط | AB2: D001 | AC2: عامل صباغه
A3: 8018 | B3: ابراهيم محمد ابراهيم رزق | C3: بدون | D3: المصبغة | E3: 34 | F3: 13.39178082 | G3: 2007-07-17 | H3: 2008-07-16 | I3: 2020-12-03 | J3: 1987-02-14 | K3: 2007-07-26 | L3: 2008-01-22 | M3: No | N3: Yes | O3: Yes | P3: Yes | Q3: Yes | R3: No | S3: Yes | T3: No | U3: No | V3: No | W3: No | X3: Yes | Y3: Yes | Z3: No | AA3: بدون | AB3: D002 | AC3: عامل صباغه
A4: 794 | B4: احمد السعيد فهمي محمد المصري | C4: دبلوم صناعي | D4: المصبغة | E4: 48 | F4: 23.59726027 | G4: 1997-05-05 | H4: 1998-05-05 | I4: 2020-12-03 | J4: 1972-10-09 | K4: 1997-05-03 | L4: 1997-10-30 | M4: Yes | N4: No | O4: Yes | P4: No | Q4: Yes | R4: Yes | S4: Yes | T4: Yes | U4: No | V4: No | W4: No | X4: Yes | Y4: Yes | Z4: Yes | AA4: متوسط | AB4: D003 | AC4: عامل صباغه
A5: 13742 | B5: احمد بشير ابراهيم عبد العزيز | C5: بدون | D5: المصبغة | E5: 20 | F5: 1.087671233 | G5: 2019-11-02 | H5: 2020-11-01 | I5: 2020-12-03 | J5: 2001-01-01 | K5: 2019-01-21 | L5: 2019-07-20 | M5: No | N5: Yes | O5: Yes | P5: Yes | Q5: Yes | R5: Yes | S5: Yes | T5: Yes | U5: No | V5: No | W5: No | X5: Yes | Y5: Yes | Z5: Yes | AA5: بدون | AC5: عامل فرادات | AE5: Prouduction
A6: 776 | B6: احمد عبدالحق ابو العنين حنفي السقا | C6: دبلوم تجاره | D6: المصبغة | E6: 46 | F6: 24.9260274 | G6: 1996-01-06 | H6: 1997-01-05 | I6: 2020-12-03 | J6: 1974-09-02 | M6: Yes | N6: No | O6: Yes | P6: No | Q6: Yes | R6: Yes | S6: Yes | T6: Yes | U6: No | V6: No | W6: No | X6: No | Y6: Yes | Z6: No | AA6: بدون | AC6: مشرف صباغه | AE6: Prouduction
A7: 7228 | B7: احمد محمد حسين عبد الغني | C7: بدون مؤهل | D7: المصبغة | E7: 14 | F7: 14.82465753 | G7: 2006-02-09 | H7: 2007-02-09 | I7: 2020-12-03 | J7: 2006-09-07 | K7: 2006-07-27 | L7: 2007-01-23 | M7: No | N7: Yes | O7: Yes | P7: Yes | Q7: Yes | R7: No | S7: Yes | T7: Yes | U7: No | V7: No | W7: No | X7: No | Y7: Yes | Z7: No | AA7: متوسط | AC7: عامل فرادات | AE7: Prouduction
A8: 12649 | B8: ادريس جمعه معوض خميس | C8: بدون | D8: المصبغة | E8: 34 | F8: 5.315068493 | G8: 2015-08-12 | H8: 2016-08-11 | I8: 2020-12-03 | J8: 1986-09-01 | K8: 2015-10-21 | L8: 2016-04-18 | M8: No | N8: Yes | O8: Yes | P8: Yes | Q8: Yes | R8: Yes | S8: Yes | T8: Yes | U8: No | V8: No | W8: No | X8: Yes | Y8: Yes | Z8: Yes | AA8: بدون | AC8: عامل مصبغه | AE8: Prouduction
A9: 762 | B9: اسماعيل احمد عبد الجليل | C9: بدون | D9: المصبغة | E9: 53 | F9: 25.16164384 | G9: 1995-10-12 | H9: 1996-10-11 | I9: 2020-12-03 | J9: 1968-03-10 | M9: No | N9: No | O9: No | P9: No | Q9: Yes | R9: Yes | S9: Yes | T9: Yes | U9: No | V9: No | W9: No | X9: No | Y9: No | Z9: No | AA9: بدون | AC9: مشرف صباغه | AE9: Prouduction
A10: 13005 | B10: امين محمد امين غريب | C10: معهد سياحه وفنادق | D10: المصبغة | E10: 35 | F10: 3.923287671 | G10: 2017-01-01 | H10: 2018-01-01 | I10: 2020-12-03 | J10: 1985-10-25 | K10: 2016-12-24 | L10: 2017-06-22 | M10: Yes | N10: Yes | O10: Yes | P10: Yes | Q10: Yes | R10: Yes | S10: Yes | T10: Yes | U10: No | V10: No | W10: No | X10: Yes | Y10: Yes | Z10: No | AA10: فوق متوسط | AC10: عامل صباغه | AE10: Prouduction
A11: 927 | B11: ايهاب طلعت احمد عبد اللطيف | C11: اعداديه | D11: المصبغة | E11: 54 | F11: 23.8109589 | G11: 1997-02-16 | H11: 1998-02-16 | I11: 2020-12-03 | J11: 1966-08-06 | M11: No | N11: No | O11: Yes | P11: Yes | Q11: Yes | R11: Yes | S11: Yes | T11: Yes | U11: No | V11: No | W11: No | X11: No | Y11: Yes | Z11: No | AA11: متوسط | AC11: عامل باتش | AE11: Prouduction
A12: 757 | B12: جمعه عبدالفتاح النوبي | C12: دبلوم صناعي | D12: المصبغة | E12: 54 | F12: 25.36164384 | G12: 1995-07-31 | H12: 1996-07-30 | I12: 2020-12-03 | J12: 1967-02-14 | M12: Yes | N12: No | O12: No | P12: No | Q12: Yes | R12: Yes | S12: Yes | T12: Yes | U12: No | V12: No | W12: No | X12: No | Y12: Yes | Z12: No | AA12: متوسط | AC12: مشرف فرادات | AE12: Prouduction
A13: 755 | B13: خالد ثابت عبده حموده | C13: الابتدائيه | D13: المصبغة | E13: 45 | F13: 21.4109589 | G13: 1999-07-12 | H13: 2000-07-11 | I13: 2020-12-03 | J13: 1976-03-13 | K13: 1999-06-14 | L13: 1999-12-11 | M13: Yes | N13: Yes | O13: Yes | P13: Yes | Q13: Yes | R13: Yes | S13: Yes | T13: No | U13: No | V13: No | W13: No | X13: No | Y13: Yes | Z13: No | AA13: بدون | AC13: عامل صباغه | AE13: Prouduction
A14: 5394 | B14: رافت محمد مصطفي صالح رزق | C14: دبلوم تجاره | D14: المصبغة | E14: 37 | F14: 15.50958904 | G14: 2005-06-04 | H14: 2006-06-04 | I14: 2020-12-03 | J14: 1983-12-01 | K14: 2004-03-14 | L14: 2004-09-10 | M14: Yes | N14: Yes | O14: Yes | P14: Yes | Q14: Yes | R14: No | S14: Yes | T14: Yes | U14: No | V14: No | W14: No | X14: No | Y14: Yes | Z14: No | AA14: متوسط | AC14: عامل صباغه | AE14: Prouduction
A15: 9591 | B15: رجب عبد الفتاح عبد الرؤوف محمد | C15: بكالوريوس علوم | D15: المصبغة | E15: 36 | F15: 10.17260274 | G15: 2010-10-04 | H15: 2011-10-04 | I15: 2020-12-03 | J15: 1985-03-23 | K15: 2010-03-01 | L15: 2010-08-28 | M15: Yes | N15: Yes | O15: Yes | P15: Yes | Q15: Yes | R15: Yes | S15: Yes | T15: Yes | X15: Yes | Y15: Yes | Z15: Yes | AC15: مساعد مدير المصبغه
A16: 5463 | B16: رجب محمود عبد العزيز سعد | C16: دبلوم صناعي | D16: المصبغة | E16: 46 | F16: 15.67123288 | G16: 2005-04-06 | H16: 2006-04-06 | I16: 2020-12-03 | J16: 1975-03-17 | K16: 2005-03-29 | L16: 2005-09-25 | M16: Yes | N16: No | O16: Yes | P16: No | Q16: Yes | R16: No | S16: Yes | T16: Yes | U16: No | V16: No | W16: No | X16: No | Y16: No | Z16: No | AA16: متوسط | AC16: عامل صباغه | AE16: Prouduction
A17: 754 | B17: رفعت محمد ابراهيم اسماعيل | C17: دبلوم صناعي | D17: المصبغة | E17: 56 | F17: 25.16164384 | G17: 1995-10-12 | H17: 1996-10-11 | I17: 2020-12-03 | J17: 1965-06-08 | M17: No | N17: No | O17: No | P17: Yes | Q17: Yes | R17: Yes | S17: Yes | T17: Yes | U17: No | V17: No | W17: No | X17: Yes | Y17: Yes | Z17: No | AA17: متوسط | AC17: مشرف صباغه | AE17: Prouduction
A18: 10492 | B18: سعد صلاح سعد رمضان عقاب | C18: بدون | D18: المصبغة | E18: 35 | F18: 9.594520548 | G18: 2011-05-03 | H18: 2012-05-02 | I18: 2020-12-03 | J18: 1985-11-24 | K18: 2011-01-24 | L18: 2011-07-23 | M18: No | N18: Yes | O18: Yes | P18: Yes | Q18: Yes | R18: Yes | S18: Yes | T18: Yes | U18: No | V18: No | W18: No | X18: Yes | Y18: Yes | Z18: Yes | AA18: بدون | AC18: عامل فرادات | AE18: Prouduction
A19: 10492 | B19: سعد صلاح سعدرمضان عقاب | C19: بدون | D19: المصبغة | E19: 35 | F19: 9.594520548 | G19: 2011-05-03 | H19: 2012-05-02 | I19: 2020-12-03 | J19: 1985-11-24 | K19: 2011-01-24 | L19: 2011-07-23 | M19: No | N19: Yes | O19: Yes | P19: Yes | Q19: Yes | R19: Yes | S19: Yes | T19: Yes | U19: No | V19: No | W19: No | X19: Yes | Y19: Yes | Z19: Yes | AA19: بدون | AC19: عامل صباغه
A20: 5267 | B20: صبحي عبدالله عامر ابو الخير | C20: دبلوم صناعي | D20: المصبغة | E20: 56 | F20: 16.49041096 | G20: 2004-06-11 | H20: 2005-06-11 | I20: 2020-12-03 | J20: 1965-03-06 | M20: Yes | N20: Yes | O20: Yes | P20: Yes | Q20: Yes | R20: No | S20: Yes | T20: Yes | U20: No | V20: No | W20: No | X20: No | Y20: Yes | Z20: No | AA20: متوسط | AC20: عامل فرادات | AE20: Prouduction
A21: 13628 | B21: طاهر رجب طاهر احمد عبدالرحيم | C21: بكالوريوس كمياء | D21: المصبغة | E21: 27 | F21: 1.923287671 | G21: 2019-01-01 | H21: 2020-01-01 | I21: 2020-12-03 | J21: 1993-08-19 | M21: Yes | N21: Yes | O21: No | P21: Yes | Q21: Yes | R21: No | S21: No | T21: Yes | U21: Yes | V21: No | W21: No | X21: Yes | Y21: Yes | Z21: Yes | AA21: عالي | AC21: مهندس صباغه | AD21: مفيش عقد والورق فاضي | AE21: Admin
A22: 777 | B22: عادل خميس ابو عجيله بدوي | C22: دبلوم صناعي | D22: المصبغة | E22: 50 | F22: 24.92328767 | G22: 1996-01-07 | H22: 1997-01-06 | I22: 2020-12-03 | J22: 1971-06-02 | K22: 1996-06-05 | L22: 1996-12-02 | M22: Yes | N22: No | O22: Yes | P22: Yes | Q22: Yes | R22: No | S22: Yes | T22: Yes | U22: No | V22: No | W22: No | X22: No | Y22: Yes | Z22: No | AA22: متوسط | AC22: مشرف فرادات | AE22: Prouduction
A23: 4698 | B23: علاء السعيد عوف عبدالرحمن | C23: دبلوم صناعي | D23: المصبغة | E23: 41 | F23: 17.14794521 | G23: 2003-10-15 | H23: 2004-10-14 | I23: 2020-12-03 | J23: 1979-11-11 | K23: 2003-08-17 | L23: 2004-02-13 | M23: Yes | N23: No | O23: Yes | P23: Yes | Q23: Yes | R23: No | S23: Yes | T23: Yes | U23: No | V23: No | W23: No | X23: No | Y23: Yes | Z23: No | AA23: متوسط | AC23: فني صباغه | AE23: Prouduction
A24: 5241 | B24: عمرو خميس ابو عجيله بدوي | C24: دبلوم صناعي | D24: المصبغة | E24: 39 | F24: 16.91232877 | G24: 2004-01-09 | H24: 2005-01-08 | I24: 2020-12-03 | J24: 1981-08-05 | K24: 2004-06-29 | L24: 2004-12-26 | M24: Yes | N24: No | O24: No | P24: Yes | Q24: No | R24: No | S24: Yes | T24: Yes | U24: No | V24: No | W24: No | X24: No | Y24: Yes | Z24: No | AA24: متوسط | AC24: عامل صباغه | AE24: Prouduction
A25: 5559 | B25: عمرو صبحي المحمدي امام شلبي | C25: دبلوم صناعي | D25: المصبغة | E25: 40 | F25: 15.49863014 | G25: 2005-06-08 | H25: 2006-06-08 | I25: 2020-12-03 | J25: 1981-04-12 | K25: 2005-06-05 | L25: 2005-12-02 | M25: Yes | N25: Yes | O25: Yes | P25: Yes | Q25: No | R25: No | S25: Yes | T25: No | U25: No | V25: No | W25: No | X25: No | Y25: Yes | Z25: No | AA25: متوسط | AC25: عامل صباغه | AE25: Prouduction
A26: 760 | B26: فتحي توفيق حسن سالم | C26: دبلوم صناعي | D26: المصبغة | E26: 48 | F26: 25.36164384 | G26: 1995-07-31 | H26: 1996-07-30 | I26: 2020-12-03 | J26: 1972-12-16 | M26: Yes | N26: No | O26: Yes | P26: Yes | Q26: No | R26: Yes | S26: Yes | T26: Yes | U26: No | V26: No | W26: No | X26: Yes | Y26: Yes | Z26: No | AA26: متوسط | AC26: فني مصباغه | AE26: Prouduction
A27: 6644 | B27: فضل احمد فضل جاد | C27: دبلوم صناعي | D27: المصبغة | E27: 40 | F27: 14.8109589 | G27: 2006-02-14 | H27: 2007-02-14 | I27: 2020-12-03 | J27: 1980-11-23 | M27: Yes | N27: No | O27: No | P27: Yes | Q27: No | R27: No | S27: Yes | T27: Yes | U27: No | V27: No | W27: No | X27: No | Y27: Yes | Z27: No | AA27: متوسط | AC27: عامل صباغه | AE27: Prouduction
A28: 9432 | B28: محمد احمد فضل جاد عقاب | C28: دبلوم صناعي | D28: المصبغة | E28: 34 | F28: 10.84383562 | G28: 2010-02-01 | H28: 2011-02-01 | I28: 2020-12-03 | J28: 1987-03-01 | K28: 2009-11-13 | L28: 2010-05-12 | M28: Yes | N28: Yes | O28: Yes | P28: Yes | Q28: No | R28: No | S28: Yes | T28: Yes | U28: No | V28: No | W28: No | X28: Yes | Y28: Yes | Z28: Yes | AA28: متوسط | AC28: عامل صباغه | AE28: Prouduction
A29: 775 | B29: محمد حسن ابرهيم السيد | C29: دبلوم صناعي | D29: المصبغة | E29: 49 | F29: 24.65753425 | G29: 1996-04-13 | H29: 1997-04-13 | I29: 2020-12-03 | J29: 1972-04-03 | M29: Yes | N29: No | O29: Yes | P29: Yes | Q29: No | R29: Yes | S29: Yes | T29: Yes | U29: No | V29: No | W29: No | X29: No | Y29: Yes | Z29: No | AA29: متوسط | AC29: عمل صباغه | AE29: Prouduction
A30: 7518 | B30: محمد رزق ضيف اسماعيل محمد الابياري | C30: دبلوم تجاره | D30: المصبغة | E30: 41 | F30: 13.35068493 | G30: 2007-08-01 | H30: 2008-07-31 | I30: 2020-12-03 | J30: 1980-04-12 | K30: 2006-11-08 | L30: 2007-05-07 | M30: Yes | N30: Yes | O30: Yes | P30: Yes | Q30: Yes | R30: No | S30: Yes | T30: Yes | U30: No | V30: No | W30: No | X30: Yes | Y30: Yes | Z30: No | AA30: متوسط | AC30: عامل صباغه | AE30: Prouduction
A31: 9473 | B31: محمد رضا حسيني عفيفي | C31: بدون | D31: المصبغة | E31: 29 | F31: 5.145205479 | G31: 2015-10-13 | H31: 2016-10-12 | I31: 2020-12-03 | J31: 1992-05-16 | K31: 2019-09-19 | L31: 2020-03-17 | M31: No | N31: Yes | O31: Yes | P31: Yes | Q31: Yes | R31: Yes | S31: Yes | T31: Yes | U31: No | V31: No | W31: No | X31: Yes | Y31: Yes | Z31: Yes | AA31: بدون | AC31: عامل فرادات | AE31: Prouduction
A32: 8163 | B32: محمد رمضان سعد بدوي | C32: الاعداديه | D32: المصبغة | E32: 33 | F32: 13.20273973 | G32: 2007-09-24 | H32: 2008-09-23 | I32: 2020-12-03 | J32: 1987-10-03 | K32: 2007-07-22 | L32: 2008-01-18 | M32: Yes | N32: Yes | O32: Yes | P32: Yes | Q32: No | R32: No | S32: Yes | T32: Yes | U32: No | V32: No | W32: No | X32: Yes | Y32: Yes | Z32: No | AA32: متوسط | AC32: عامل صباغه | AE32: Prouduction
A33: 7344 | B33: محمد سعد بدوي بدوي | C33: بدون مؤهل | D33: المصبغة | E33: 47 | F33: 14.07123288 | G33: 2006-11-11 | H33: 2007-11-11 | I33: 2020-12-03 | J33: 1973-10-22 | K33: 2006-09-04 | L33: 2007-03-03 | M33: No | N33: Yes | O33: Yes | P33: Yes | Q33: Yes | R33: Yes | S33: Yes | T33: Yes | U33: No | V33: No | W33: No | X33: No | Y33: Yes | Z33: No | AA33: متوسط | AC33: عامل صباغه | AE33: Prouduction
A34: 780 | B34: محمد صلاح عطية الله محمد | C34: دبلوم ثانوي زراعي | D34: المصبغة | E34: 57 | F34: 21.9890411 | G34: 1998-12-13 | H34: 1999-12-13 | I34: 2020-12-03 | J34: 1964-06-02 | M34: Yes | N34: Yes | O34: Yes | P34: Yes | Q34: Yes | R34: Yes | S34: Yes | T34: Yes | U34: No | V34: No | W34: No | X34: No | Y34: Yes | Z34: No | AA34: متوسط | AC34: مشرف فرادات | AE34: Prouduction
A35: 13629 | B35: محمد عبداللطيف عبدالله عبدالفتاح | C35: بكالوريوس علوم | D35: المصبغة | E35: 26 | F35: 1.923287671 | G35: 2019-01-01 | H35: 2020-01-01 | I35: 2020-12-03 | J35: 1995-05-15 | K35: 2018-10-09 | L35: 2019-04-07 | M35: No | N35: Yes | O35: Yes | P35: Yes | Q35: Yes | R35: Yes | S35: No | T35: Yes | U35: Yes | V35: No | W35: No | X35: Yes | Y35: Yes | Z35: No | AA35: عالي | AC35: مهندس صباغه | AD35: مفيش عقد الاورق فاضيه | AE35: Admin
A36: 13248 | B36: محمد عوض محمد عبدالمقصود | C36: بدون | D36: المصبغة | E36: 28 | F36: 2.890410959 | G36: 2018-01-13 | H36: 2019-01-13 | I36: 2020-12-03 | J36: 1993-06-05 | K36: 2017-12-24 | L36: 2018-06-22 | M36: No | N36: Yes | O36: Yes | P36: Yes | Q36: Yes | R36: Yes | S36: Yes | T36: Yes | U36: No | V36: No | W36: No | X36: Yes | Y36: Yes | Z36: No | AA36: متوسط | AC36: عامل فرادات | AE36: Prouduction
A37: 13119 | B37: محمد محمود كامل طه | C37: ليسانس شريعه وقانون | D37: المصبغة | E37: 3 | F37: 3.284931507 | G37: 2017-08-22 | H37: 2018-08-22 | I37: 2020-12-03 | J37: 2017-08-25 | K37: 2017-08-14 | L37: 2018-02-10 | M37: No | N37: Yes | O37: Yes | P37: Yes | Q37: No | R37: No | S37: Yes | T37: Yes | U37: No | V37: No | W37: No | X37: Yes | Y37: Yes | Z37: No | AA37: عالي | AC37: عامل صبغه | AE37: Prouduction
A38: 5531 | B38: محمود فوزي عبد العليم عبدالناصر | C38: دبلوم ترسانه بحريه | D38: المصبغة | E38: 39 | F38: 15.08219178 | G38: 2005-11-07 | H38: 2006-11-07 | I38: 2020-12-03 | J38: 1981-11-03 | K38: 2005-06-02 | L38: 2005-11-29 | M38: No | N38: Yes | O38: Yes | P38: Yes | Q38: Yes | R38: No | S38: Yes | T38: Yes | U38: No | V38: No | W38: No | X38: No | Y38: Yes | Z38: No | AA38: متوسط | AC38: عامل صباغه | AD38: شهاده تدريب تبريد وتكيف | AE38: Prouduction
A39: 5762 | B39: مصطفي رزق ضيف اسماعيل محمد | C39: دبلوم صناعي | D39: المصبغة | E39: 36 | F39: 15.73972603 | G39: 2005-03-12 | H39: 2006-03-12 | I39: 2020-12-03 | J39: 1985-04-20 | K39: 2005-07-31 | L39: 2006-01-27 | M39: Yes | N39: Yes | O39: Yes | P39: No | Q39: Yes | R39: No | S39: Yes | T39: Yes | U39: No | V39: No | W39: No | X39: No | Y39: Yes | Z39: No | AA39: متوسط | AC39: عامل صباغه | AE39: Prouduction
A40: 8154 | B40: مصطفي صادق توفيق عبد الرحيم | C40: دبلوم صناعي | D40: المصبغة | E40: 35 | F40: 13.19452055 | G40: 2007-09-27 | H40: 2008-09-26 | I40: 2020-12-03 | J40: 1986-05-13 | M40: Yes | N40: Yes | O40: Yes | P40: Yes | Q40: Yes | R40: Yes | S40: Yes | T40: Yes | U40: No | V40: No | W40: No | X40: Yes | Y40: Yes | Z40: No | AA40: متوسط | AC40: عامل فرادات | AE40: Prouduction
A41: 13706 | B41: مصطفي عبد النبي مصطفي احمد كوشتي | C41: دبلوم صناعي | D41: المصبغة | E41: 27 | F41: 2.052054795 | G41: 2018-11-15 | H41: 2019-11-15 | I41: 2020-12-03 | J41: 1994-04-09 | K41: 2018-11-14 | L41: 2019-05-13 | M41: Yes | N41: No | O41: Yes | P41: Yes | Q41: Yes | R41: Yes | S41: Yes | T41: Yes | U41: No | V41: No | W41: No | X41: Yes | Y41: Yes | Z41: No | AA41: فوق متوسط | AC41: عامل المصبغه | AE41: Prouduction
A42: 527 | B42: هشام سعيد مرعي مصلوبي | C42: بدون | D42: المصبغة | E42: 48 | F42: 22.90958904 | G42: 1998-01-11 | H42: 1999-01-11 | I42: 2020-12-03 | J42: 1972-10-05 | K42: 1998-08-24 | L42: 1999-02-20 | M42: No | N42: Yes | O42: Yes | P42: Yes | Q42: Yes | R42: Yes | S42: Yes | T42: Yes | U42: No | V42: Yes | W42: No | X42: No | Y42: Yes | Z42: No | AA42: بدون | AC42: عامل مخزن الغزل | AE42: Prouduction
A43: 13273 | B43: هيثم كمال حسين محمد الدقيقي | C43: دبلوم زراعه | D43: المصبغة | E43: 28 | F43: 2.424657534 | G43: 2018-07-02 | H43: 2019-07-02 | I43: 2020-12-03 | J43: 1992-10-07 | K43: 2018-01-18 | L43: 2018-07-17 | M43: No | N43: Yes | O43: Yes | P43: No | Q43: Yes | R43: Yes | S43: Yes | T43: Yes | U43: No | V43: No | W43: No | X43: Yes | Y43: Yes | Z43: No | AA43: متوسط | AC43: عامل صباغه | AE43: Prouduction

Sheet التجهيز
A1: رقم الكارتة | B1: الاسم | C1: أسم المؤهل | D1: القسم | E1: السن | F1: الخبرة | G1: بداية التعين | H1: تاريخ انتهاء العقد | I1: تاريخ اليوم | J1: تاريخ الميلاد | K1: بداية الفيش | L1: انتهاء الفيش | M1: المؤهل | N1: كعب العمل | O1: الفيش | P1: شهادة الميلاد | Q1: صورة البطاقة | R1: صورة شخصية | S1: العقد | T1: استمارة 1 | U1: استمارة 6 | V1: استقالة | W1: اخلاء طرف | X1: اقرار استلام عمل | Y1: صحيفة الحالة الاجتماعية | Z1: أستمارة 11 | AA1: نوع المؤهل | AB1: رقم كود الادارة | AC1: الوظيفة | AD1: ملاحظات | AE1: القسم العام | AF1: عالي
A2: 7355 | B2: ابراهيم محمد ابراهيم احمد | C2: دبلوم صناعي | D2: التجهيز | E2: 50 | F2: 14.07123288 | G2: 2006-11-11 | H2: 2007-11-11 | I2: 2020-12-03 | J2: 1970-09-05 | K2: 2006-09-21 | L2: 2007-03-20 | M2: Yes | N2: Yes | O2: Yes | P2: No | Q2: Yes | R2: Yes | S2: Yes | T2: Yes | U2: No | V2: No | W2: No | X2: No | Y2: No | Z2: No | AA2: متوسط | AC2: عامل تجهيز
A3: 5820 | B3: احمد ابراهيم علي مخلوف | C3: بكالوريس علوم | D3: التجهيز | E3: 44 | F3: 15.24109589 | G3: 2005-09-10 | H3: 2006-09-10 | I3: 2020-12-03 | J3: 1977-04-28 | K3: 2005-07-08 | L3: 2006-01-04 | M3: Yes | N3: Yes | O3: Yes | P3: Yes | Q3: Yes | R3: Yes | S3: Yes | T3: Yes | U3: No | V3: No | W3: No | X3: No | Y3: Yes | Z3: Yes | AA3: عالي | AC3: مهندس كيمياء(موصفات) | AF3: فوق متوسط
A4: 7665 | B4: احمد ابراهيم ياقوت اسماعيل | C4: دبلوم صناعي | D4: التجهيز | E4: 55 | F4: 13.79452055 | G4: 2007-02-20 | H4: 2008-02-20 | I4: 2020-12-03 | J4: 1965-07-16 | K4: 2007-07-01 | L4: 2007-12-28 | M4: Yes | N4: Yes | O4: Yes | P4: Yes | Q4: Yes | R4: Yes | S4: Yes | T4: Yes | U4: No | V4: No | W4: No | X4: Yes | Y4: Yes | Z4: Yes | AA4: متوسط | AC4: عامل فني تجهيز | AF4: متوسط
A5: 10016 | B5: احمد اسماعيل خميس بركات اسماعيل | C5: بكالوريوس تجاره | D5: التجهيز | E5: 38 | F5: 10.21643836 | G5: 2010-09-18 | H5: 2011-09-18 | I5: 2020-12-03 | J5: 1982-10-10 | K5: 2010-06-20 | L5: 2010-12-17 | M5: Yes | N5: Yes | O5: Yes | P5: Yes | Q5: Yes | R5: Yes | S5: Yes | T5: Yes | U5: No | V5: No | W5: No | X5: Yes | Y5: Yes | Z5: No | AA5: عالي | AC5: عامل فني تجهيز | AF5: بدون
A6: 12945 | B6: احمد جابر السيد محمد شرف | C6: دبلوم صناعي | D6: التجهيز | E6: 30 | F6: 4.2 | G6: 2016-09-22 | H6: 2017-09-22 | I6: 2020-12-03 | J6: 1990-09-09 | K6: 2016-04-09 | L6: 2016-10-06 | M6: No | N6: Yes | O6: Yes | P6: Yes | Q6: Yes | R6: Yes | S6: Yes | T6: Yes | U6: No | V6: No | W6: No | X6: No | Y6: Yes | Z6: No | AA6: متوسط | AC6: عامل فني تجهيز
A7: 5850 | B7: احمد رافت محمد يوسف حسب الله | C7: دبلوم صناعي | D7: التجهيز | E7: 25 | F7: 15.24109589 | G7: 2005-09-10 | H7: 2006-09-10 | I7: 2020-12-03 | J7: 1995-06-20 | K7: 2005-08-22 | L7: 2006-02-18 | M7: Yes | N7: Yes | O7: No | P7: No | Q7: Yes | R7: No | S7: Yes | T7: Yes | U7: Yes | V7: No | W7: No | X7: No | Y7: Yes | Z7: No | AA7: متوسط | AC7: عامل تجهيز
A8: 9987 | B8: احمد محمد احمد النجار | C8: دبلوم صناعي | D8: التجهيز | E8: 31 | F8: 15.28493151 | G8: 2005-08-25 | H8: 2006-08-25 | I8: 2020-12-03 | J8: 1989-12-28 | K8: 2010-08-22 | L8: 2011-02-18 | M8: Yes | N8: Yes | O8: Yes | P8: Yes | Q8: Yes | R8: Yes | S8: Yes | T8: Yes | U8: No | V8: No | W8: No | X8: Yes | Y8: Yes | Z8: Yes | AA8: متوسط | AC8: عامل فني تجهيز
A9: 925 | B9: اسامه محمد اسماعيل عباس الشترار | C9: دبلوم تجاره | D9: التجهيز | E9: 45 | F9: 16.90410959 | G9: 2004-01-12 | H9: 2005-01-11 | I9: 2020-12-03 | J9: 1976-03-25 | K9: 2004-10-18 | L9: 2005-04-16 | M9: Yes | N9: Yes | O9: Yes | P9: No | Q9: Yes | R9: Yes | S9: Yes | T9: Yes | U9: No | V9: No | W9: No | X9: No | Y9: Yes | Z9: Yes | AA9: متوسط | AC9: عامل فني تجهيز
A10: 13728 | B10: اسلام سمير عبد ى القوي حسن | C10: دبلوم صناعي | D10: التجهيز | E10: 25 | F10: 2.01369863 | G10: 2018-11-29 | H10: 2019-11-29 | I10: 2020-12-03 | J10: 1995-12-25 | M10: No | N10: Yes | O10: No | P10: Yes | Q10: Yes | R10: Yes | S10: Yes | T10: Yes | U10: No | V10: No | W10: No | X10: Yes | Y10: No | Z10: No | AA10: متوسط | AC10: عامل فني تجهيز
A11: 13709 | B11: اشرف عبد الستار محمد حسن السيد | C11: دبلوم صناعي | D11: التجهيز | E11: 38 | F11: 2.038356164 | G11: 2018-11-20 | H11: 2019-11-20 | I11: 2020-12-03 | J11: 1982-06-19 | K11: 2018-11-17 | L11: 2019-05-16 | M11: No | N11: Yes | O11: Yes | P11: Yes | Q11: Yes | R11: Yes | S11: Yes | T11: Yes | U11: Yes | V11: No | W11: No | X11: No | Y11: Yes | Z11: No | AA11: متوسط | AC11: عامل تجهيز | AD11: العقد فاضي
A12: 8566 | B12: حسن ابراهيم محمد محمود عبد الرحيم | C12: بكالوريس زرعه | D12: التجهيز | E12: 41 | F12: 12.9260274 | G12: 2008-01-03 | H12: 2009-01-02 | I12: 2020-12-03 | J12: 1980-01-02 | K12: 2008-04-27 | L12: 2008-10-24 | M12: Yes | N12: Yes | O12: Yes | P12: Yes | Q12: Yes | R12: Yes | S12: Yes | T12: Yes | U12: No | V12: No | W12: No | X12: Yes | Y12: Yes | Z12: No | AA12: عالي | AC12: مهندس تجهيز
A13: 904 | B13: حمدي محمود احمد عبد اللطيف | C13: دبلوم صناعي | D13: التجهيز | E13: 56 | F13: 24.95068493 | G13: 1995-12-28 | H13: 1996-12-27 | I13: 2020-12-03 | J13: 1965-01-20 | M13: No | N13: No | O13: No | P13: No | Q13: Yes | R13: Yes | S13: Yes | T13: Yes | U13: No | V13: No | W13: No | X13: No | Y13: Yes | Z13: No | AA13: متوسط | AC13: متابعه صباغ وتجهيز
A14: 926 | B14: خالد عبد الله عامر | C14: دبلوم زراعي | D14: التجهيز | E14: 52 | F14: 25.55890411 | G14: 1995-05-20 | H14: 1996-05-19 | I14: 2020-12-03 | J14: 1968-12-30 | M14: No | N14: No | O14: No | P14: Yes | Q14: Yes | R14: Yes | S14: Yes | T14: Yes | U14: No | V14: No | W14: No | X14: No | Y14: Yes | Z14: No | AA14: متوسط | AC14: عامل فني تجهيز
A15: 922 | B15: رمضان احمد سرور السيد | C15: بدون مؤهل | D15: التجهيز | E15: 48 | F15: 23.30410959 | G15: 1997-08-20 | H15: 1998-08-20 | I15: 2020-12-03 | J15: 1972-10-07 | K15: 1996-02-07 | L15: 1996-08-05 | M15: No | N15: No | O15: Yes | P15: Yes | Q15: Yes | R15: Yes | S15: Yes | T15: Yes | U15: No | V15: No | W15: No | X15: No | Y15: Yes | Z15: No | AA15: بدون | AC15: عامل فني تجهيز
A16: 9608 | B16: سعد محمود سعد محمود حسين | C16: بدون | D16: التجهيز | E16: 40 | F16: 10.17260274 | G16: 2010-10-04 | H16: 2011-10-04 | I16: 2020-12-03 | J16: 1981-02-25 | K16: 2010-11-03 | L16: 2011-05-02 | M16: No | N16: Yes | O16: Yes | P16: Yes | Q16: Yes | R16: Yes | S16: Yes | T16: Yes | U16: No | V16: No | W16: No | X16: Yes | Y16: Yes | Z16: Yes | AA16: بدون | AC16: عامل فني تجهيز
A17: 5523 | B17: سعيد بدير شعبان ابراهيم شعبان | C17: اعداديه | D17: التجهيز | E17: 38 | F17: 15.08219178 | G17: 2005-11-07 | H17: 2006-11-07 | I17: 2020-12-03 | J17: 1982-11-16 | K17: 2005-04-24 | L17: 2005-10-21 | M17: No | N17: Yes | O17: Yes | P17: Yes | Q17: Yes | R17: No | S17: Yes | T17: Yes | U17: No | V17: No | W17: No | X17: No | Y17: Yes | Z17: No | AA17: متوسط | AC17: مشرف تجهيز
A18: 910 | B18: سعيد علي يوسف احمد | C18: دبلوم تجاره | D18: التجهيز | E18: 48 | F18: 25.36164384 | G18: 1995-07-31 | H18: 1996-07-30 | I18: 2020-12-03 | J18: 1972-08-27 | M18: Yes | N18: No | O18: No | P18: Yes | Q18: Yes | R18: Yes | S18: Yes | T18: Yes | U18: No | V18: No | W18: No | X18: No | Y18: Yes | Z18: Yes | AA18: متوسط | AC18: عامل فني تجهيز
A19: 11419 | B19: سعيد نصيب يوسف محمد الدمني | C19: دبلوم صناعي | D19: التجهيز | E19: 41 | F19: 8.131506849 | G19: 2012-10-18 | H19: 2013-10-18 | I19: 2020-12-03 | J19: 1979-11-10 | K19: 2012-06-28 | L19: 2012-12-25 | M19: Yes | N19: Yes | O19: Yes | P19: Yes | Q19: Yes | R19: Yes | S19: Yes | T19: Yes | U19: No | V19: No | W19: No | X19: Yes | Y19: Yes | Z19: Yes | AA19: متوسط | AC19: عامل تجهيز
A20: 5267 | B20: صبحي عبدالله عامر ابو الخير | C20: دبلوم صناعي | D20: التجهيز | E20: 56 | F20: 16.49041096 | G20: 2004-06-11 | H20: 2005-06-11 | I20: 2020-12-03 | J20: 1965-03-06 | M20: Yes | N20: Yes | O20: Yes | P20: Yes | Q20: Yes | R20: No | S20: Yes | T20: Yes | U20: No | V20: No | W20: No | X20: No | Y20: Yes | Z20: No | AA20: متوسط
A21: 283 | B21: عادل عبد البدير عويضه غالي | C21: دبلوم تجاره | D21: التجهيز | E21: 36 | F21: 23.9369863 | G21: 1997-01-01 | H21: 1998-01-01 | I21: 2020-12-03 | J21: 1985-03-19 | K21: 1997-01-03 | L21: 1997-07-02 | M21: Yes | N21: No | O21: No | P21: Yes | Q21: Yes | R21: Yes | S21: Yes | T21: Yes | U21: No | V21: No | W21: No | X21: No | Y21: No | Z21: No | AA21: متوسط | AC21: عامل تجهيز
A22: 10003 | B22: عبد الجليل عوض عبد الجليل | C22: دبلوم زراعه | D22: التجهيز | E22: 40 | F22: 10.28219178 | G22: 2010-08-25 | H22: 2011-08-25 | I22: 2020-12-03 | J22: 1981-05-18 | K22: 2010-08-24 | L22: 2011-02-20 | M22: Yes | N22: Yes | O22: Yes | P22: Yes | Q22: Yes | R22: Yes | S22: Yes | T22: Yes | U22: No | V22: No | W22: No | X22: Yes | Y22: Yes | Z22: No | AA22: متوسط | AC22: عامل فني تجهيز
A23: 4239 | B23: عبد الجواد محمد عبدالسلام | C23: بدون | D23: التجهيز | E23: 49 | F23: 18.82739726 | G23: 2002-02-09 | H23: 2003-02-09 | I23: 2020-12-03 | J23: 1971-06-20 | K23: 2002-06-30 | L23: 2002-12-27 | M23: No | N23: Yes | O23: Yes | P23: Yes | Q23: Yes | R23: Yes | S23: Yes | T23: Yes | U23: No | V23: No | W23: No | X23: No | Y23: Yes | Z23: No | AA23: بدون | AC23: عامل فني تجهيز
A24: 8223 | B24: عبد الحميد يحي عبد الحميد احمد | C24: ليسانس تربيه | D24: التجهيز | E24: 36 | F24: 13.20273973 | G24: 2007-09-24 | H24: 2008-09-23 | I24: 2020-12-03 | J24: 1985-02-04 | K24: 2007-09-30 | L24: 2008-03-28 | M24: Yes | N24: Yes | O24: Yes | P24: Yes | Q24: Yes | R24: Yes | S24: Yes | T24: Yes | U24: No | V24: No | W24: No | X24: Yes | Y24: Yes | Z24: No | AA24: عالي | AC24: مهندس تجهيز
A25: 13556 | B25: عبدالستار عبدالحميد عبدالستار محمد | C25: دبلوم صناعي | D25: التجهيز | E25: 25 | F25: 2.487671233 | G25: 2018-06-09 | H25: 2019-06-09 | I25: 2020-12-03 | J25: 1995-06-12 | M25: No | N25: Yes | O25: No | P25: No | Q25: Yes | R25: Yes | S25: Yes | T25: Yes | U25: No | V25: No | W25: No | X25: Yes | Y25: Yes | Z25: No | AA25: متوسط | AC25: عامل تجهيز | AD25: العقد فاضي
A26: 572 | B26: عبدالمنعم حسين عبدالحليم | C26: دبلوم صناعي | D26: التجهيز | E26: 53 | F26: 24.98356164 | G26: 1995-12-16 | H26: 1996-12-15 | I26: 2020-12-03 | J26: 1967-09-24 | K26: 1984-03-17 | L26: 1984-09-13 | M26: Yes | N26: No | O26: No | P26: Yes | Q26: Yes | R26: Yes | S26: Yes | T26: Yes | U26: No | V26: No | W26: No | X26: No | Y26: Yes | Z26: No | AA26: متوسط | AC26: عامل فني تجهيز
A27: 12986 | B27: عصمت احمد ابو اليزيد عبدالغفار | C27: دبلوم زاعه | D27: التجهيز | E27: 42 | F27: 4.895890411 | G27: 2016-01-12 | H27: 2017-01-11 | I27: 2020-12-03 | J27: 1979-01-01 | K27: 2016-11-09 | L27: 2017-05-08 | M27: Yes | N27: Yes | O27: Yes | P27: Yes | Q27: Yes | R27: Yes | S27: Yes | T27: Yes | U27: No | V27: No | W27: No | X27: Yes | Y27: Yes | Z27: Yes | AA27: متوسط | AC27: عامل تجهيز
A28: 13020 | B28: علي خيري شحاته علي شحاته | C28: بدون | D28: التجهيز | E28: 30 | F28: 3.8 | G28: 2017-02-15 | H28: 2018-02-15 | I28: 2020-12-03 | J28: 1991-02-18 | K28: 2017-02-06 | L28: 2017-08-05 | M28: No | N28: Yes | O28: Yes | P28: Yes | Q28: Yes | R28: Yes | S28: Yes | T28: Yes | U28: No | V28: No | W28: No | X28: Yes | Y28: Yes | Z28: Yes | AA28: بدون | AC28: عامل تجهيز
A29: 931 | B29: علي محمود علي السيد عطيه | C29: دبلوم مركز تدريب | D29: التجهيز | E29: 47 | F29: 22.88219178 | G29: 1998-01-21 | H29: 1999-01-21 | I29: 2020-12-03 | J29: 1974-03-16 | K29: 1990-03-22 | L29: 1990-09-18 | M29: Yes | N29: Yes | O29: Yes | P29: Yes | Q29: Yes | R29: Yes | S29: Yes | T29: Yes | U29: No | V29: No | W29: No | X29: No | Y29: Yes | Z29: No | AA29: متوسط | AC29: عامل فني تجهيز
A30: 6937 | B30: عيد فؤاد محمد عبد الحميد علي | C30: دبلوم صناعي | D30: التجهيز | E30: 37 | F30: 14.65205479 | G30: 2006-04-13 | H30: 2007-04-13 | I30: 2020-12-03 | J30: 1983-11-06 | K30: 2006-03-19 | L30: 2006-09-15 | M30: Yes | N30: Yes | O30: Yes | P30: Yes | Q30: Yes | R30: No | S30: Yes | T30: Yes | U30: No | V30: No | W30: No | X30: No | Y30: Yes | Z30: No | AA30: متوسط | AC30: عامل فني تجهيز
A31: 1389 | B31: فؤاد كمال محمد مرسي نوار | C31: بدون | D31: التجهيز | E31: 45 | F31: 21.63561644 | G31: 1999-04-21 | H31: 2000-04-20 | I31: 2020-12-03 | J31: 1975-10-15 | K31: 1999-02-24 | L31: 1999-08-23 | M31: No | N31: No | O31: Yes | P31: Yes | Q31: Yes | R31: No | S31: Yes | T31: No | U31: No | V31: No | W31: No | X31: No | Y31: Yes | Z31: No | AA31: بدون | AC31: عامل تجهيز
A32: 10704 | B32: فكري كمال فهمي ميخائيل | C32: بدون | D32: التجهيز | E32: 50 | F32: 9.545205479 | G32: 2011-05-21 | H32: 2012-05-20 | I32: 2020-12-03 | J32: 1970-08-01 | K32: 2011-02-20 | L32: 2011-08-19 | M32: No | N32: Yes | O32: Yes | P32: Yes | Q32: Yes | R32: Yes | S32: Yes | T32: Yes | U32: No | V32: No | W32: No | X32: Yes | Y32: Yes | Z32: Yes | AA32: بدون | AC32: عامل تجهيز
A33: 763 | B33: ماهريونس محمد فهيم الخولي | C33: دبلوم صناعي | D33: التجهيز | E33: 50 | F33: 24.9260274 | G33: 1996-01-06 | H33: 1997-01-05 | I33: 2020-12-03 | J33: 1970-11-23 | M33: Yes | N33: No | O33: No | P33: Yes | Q33: Yes | R33: Yes | S33: Yes | T33: Yes | U33: No | V33: No | W33: No | X33: No | Y33: Yes | Z33: No | AA33: متوسط | AC33: عامل مسؤول الدسبنسر
A34: 906 | B34: محمد ابو المعاطي عبد النبي مرسي | C34: بدون | D34: التجهيز | E34: 53 | F34: 25.92054795 | G34: 1995-01-08 | H34: 1996-01-08 | I34: 2020-12-03 | J34: 1967-11-02 | M34: No | N34: No | O34: No | P34: Yes | Q34: Yes | R34: Yes | S34: Yes | T34: Yes | U34: No | V34: No | W34: No | X34: No | Y34: Yes | Z34: No | AA34: بدون | AC34: عامل فني تجهيز
A35: 10887 | B35: محمد السيد محمد الحداد | C35: ثانويه ازهريه | D35: التجهيز | E35: 54 | F35: 9.210958904 | G35: 2011-09-20 | H35: 2012-09-19 | I35: 2020-12-03 | J35: 1967-04-16 | K35: 2011-08-17 | L35: 2012-02-13 | M35: Yes | N35: Yes | O35: Yes | P35: Yes | Q35: Yes | R35: Yes | S35: Yes | T35: Yes | U35: Yes | V35: No | W35: No | X35: Yes | Y35: Yes | Z35: Yes | AA35: متوسط | AC35: عامل تجهيز
A36: 12960 | B36: محمد جميل عبد السلام جمعه القراجي | C36: بدون | D36: التجهيز | E36: 29 | F36: 2.380821918 | G36: 2018-07-18 | H36: 2019-07-18 | I36: 2020-12-03 | J36: 1992-02-24 | K36: 2018-04-18 | L36: 2018-10-15 | M36: No | N36: Yes | O36: Yes | P36: Yes | Q36: Yes | R36: Yes | S36: Yes | T36: Yes | U36: No | V36: No | W36: No | X36: Yes | Y36: Yes | Z36: No | AA36: بدون | AC36: عامل فني تجهيز
A37: 13057 | B37: محمد رزق فرج فهمي محمد | C37: بدون | D37: التجهيز | E37: 21 | F37: 3.898630137 | G37: 2017-01-10 | H37: 2018-01-10 | I37: 2020-12-03 | J37: 1999-07-14 | K37: 2017-07-18 | L37: 2018-01-14 | M37: No | N37: Yes | O37: Yes | P37: Yes | Q37: Yes | R37: Yes | S37: Yes | T37: Yes | U37: No | V37: No | W37: No | X37: Yes | Y37: Yes | Z37: No | AA37: بدون | AC37: عامل فني تجهيز
A38: 9473 | B38: محمد رضا حسين عفيفي | C38: بدون | D38: التجهيز | E38: 29 | F38: 5.145205479 | G38: 2015-10-13 | H38: 2016-10-12 | I38: 2020-12-03 | J38: 1992-05-16 | K38: 2015-09-20 | L38: 2016-03-18 | M38: No | N38: Yes | O38: Yes | P38: Yes | Q38: Yes | R38: Yes | S38: Yes | T38: Yes | U38: No | V38: No | W38: No | X38: Yes | Y38: Yes | Z38: Yes | AA38: بدون | AC38: عامل فني تجهيز
A39: 5042 | B39: محمد سعيد عبد الوهاب محمد الزهيري | C39: بدون | D39: التجهيز | E39: 41 | F39: 12.92328767 | G39: 2008-01-04 | H39: 2009-01-03 | I39: 2020-12-03 | J39: 1980-02-16 | K39: 2008-02-27 | L39: 2008-08-25 | M39: No | N39: Yes | O39: Yes | P39: Yes | Q39: Yes | R39: No | S39: Yes | T39: Yes | U39: No | V39: No | W39: No | X39: Yes | Y39: Yes | Z39: Yes | AA39: بدون | AC39: عامل فني تجهيز | AD39: العقد مش ممضي بنفس القلم
A40: 10495 | B40: محمد سمير عبدالله عبد الحميد | C40: دبلوم فني | D40: التجهيز | E40: 34 | F40: 9.791780822 | G40: 2011-02-20 | H40: 2012-02-20 | I40: 2020-12-03 | J40: 1986-10-11 | K40: 2011-10-20 | L40: 2012-04-17 | M40: Yes | N40: Yes | O40: Yes | P40: Yes | Q40: Yes | R40: Yes | S40: Yes | T40: Yes | U40: No | V40: No | W40: No | X40: Yes | Y40: Yes | Z40: Yes | AA40: بدون | AC40: عامل فني تجهيز
A41: 13989 | B41: محمد عادل عبدالحميد الكومي ربيع | C41: الابتدائيه | D41: التجهيز | E41: 24 | F41: 1.191780822 | G41: 2019-09-25 | H41: 2020-09-24 | I41: 2020-12-03 | J41: 1996-09-21 | K41: 2019-09-28 | L41: 2020-03-26 | M41: No | N41: Yes | O41: Yes | P41: Yes | Q41: Yes | R41: Yes | S41: Yes | T41: Yes | U41: No | V41: No | W41: No | X41: No | Y41: No | Z41: No | AA41: بدون | AC41: عامل تجهيز
A42: 9520 | B42: محمد عبد الحليم سليمان عبدالحليم | C42: دبلوم صناعي | D42: التجهيز | E42: 34 | F42: 10.17534247 | G42: 2010-10-03 | H42: 2011-10-03 | I42: 2020-12-03 | J42: 1987-06-02 | K42: 2010-01-26 | L42: 2010-07-25 | M42: Yes | N42: Yes | O42: Yes | P42: Yes | Q42: Yes | R42: Yes | S42: Yes | T42: Yes | U42: No | V42: No | W42: No | X42: Yes | Y42: Yes | Z42: No | AA42: متوسط | AC42: عامل فني تجهيز
A43: 13614 | B43: محمد علام خليفه عيسي | C43: دبلوم زراعه | D43: التجهيز | E43: 24 | F43: 2.189041096 | G43: 2018-09-26 | H43: 2019-09-26 | I43: 2020-12-03 | J43: 1997-05-03 | K43: 2018-09-22 | L43: 2019-03-21 | M43: No | N43: Yes | O43: Yes | P43: Yes | Q43: Yes | R43: Yes | S43: Yes | T43: Yes | U43: No | V43: No | W43: No | X43: No | Y43: No | Z43: No | AA43: متوسط | AC43: عامل تجهيز | AD43: العقد فاضي
A44: 938 | B44: محمد كمال حسن علي | C44: دبلوم تجاره | D44: التجهيز | E44: 50 | F44: 25.50410959 | G44: 1995-06-09 | H44: 1996-06-08 | I44: 2020-12-03 | J44: 1971-02-15 | M44: Yes | N44: No | O44: Yes | P44: Yes | Q44: Yes | R44: Yes | S44: Yes | T44: Yes | U44: No | V44: No | W44: No | X44: No | Y44: Yes | Z44: No | AA44: متوسط | AC44: مشرف تجهيز
A45: 756 | B45: محمد يونس مصطفي محمد | C45: دبلوم تجاره | D45: التجهيز | E45: 49 | F45: 25.36164384 | G45: 1995-07-31 | H45: 1996-07-30 | I45: 2020-12-03 | J45: 1972-05-27 | M45: Yes | N45: No | O45: No | P45: Yes | Q45: Yes | R45: Yes | S45: Yes | T45: Yes | U45: No | V45: No | W45: No | X45: Yes | Y45: Yes | Z45: No | AA45: متوسط | AC45: عامل فني تجهيز
A46: 9405 | B46: محمود سليمان | C46: ثانويه ازهريه | D46: التجهيز | E46: 27 | F46: 11.89863014 | G46: 2009-01-12 | H46: 2010-01-12 | I46: 2020-12-03 | J46: 1994-01-23 | K46: 2009-06-03 | L46: 2009-12-03 | M46: Yes | N46: Yes | O46: Yes | P46: Yes | Q46: Yes | R46: Yes | S46: Yes | T46: Yes | U46: No | V46: No | W46: No | X46: No | Y46: Yes | Z46: Yes | AA46: متوسط | AC46: عامل تجهيز
A47: 12805 | B47: محمود شوقي محمد احمد العالم | C47: دبلوم صناعي | D47: التجهيز | E47: 30 | F47: 2.2 | G47: 2018-09-22 | H47: 2019-09-22 | I47: 2020-12-03 | J47: 1991-03-20 | K47: 2018-09-20 | L47: 2019-03-19 | M47: No | N47: Yes | O47: Yes | P47: Yes | Q47: Yes | R47: Yes | S47: Yes | T47: Yes | U47: No | V47: No | W47: No | X47: Yes | Y47: Yes | Z47: No | AA47: متوسط | AC47: عامل فني تجهيز | AD47: العقد فاضي
A48: 902 | B48: مخلص عبد الحميد فرج الله جدو | C48: دبلوم صناعي | D48: التجهيز | E48: 50 | F48: 24.98356164 | G48: 1995-12-16 | H48: 1996-12-15 | I48: 2020-12-03 | J48: 1971-01-01 | M48: Yes | N48: No | O48: No | P48: Yes | Q48: Yes | R48: Yes | S48: Yes | T48: Yes | U48: No | V48: No | W48: No | Y48: Yes | Z48: No | AA48: متوسط | AC48: مشرف تجهيز
A49: 9341 | B49: مراد فكري مصطفي صالح رزق | C49: دبلوم صناعي | D49: التجهيز | E49: 40 | F49: 11.13424658 | G49: 2009-10-18 | H49: 2010-10-18 | I49: 2020-12-03 | J49: 1981-03-21 | K49: 2009-09-30 | L49: 2010-03-29 | M49: Yes | N49: Yes | O49: Yes | P49: No | Q49: Yes | R49: Yes | S49: Yes | T49: Yes | U49: No | V49: No | W49: No | X49: Yes | Y49: Yes | Z49: Yes | AA49: متوسط | AC49: عامل فني تجهيز
A50: 13936 | B50: مينا وديع كيرلس عوض الله | C50: ثانويه عامه | D50: التجهيز | E50: 26 | F50: 1.490410959 | G50: 2019-06-08 | H50: 2020-06-07 | I50: 2020-12-03 | J50: 1994-07-23 | K50: 2019-07-20 | L50: 2020-01-16 | M50: No | N50: Yes | O50: Yes | P50: Yes | Q50: Yes | R50: Yes | S50: Yes | T50: Yes | U50: No | V50: No | W50: No | X50: Yes | Y50: No | Z50: No | AA50: بدون | AC50: عامل تجهيز
A51: 909 | B51: نبيل نقولا حنا داود | C51: بدون | D51: التجهيز | E51: 63 | F51: 25.24931507 | G51: 1995-09-10 | H51: 1996-09-09 | I51: 2020-12-03 | J51: 1958-06-08 | M51: No | N51: Yes | O51: Yes | P51: Yes | Q51: Yes | R51: Yes | S51: Yes | T51: No | U51: No | V51: No | W51: No | X51: No | Y51: No | Z51: No | AA51: بدون | AC51: عامل فني تجهيز
A52: 13184 | B52: وجدي شنوده فرويز جوده | C52: ثانويه عامه | D52: التجهيز | E52: 37 | F52: 3.4 | G52: 2017-07-11 | H52: 2018-07-11 | I52: 2020-12-03 | J52: 1984-01-08 | K52: 2017-10-05 | L52: 2018-04-03 | M52: Yes | N52: Yes | O52: Yes | P52: Yes | Q52: Yes | R52: Yes | S52: Yes | T52: Yes | U52: No | V52: No | W52: No | X52: Yes | Y52: Yes | Z52: Yes | AA52: متوسط | AC52: عامل فني تجهيز
A53: 761 | B53: ياسر احمدعبد الغني احمد | C53: دبلوم تجاره | D53: التجهيز | E53: 55 | F53: 24.98356164 | G53: 1995-12-16 | H53: 1996-12-15 | I53: 2020-12-03 | J53: 1966-01-28 | K53: 1993-09-13 | L53: 1994-03-12 | M53: No | N53: No | O53: Yes | P53: Yes | Q53: Yes | R53: Yes | S53: Yes | T53: Yes | U53: No | V53: No | W53: No | X53: No | Y53: Yes | Z53: No | AA53: متوسط | AC53: عامل تجهيز
A54: 9590 | B54: ياسر قاسم عبد الخالق عبد السلام | C54: ليسانس شريعه وقانون | D54: التجهيز | E54: 47 | F54: 10.17260274 | G54: 2010-10-04 | H54: 2011-10-04 | I54: 2020-12-03 | J54: 1974-01-12 | K54: 2010-03-07 | L54: 2010-09-03 | M54: No | N54: Yes | O54: Yes | P54: Yes | Q54: Yes | R54: Yes | S54: Yes | T54: Yes | U54: No | V54: No | W54: No | X54: Yes | Y54: Yes | Z54: Yes | AA54: عالي | AC54: عامل فني تجهيز
A55: 932 | B55: ياسر محمد سيد محمد | C55: دبلوم تجاره | D55: التجهيز | E55: 44 | F55: 21.29041096 | G55: 1999-08-25 | H55: 2000-08-24 | I55: 2020-12-03 | J55: 1976-08-02 | K55: 1999-08-04 | L55: 2000-01-31 | M55: Yes | N55: Yes | O55: Yes | P55: Yes | Q55: Yes | R55: No | S55: Yes | T55: No | U55: No | V55: No | W55: No | X55: No | Y55: Yes | Z55: No | AA55: متوسط | AC55: عامل فني تجهيز
A56: 8460 | B56: يوسف محمد حسن خالد | C56: دبلوم صناعي | D56: التجهيز | E56: 38 | F56: 12.93150685 | G56: 2008-01-01 | H56: 2008-12-31 | I56: 2020-12-03 | J56: 1983-01-08 | K56: 2007-11-25 | L56: 2008-05-23 | M56: Yes | N56: Yes | O56: Yes | P56: Yes | Q56: Yes | R56: Yes | S56: Yes | T56: Yes | U56: No | V56: No | W56: No | X56: Yes | Y56: Yes | Z56: No | AA56: متوسط | AC56: عامل تجهيز

Sheet مخزن الكيماويات
A1: رقم الكارتة | B1: الاسم | C1: أسم المؤهل | D1: القسم | E1: السن | F1: الخبرة | G1: بداية التعين | H1: تاريخ انتهاء العقد | I1: تاريخ اليوم | J1: تاريخ الميلاد | K1: بداية الفيش | L1: انتهاء الفيش | M1: المؤهل | N1: كعب العمل | O1: الفيش | P1: شهادة الميلاد | Q1: صورة البطاقة | R1: صورة شخصية | S1: العقد | T1: استمارة 1 | U1: استمارة 6 | V1: استقالة | W1: اخلاء طرف | X1: اقرار استلام عمل | Y1: صحيفة الحالة الاجتماعية | Z1: أستمارة 11 | AA1: نوع المؤهل | AB1: رقم كود الادارة | AC1: الوظيفة | AD1: ملاحظات | AE1: القسم العام | AF1: عالي
A2: 13766 | B2: احمد سمير محمود عبد الخالق | C2: اعداديه | D2: مخزن الكيماويات | E2: 29 | F2: 1.756164384 | G2: 2019-03-03 | H2: 2020-03-02 | I2: 2020-12-03 | J2: 1992-01-01 | K2: 2019-02-12 | L2: 2019-08-11 | M2: No | N2: No | O2: Yes | P2: Yes | Q2: Yes | R2: Yes | S2: Yes | T2: Yes | U2: No | V2: No | W2: No | X2: No | Y2: No | Z2: No | AA2: متوسط | AC2: عامل مخزن الكيماويات | AE2: Prouduction
A3: 1053 | B3: اسامه محمد عبدالله الشبراوي | C3: دبلوم صناعي | D3: مخزن الكيماويات | E3: 56 | F3: 25.92054795 | G3: 1995-01-08 | H3: 1996-01-08 | I3: 2020-12-03 | J3: 1965-03-02 | M3: Yes | N3: No | O3: No | P3: No | Q3: Yes | R3: Yes | S3: Yes | T3: Yes | U3: No | V3: No | W3: No | X3: Yes | Y3: Yes | Z3: No | AA3: متوسط | AC3: عامل مخزن الكيماويات | AE3: Prouduction
A4: 571 | B4: ايمن احمد احمد حجاب | C4: دبلوم صناعي | D4: مخزن الكيماويات | E4: 49 | F4: 24.7369863 | G4: 1996-03-15 | H4: 1997-03-15 | I4: 2020-12-03 | J4: 1972-01-01 | M4: Yes | N4: No | O4: No | P4: No | Q4: No | R4: No | S4: Yes | T4: Yes | U4: No | V4: No | W4: No | X4: No | Y4: Yes | Z4: Yes | AA4: متوسط | AC4: عامل مخزن الكيماويات | AE4: Prouduction
A5: 1553 | B5: ايمن كمال حسن عاشور | C5: معهد فني تجاري | D5: مخزن الكيماويات | E5: 47 | F5: 8.591780822 | G5: 2012-05-03 | H5: 2013-05-03 | I5: 2020-12-03 | J5: 1974-04-05 | K5: 2012-02-29 | L5: 2012-08-27 | M5: Yes | N5: Yes | O5: Yes | P5: Yes | Q5: Yes | R5: Yes | S5: Yes | T5: Yes | U5: No | V5: No | W5: No | X5: Yes | Y5: Yes | Z5: Yes | AA5: فوق متوسط | AC5: امين مخزن الكيماويات | AE5: Prouduction
A6: 13732 | B6: سعيد عبدالعزيز خليل الفقي | C6: بدون | D6: مخزن الكيماويات | E6: 44 | F6: 1.917808219 | G6: 2019-01-03 | H6: 2020-01-03 | I6: 2020-12-03 | J6: 1977-04-15 | K6: 2018-12-24 | L6: 2019-06-22 | M6: No | N6: Yes | O6: Yes | P6: Yes | Q6: Yes | R6: Yes | S6: Yes | T6: Yes | U6: No | V6: No | W6: No | X6: Yes | Y6: Yes | Z6: No | AA6: بدون | AC6: عامل مخزن الكيماويات | AD6: العقد فاضي | AE6: Prouduction
A7: 7542 | B7: شريف حماد محمد علي حماد | C7: بدون | D7: مخزن الكيماويات | E7: 42 | F7: 13.35068493 | G7: 2007-08-01 | H7: 2008-07-31 | I7: 2020-12-03 | J7: 1978-11-01 | M7: Yes | N7: Yes | O7: Yes | P7: Yes | Q7: Yes | R7: Yes | S7: Yes | T7: Yes | U7: No | V7: No | W7: No | X7: No | Y7: Yes | Z7: No | AA7: بدون | AC7: عامل مخزن الكيماويات | AE7: Prouduction
A8: 13917 | B8: علي حسين علي حسين | C8: دبلوم صناعي | D8: مخزن الكيماويات | E8: 24 | F8: 1.073972603 | G8: 2019-11-07 | H8: 2020-11-06 | I8: 2020-12-03 | J8: 1996-11-15 | K8: 2019-06-19 | L8: 2019-12-16 | M8: No | N8: Yes | O8: Yes | P8: Yes | Q8: Yes | R8: Yes | S8: Yes | T8: Yes | U8: Yes | V8: No | W8: No | X8: Yes | Y8: Yes | Z8: No | AA8: بدون | AC8: عامل مخزن مستلزمات | AE8: Prouduction
A9: 13710 | B9: محمد صالح امين سيد احمد | C9: دبلوم صناعي | D9: مخزن الكيماويات | E9: 32 | F9: 1.876712329 | G9: 2019-01-18 | H9: 2020-01-18 | I9: 2020-12-03 | J9: 1989-01-01 | K9: 2018-10-18 | L9: 2019-04-16 | M9: Yes | N9: Yes | O9: Yes | P9: Yes | Q9: No | R9: Yes | S9: Yes | T9: Yes | U9: No | V9: No | W9: No | X9: Yes | Y9: Yes | Z9: No | AA9: متوسط | AC9: عامل مخزن الكيماويات | AE9: Prouduction
A10: 4795 | B10: يوسف محمد مصطفي صالح | C10: دبلوم صناعي | D10: مخزن الكيماويات | E10: 41 | F10: 16.6 | G10: 2004-05-02 | H10: 2005-05-02 | I10: 2020-12-03 | J10: 1979-12-24 | M10: Yes | N10: Yes | O10: Yes | P10: Yes | Q10: Yes | R10: Yes | S10: Yes | T10: Yes | U10: No | V10: No | W10: No | X10: No | Y10: Yes | Z10: No | AA10: متوسط | AC10: عامل مخزن الكيماويات | AE10: Prouduction

Sheet معمل خواص
A1: رقم الكارتة | B1: الاسم | C1: أسم المؤهل | D1: القسم | E1: السن | F1: الخبرة | G1: بداية التعين | H1: تاريخ انتهاء العقد | I1: تاريخ اليوم | J1: تاريخ الميلاد | K1: بداية الفيش | L1: انتهاء الفيش | M1: المؤهل | N1: كعب العمل | O1: الفيش | P1: شهادة الميلاد | Q1: صورة البطاقة | R1: صورة شخصية | S1: العقد | T1: استمارة 1 | U1: استمارة 6 | V1: استقالة | W1: اخلاء طرف | X1: اقرار استلام عمل | Y1: صحيفة الحالة الاجتماعية | Z1: أستمارة 11 | AA1: نوع المؤهل | AB1: رقم كود الادارة | AC1: الوظيفة | AD1: ملاحظات | AE1: القسم العام | AF1: عالي
A2: 12846 | B2: احمد محمد عبداللطيف ابو عرب | C2: بكالوريوس علوم | D2: معمل خواص | E2: 29 | F2: 4.2 | G2: 2016-09-22 | H2: 2017-09-22 | I2: 2020-12-03 | J2: 1991-07-10 | K2: 2016-05-09 | L2: 2016-11-05 | M2: Yes | N2: Yes | O2: Yes | P2: Yes | Q2: Yes | R2: Yes | S2: No | T2: Yes | U2: No | V2: No | W2: No | X2: Yes | Y2: Yes | Z2: Yes | AA2: عالي | AC2: مهندس معمل الالوان | AD2: العقد فاضي بدون توقيعات | AE2: Prouduction
A3: 9385 | B3: تامر صابر محمد جميل محمد | C3: معهد خدمه اجنماعيه | D3: معمل خواص | E3: 42 | F3: 11.89863014 | G3: 2009-01-12 | H3: 2010-01-12 | I3: 2020-12-03 | J3: 1979-01-12 | M3: Yes | N3: Yes | O3: Yes | P3: Yes | Q3: Yes | R3: Yes | S3: Yes | T3: Yes | U3: No | V3: No | W3: No | X3: Yes | Y3: Yes | Z3: Yes | AA3: فوق متوسط | AC3: فني معمل الالوان | AD3: شهاده موقته | AE3: Prouduction
A4: 8232 | B4: خالد محمد شعبان الصافي | C4: دبلوم صناعي | D4: معمل خواص | E4: 35 | F4: 12.59726027 | G4: 2008-05-02 | H4: 2009-05-02 | I4: 2020-12-03 | J4: 1985-09-03 | K4: 2007-12-10 | L4: 2008-06-07 | M4: Yes | N4: Yes | O4: Yes | P4: Yes | Q4: Yes | R4: Yes | S4: Yes | T4: Yes | U4: No | V4: No | W4: No | X4: Yes | Y4: Yes | Z4: Yes | AA4: متوسط | AC4: فني معمل الالوان | AD4: كذا استمار 1 | AE4: Prouduction
A5: 1055 | B5: عادل محمد حسين حسين العش | C5: بدون | D5: معمل خواص | E5: 47 | F5: 23.8109589 | G5: 1997-02-16 | H5: 1998-02-16 | I5: 2020-12-03 | J5: 1973-09-01 | M5: No | N5: Yes | O5: Yes | P5: Yes | Q5: Yes | R5: Yes | S5: Yes | T5: Yes | U5: No | V5: No | W5: No | X5: No | Y5: Yes | Z5: No | AA5: بدون | AC5: فني معمل الخواص | AD5: تاريخ استماره واحد مختلف مع العقد | AE5: Prouduction
A6: 5898 | B6: عماد فاروق فهمي بشاي | C6: بكالوريس تربيه | D6: معمل خواص | E6: 47 | F6: 14.84383562 | G6: 2006-02-02 | H6: 2007-02-02 | I6: 2020-12-03 | J6: 1973-08-05 | K6: 2005-12-12 | L6: 2006-06-10 | M6: Yes | N6: Yes | O6: Yes | P6: Yes | Q6: Yes | R6: Yes | S6: Yes | T6: Yes | U6: No | V6: No | W6: No | X6: No | Y6: Yes | Z6: No | AA6: عالي | AC6: مهندس معمل الالوان | AE6: Admin
A7: 1050 | B7: محمد خميس سليمان حيدر | C7: دبلوم صناعي | D7: معمل خواص | E7: 56 | F7: 25.16164384 | G7: 1995-10-12 | H7: 1996-10-11 | I7: 2020-12-03 | J7: 1965-04-05 | M7: Yes | N7: No | O7: No | P7: Yes | Q7: No | R7: Yes | S7: Yes | T7: Yes | U7: No | V7: No | W7: No | X7: No | Y7: Yes | Z7: No | AA7: متوسط | AC7: مشرف معمل الالوان | AE7: Prouduction
A8: 6619 | B8: محمد خميس عبد ربه علي رضوان | C8: دبلوم تجاره | D8: معمل خواص | E8: 24 | F8: 14.8109589 | G8: 2006-02-14 | H8: 2007-02-14 | I8: 2020-12-03 | J8: 1997-01-10 | M8: Yes | N8: No | O8: Yes | P8: Yes | Q8: Yes | R8: Yes | S8: Yes | T8: Yes | U8: No | V8: No | W8: No | X8: No | Y8: Yes | Z8: No | AA8: متوسط | AC8: فني معمل الخواص | AE8: Prouduction
A9: 13735 | B9: محمد سعيد محمد محمود السيد | C9: بكالوريوسعلوم كمياء | D9: معمل خواص | E9: 28 | F9: 1.884931507 | G9: 2019-01-15 | H9: 2020-01-15 | I9: 2020-12-03 | J9: 1993-04-07 | K9: 2019-01-12 | L9: 2019-07-11 | M9: Yes | N9: Yes | O9: Yes | P9: Yes | Q9: Yes | R9: Yes | S9: Yes | T9: Yes | U9: No | V9: Yes | W9: No | X9: Yes | Y9: Yes | Z9: No | AA9: عالي | AC9: مهندس كيمائي معمل الالوان | AD9: تاريخ استماره 1 (3-3-2019) | AE9: Prouduction
A10: 913 | B10: محمود علي يوسف احمد | C10: دبلوم تجاره | D10: معمل خواص | E10: 49 | F10: 25.29041096 | G10: 1995-08-26 | H10: 1996-08-25 | I10: 2020-12-03 | J10: 1972-02-03 | M10: Yes | N10: No | O10: No | P10: Yes | Q10: Yes | R10: Yes | S10: Yes | T10: Yes | U10: No | V10: No | W10: No | X10: No | Y10: Yes | Z10: No | AA10: متوسط | AC10: مشرف معمل الخواص | AE10: Prouduction
A11: 7611 | B11: وليد يونس فهيم السيد الخولي | C11: دبلوم صناعي | D11: معمل خواص | E11: 38 | F11: 13.8109589 | G11: 2007-02-14 | H11: 2008-02-14 | I11: 2020-12-03 | J11: 1983-01-01 | K11: 2006-12-11 | L11: 2007-06-09 | M11: Yes | N11: Yes | O11: Yes | P11: Yes | Q11: Yes | R11: Yes | S11: Yes | T11: Yes | U11: No | V11: No | W11: No | X11: Yes | Y11: Yes | Z11: No | AA11: متوسط | AC11: فني معمل الالوان | AE11: Prouduction

Sheet معمل الوان
A1: رقم الكارتة | B1: الاسم | C1: أسم المؤهل | D1: القسم | E1: السن | F1: الخبرة | G1: بداية التعين | H1: تاريخ انتهاء العقد | I1: تاريخ اليوم | J1: تاريخ الميلاد | K1: بداية الفيش | L1: انتهاء الفيش | M1: المؤهل | N1: كعب العمل | O1: الفيش | P1: شهادة الميلاد | Q1: صورة البطاقة | R1: صورة شخصية | S1: العقد | T1: استمارة 1 | U1: استمارة 6 | V1: استقالة | W1: اخلاء طرف | X1: اقرار استلام عمل | Y1: صحيفة الحالة الاجتماعية | Z1: أستمارة 11 | AA1: نوع المؤهل | AB1: رقم كود الادارة | AC1: الوظيفة | AD1: ملاحظات | AE1: القسم العام | AF1: عالي

Sheet الورشة
A1: رقم الكارتة | B1: الاسم | C1: أسم المؤهل | D1: القسم | E1: السن | F1: الخبرة | G1: بداية التعين | H1: تاريخ انتهاء العقد | I1: تاريخ اليوم | J1: تاريخ الميلاد | K1: بداية الفيش | L1: انتهاء الفيش | M1: المؤهل | N1: كعب العمل | O1: الفيش | P1: شهادة الميلاد | Q1: صورة البطاقة | R1: صورة شخصية | S1: العقد | T1: استمارة 1 | U1: استمارة 6 | V1: استقالة | W1: اخلاء طرف | X1: اقرار استلام عمل | Y1: صحيفة الحالة الاجتماعية | Z1: أستمارة 11 | AA1: نوع المؤهل | AB1: رقم كود الادارة | AC1: الوظيفة | AD1: ملاحظات | AE1: القسم العام | AF1: عالي
A2: 5904 | B2: ابراهيم محمد ابراهيم علي جاد | C2: دبلوم صناعي | D2: الورشة | E2: 54 | F2: 14.65205479 | G2: 2006-04-13 | H2: 2007-04-13 | I2: 2020-12-03 | J2: 1967-01-02 | K2: 2005-09-19 | L2: 2006-03-18 | M2: Yes | N2: Yes | O2: Yes | P2: Yes | Q2: No | R2: No | S2: Yes | T2: Yes | U2: No | V2: No | W2: No | X2: No | Y2: Yes | Z2: No | AA2: متوسط | AC2: فني صيانه | AE2: Prouduction
A3: 13744 | B3: احمد عبدالفتاح علي يوسف | C3: ثانويه عامه | D3: الورشة | E3: 21 | F3: 1.589041096 | G3: 2019-05-03 | H3: 2020-05-02 | I3: 2020-12-03 | J3: 2000-02-06 | K3: 2019-01-20 | L3: 2019-07-19 | M3: Yes | N3: Yes | O3: Yes | P3: Yes | Q3: Yes | R3: Yes | S3: Yes | T3: Yes | U3: Yes | V3: No | W3: No | X3: Yes | Y3: Yes | Z3: No | AA3: متوسط | AC3: فني محطه المياه | AD3: العقد فاضي | AE3: Prouduction
A4: 4942 | B4: احمد محمد ابراهيم شعبان | C4: دبلوم صناعي | D4: الورشة | E4: 37 | F4: 16.67671233 | G4: 2004-04-04 | H4: 2005-04-04 | I4: 2020-12-03 | J4: 1984-03-28 | K4: 2004-02-08 | L4: 2004-08-06 | M4: Yes | N4: Yes | O4: Yes | P4: No | Q4: No | R4: No | S4: Yes | T4: Yes | U4: No | V4: No | W4: No | X4: No | Y4: Yes | Z4: No | AA4: متوسط | AC4: فني صيانه | AE4: Prouduction
A5: 9623 | B5: اسامه جابر شاهين رضوان | C5: بدون | D5: الورشة | E5: 47 | F5: 10.63013699 | G5: 2010-04-20 | H5: 2011-04-20 | I5: 2020-12-03 | J5: 1973-08-16 | M5: No | N5: Yes | O5: No | P5: No | Q5: Yes | R5: Yes | S5: Yes | T5: Yes | U5: No | V5: No | W5: No | X5: Yes | Y5: Yes | Z5: No | AA5: بدون | AC5: مشرف غلايات | AE5: Prouduction
A6: 1108 | B6: اشرف عبدالكريم محمد جمعه | C6: دبلوم صناعي | D6: الورشة | E6: 44 | F6: 20.09589041 | G6: 2000-11-03 | H6: 2001-11-03 | I6: 2020-12-03 | J6: 1977-01-11 | K6: 2000-02-13 | L6: 2000-08-11 | M6: Yes | N6: Yes | O6: Yes | P6: No | Q6: No | R6: No | S6: Yes | T6: Yes | U6: No | V6: No | W6: No | X6: No | Y6: No | Z6: No | AA6: متوسط | AC6: مشرف صيانه | AE6: Prouduction
A7: 1106 | B7: اشرف محمد محمد رجب بركات | C7: بدون | D7: الورشة | E7: 45 | F7: 25.5369863 | G7: 1995-05-28 | H7: 1996-05-27 | I7: 2020-12-03 | J7: 1975-12-18 | M7: No | N7: No | O7: No | P7: No | Q7: No | R7: Yes | S7: Yes | T7: Yes | U7: No | V7: No | W7: No | X7: No | Y7: Yes | Z7: No | AA7: بدون | AC7: لحام | AE7: Prouduction
A8: 4076 | B8: السيد السعيد هاشم علي الديب | C8: بدون | D8: الورشة | E8: 43 | F8: 25.91780822 | G8: 1995-01-09 | H8: 1996-01-09 | I8: 2020-12-03 | J8: 1978-03-22 | K8: 1995-08-28 | L8: 1996-02-24 | M8: No | N8: No | O8: Yes | P8: No | Q8: No | R8: Yes | S8: Yes | T8: Yes | U8: No | V8: No | W8: No | X8: No | Y8: Yes | Z8: No | AA8: بدون | AC8: فني غلايات | AE8: Prouduction
A9: 1117 | B9: ايمن عبدالمطلب ابراهيم احمد عطيه | C9: دبلوم صناعي | D9: الورشة | E9: 48 | F9: 22.29315068 | G9: 1998-08-24 | H9: 1999-08-24 | I9: 2020-12-03 | J9: 1973-03-30 | K9: 1973-03-30 | L9: 1973-09-26 | M9: Yes | N9: Yes | O9: Yes | P9: No | Q9: No | R9: No | S9: Yes | T9: No | U9: No | V9: No | W9: No | X9: No | Y9: Yes | Z9: No | AA9: متوسط | AC9: لحام | AE9: Prouduction
A10: 764 | B10: جمال رضوان ابراهيم | C10: دبلوم صناعي | D10: الورشة | E10: 55 | F10: 25.36164384 | G10: 1995-07-31 | H10: 1996-07-30 | I10: 2020-12-03 | J10: 1965-08-15 | M10: No | N10: No | O10: No | P10: Yes | Q10: Yes | R10: Yes | S10: Yes | T10: Yes | U10: No | V10: No | W10: No | X10: Yes | Y10: Yes | Z10: No | AA10: متوسط | AC10: فني محطه المياه | AE10: Prouduction
A11: 771 | B11: رجب حلمي عطيه شعبان | C11: دبلوم تجاره | D11: الورشة | E11: 55 | F11: 24.90958904 | G11: 1996-01-12 | H11: 1997-01-11 | I11: 2020-12-03 | J11: 1965-11-16 | K11: 2007-02-08 | L11: 2007-08-07 | M11: No | N11: No | O11: No | P11: Yes | Q11: No | R11: No | S11: Yes | T11: Yes | U11: No | V11: No | W11: No | X11: No | Y11: No | Z11: No | AA11: متوسط | AC11: فني محطه المياه | AE11: Prouduction
A12: 1107 | B12: رمضان جلال عبدالله حسين | C12: بدون | D12: الورشة | E12: 42 | F12: 25.16164384 | G12: 1995-10-12 | H12: 1996-10-11 | I12: 2020-12-03 | J12: 1978-11-19 | M12: No | N12: No | O12: No | P12: Yes | Q12: No | R12: No | S12: Yes | T12: Yes | U12: No | V12: No | W12: No | X12: No | Y12: Yes | Z12: No | AA12: بدون | AC12: فني صيانه | AE12: Prouduction
A13: 1153 | B13: عاطف كامل حسين ابو زيد فرج | C13: دبلوم صناعي | D13: الورشة | E13: 52 | F13: 25.54520548 | G13: 1995-05-25 | H13: 1996-05-24 | I13: 2020-12-03 | J13: 1969-01-14 | M13: Yes | N13: No | O13: No | P13: Yes | Q13: No | R13: Yes | S13: Yes | T13: Yes | U13: No | V13: No | W13: No | X13: No | Y13: Yes | Z13: No | AA13: متوسط | AC13: مشرف كهرباء | AE13: Prouduction
A14: 13459 | B14: عبدالرحمن خميس محمد محمد مصطفي | C14: الابتدائيه | D14: الورشة | E14: 20 | F14: 2.15890411 | G14: 2018-10-07 | H14: 2019-10-07 | I14: 2020-12-03 | J14: 2000-09-28 | K14: 2018-07-05 | L14: 2019-01-01 | M14: Yes | N14: Yes | O14: Yes | P14: Yes | Q14: Yes | R14: Yes | S14: Yes | T14: No | U14: No | V14: No | W14: No | X14: Yes | Y14: No | Z14: No | AA14: بدون | AC14: عامل صيانه | AD14: العقد فاضي | AE14: Prouduction
A15: 5329 | B15: عبدالرحمن غمري عبدالرحمن حسب النبي | C15: بدون | D15: الورشة | E15: 46 | F15: 15.92876712 | G15: 2005-01-02 | H15: 2006-01-02 | I15: 2020-12-03 | J15: 1975-05-27 | K15: 2004-12-06 | L15: 2005-06-04 | M15: No | N15: Yes | O15: Yes | P15: Yes | Q15: Yes | R15: No | S15: Yes | T15: Yes | U15: No | V15: No | W15: No | X15: No | Y15: Yes | Z15: No | AA15: بدون | AC15: فني كهرباء | AE15: Prouduction
A16: 6066 | B16: عرفه محمد محمد علي البرماوي | C16: دبلوم زراعه | D16: الورشة | E16: 33 | F16: 14.84383562 | G16: 2006-02-02 | H16: 2007-02-02 | I16: 2020-12-03 | J16: 1987-08-03 | K16: 2002-10-20 | L16: 2003-04-18 | M16: Yes | N16: Yes | O16: Yes | P16: Yes | Q16: No | R16: Yes | S16: Yes | T16: Yes | U16: No | V16: No | W16: No | X16: No | Y16: Yes | Z16: No | AA16: متوسط | AC16: فني صيانه | AE16: Prouduction
A17: 13750 | B17: علي محمد عباس علي ريان | C17: دبلوم صناعي | D17: الورشة | E17: 23 | F17: 1.909589041 | G17: 2019-01-06 | H17: 2020-01-06 | I17: 2020-12-03 | J17: 1998-05-26 | K17: 2019-02-07 | L17: 2019-08-06 | M17: No | N17: Yes | O17: Yes | P17: Yes | Q17: Yes | R17: Yes | S17: Yes | T17: Yes | U17: Yes | V17: No | W17: No | X17: Yes | Y17: Yes | Z17: No | AA17: متوسط | AC17: عامل صيانه (مساعد) | AD17: تاريخ الاستمار غير العقد | AE17: Prouduction
A18: 13595 | B18: عمر محمد حسن عبدالعزيز | C18: دبلوم صناعي | D18: الورشة | E18: 22 | F18: 1.920547945 | G18: 2019-01-02 | H18: 2020-01-02 | I18: 2020-12-03 | J18: 1998-09-26 | K18: 2001-09-16 | L18: 2002-03-15 | M18: Yes | N18: Yes | O18: Yes | P18: Yes | Q18: Yes | R18: Yes | S18: Yes | T18: Yes | U18: No | V18: No | W18: No | X18: Yes | Y18: Yes | Z18: Yes | AA18: متوسط | AC18: عامل صيانه (مساعد) | AE18: Prouduction
A19: 1101 | B19: ماهر عبدالقادر البسطويسي سلام | C19: دبلوم تجاره | D19: الورشة | E19: 57 | F19: 24.98356164 | G19: 1995-12-16 | H19: 1996-12-15 | I19: 2020-12-03 | J19: 1963-08-11 | M19: No | N19: No | O19: No | P19: Yes | Q19: No | R19: No | S19: Yes | T19: Yes | U19: No | V19: No | W19: No | X19: No | Y19: Yes | Z19: No | AA19: متوسط | AC19: فني كمبروسر | AE19: Prouduction
A20: 6729 | B20: متولي محمد شحاته حسن | C20: بدون | D20: الورشة | E20: 42 | F20: 14.59452055 | G20: 2006-05-04 | H20: 2007-05-04 | I20: 2020-12-03 | J20: 1978-09-29 | K20: 2006-01-17 | L20: 2006-07-16 | M20: No | N20: Yes | O20: Yes | P20: Yes | Q20: No | R20: No | S20: Yes | T20: Yes | U20: No | V20: No | W20: No | X20: Yes | Y20: Yes | Z20: No | AA20: بدون | AC20: فني صيانه (نجار) | AE20: Prouduction
A21: 50404 | B21: محمد ابراهيم زيد محمد | C21: بدون | D21: الورشة | E21: 39 | F21: 15.50958904 | G21: 2005-06-04 | H21: 2006-06-04 | I21: 2020-12-03 | J21: 1981-11-26 | K21: 2005-03-28 | L21: 2005-09-24 | M21: No | N21: Yes | O21: Yes | P21: Yes | Q21: No | R21: No | S21: Yes | T21: Yes | U21: No | V21: No | W21: No | X21: No | Y21: Yes | Z21: No | AA21: بدون | AC21: فني كهرباء (كهربائي) | AE21: Prouduction
A22: 13773 | B22: محمد جاد محمد ابو ذكري | C22: الابتدائيه | D22: الورشة | E22: 33 | F22: 1.687671233 | G22: 2019-03-28 | H22: 2020-03-27 | I22: 2020-12-03 | J22: 1987-08-23 | K22: 2019-03-14 | L22: 2019-09-10 | M22: No | N22: Yes | O22: Yes | P22: Yes | Q22: Yes | R22: Yes | S22: Yes | T22: Yes | U22: Yes | V22: No | W22: No | X22: Yes | Y22: Yes | Z22: No | AA22: بدون | AC22: فني كهرباء | AE22: Prouduction
A23: 9526 | B23: محمد صلاح محمد محمد الزنفلي | C23: دبلوم صناعي | D23: الورشة | E23: 47 | F23: 10.17260274 | G23: 2010-10-04 | H23: 2011-10-04 | I23: 2020-12-03 | J23: 1974-03-10 | K23: 2010-01-19 | L23: 2010-07-18 | M23: Yes | N23: No | O23: Yes | P23: Yes | Q23: No | R23: Yes | S23: Yes | T23: Yes | U23: No | V23: No | W23: No | X23: Yes | Y23: Yes | Z23: No | AA23: متوسط | AC23: فني كهرباء (كهربائي) | AE23: Prouduction
A24: 1105 | B24: محمد عبدالحميد عبدالقادر رجب | C24: بدون | D24: الورشة | E24: 57 | F24: 25.16164384 | G24: 1995-10-12 | H24: 1996-10-11 | I24: 2020-12-03 | J24: 1963-11-14 | M24: No | N24: No | O24: No | P24: Yes | Q24: No | R24: Yes | S24: Yes | T24: Yes | U24: No | V24: No | W24: No | X24: No | Y24: Yes | Z24: No | AA24: بدون | AC24: فني صيانه | AE24: Prouduction
A25: 4840 | B25: محمد عبدالعزيز حسن | C25: دبلوم صناعي | D25: الورشة | E25: 53 | F25: 16.67671233 | G25: 2004-04-04 | H25: 2005-04-04 | I25: 2020-12-03 | J25: 1968-04-17 | K25: 2001-10-11 | L25: 2002-04-09 | M25: Yes | N25: No | O25: Yes | P25: Yes | Q25: No | R25: Yes | S25: Yes | T25: No | U25: No | V25: No | W25: No | X25: No | Y25: Yes | Z25: No | AA25: متوسط | AC25: فني كهرباء | AE25: Prouduction
A26: 270 | B26: محمد علي حسين عبدالله | C26: بدون | D26: الورشة | E26: 54 | F26: 23.57260274 | G26: 1997-05-14 | H26: 1998-05-14 | I26: 2020-12-03 | J26: 1966-07-29 | K26: 1997-05-05 | L26: 1997-11-01 | M26: No | N26: No | O26: No | P26: Yes | Q26: Yes | R26: Yes | S26: Yes | T26: Yes | U26: No | V26: No | W26: No | X26: Yes | Y26: Yes | Z26: No | AA26: بدون | AC26: فني كمبروسر | AE26: Prouduction
A27: 4338 | B27: محمد علي محمد حسن محمد | C27: بدون | D27: الورشة | E27: 46 | F27: 12.95616438 | G27: 2007-12-23 | H27: 2008-12-22 | I27: 2020-12-03 | J27: 1974-12-07 | K27: 2007-10-30 | L27: 2008-04-27 | M27: No | N27: Yes | O27: Yes | P27: Yes | Q27: No | R27: Yes | S27: Yes | T27: Yes | U27: No | V27: No | W27: No | X27: Yes | Y27: Yes | Z27: No | AA27: بدون | AC27: لحام | AE27: Prouduction
A28: 1151 | B28: محمد فوزي محمد ابراهيم | C28: دبلوم صناعي | D28: الورشة | E28: 48 | F28: 25.5369863 | G28: 1995-05-28 | H28: 1996-05-27 | I28: 2020-12-03 | J28: 1972-10-07 | M28: Yes | N28: No | O28: No | P28: Yes | Q28: Yes | R28: No | S28: Yes | T28: Yes | U28: No | V28: No | W28: No | X28: No | Y28: Yes | Z28: No | AA28: متوسط | AC28: فني كهرباء | AE28: Prouduction
A29: 6067 | B29: محمد مصطفي عبدالعزيز عبدالجواد | C29: بدون | D29: الورشة | E29: 41 | F29: 14.8109589 | G29: 2006-02-14 | H29: 2007-02-14 | I29: 2020-12-03 | J29: 1979-10-23 | K29: 2005-10-26 | L29: 2006-04-24 | M29: No | N29: Yes | O29: Yes | P29: Yes | Q29: Yes | R29: No | S29: Yes | T29: Yes | U29: No | V29: No | W29: No | X29: No | Y29: Yes | Z29: No | AA29: بدون | AC29: فني صيانه | AE29: Prouduction
A30: 4954 | B30: محمود احمد محمد محمود | C30: بدون | D30: الورشة | E30: 48 | F30: 16.67671233 | G30: 2004-04-04 | H30: 2005-04-04 | I30: 2020-12-03 | J30: 1973-01-07 | M30: No | N30: Yes | O30: No | P30: Yes | Q30: Yes | R30: Yes | S30: Yes | T30: Yes | U30: No | V30: No | W30: No | X30: No | Y30: Yes | Z30: No | AA30: بدون | AC30: عامل غلايات | AE30: Prouduction
A31: 1157 | B31: محمود سعد الشوره عيسي | C31: دبلوم صناعي | D31: الورشة | E31: 45 | F31: 3.695890411 | G31: 2017-03-25 | H31: 2018-03-25 | I31: 2020-12-03 | J31: 1976-01-19 | K31: 2017-02-23 | L31: 2017-08-22 | M31: Yes | N31: Yes | O31: Yes | P31: Yes | Q31: Yes | R31: Yes | S31: Yes | T31: Yes | U31: No | V31: No | W31: No | X31: No | Y31: Yes | Z31: Yes | AA31: متوسط | AC31: فني كهرباء | AE31: Prouduction
A32: 1113 | B32: محمود محمد محمود عبدالجليل | C32: دبلوم صناعي | D32: الورشة | E32: 47 | F32: 23.63561644 | G32: 1997-04-21 | H32: 1998-04-21 | I32: 2020-12-03 | J32: 1973-10-05 | M32: Yes | N32: Yes | O32: Yes | P32: Yes | Q32: Yes | R32: No | S32: Yes | T32: Yes | U32: No | V32: No | W32: No | X32: No | Y32: Yes | Z32: No | AA32: متوسط | AC32: مشرف صيانه (اعمال اداريه ) | AE32: Prouduction
A33: 1204 | B33: مصطفي محمود محمد ابراهيم | C33: بدون | D33: الورشة | E33: 41 | F33: 20.17260274 | G33: 2000-10-06 | H33: 2001-10-06 | I33: 2020-12-03 | J33: 1980-03-21 | M33: No | N33: Yes | O33: No | P33: Yes | Q33: No | R33: Yes | S33: Yes | T33: Yes | U33: No | V33: No | W33: No | X33: No | Y33: Yes | Z33: No | AA33: بدون | AC33: فني غلايات | AE33: Prouduction
A34: 765 | B34: هاني محمد عبد الرحمن ابوالفتوح مشالي | C34: دبلوم صناعي | D34: الورشة | E34: 48 | F34: 22.90410959 | G34: 1998-01-13 | H34: 1999-01-13 | I34: 2020-12-03 | J34: 1972-09-27 | M34: Yes | N34: Yes | O34: Yes | P34: Yes | Q34: Yes | R34: Yes | S34: Yes | T34: No | U34: No | V34: No | W34: No | X34: No | Y34: Yes | Z34: No | AA34: متوسط | AC34: مشرف محطه المياه | AE34: Prouduction
A35: 6281 | B35: هشام عبدالراضي فؤاد مراد | C35: بدون | D35: الورشة | E35: 39 | F35: 14.8109589 | G35: 2006-02-14 | H35: 2007-02-14 | I35: 2020-12-03 | J35: 1981-07-25 | M35: No | N35: Yes | O35: Yes | P35: Yes | Q35: Yes | R35: No | S35: Yes | T35: Yes | U35: No | V35: No | W35: No | X35: No | Y35: Yes | Z35: No | AA35: بدون | AC35: فني صيانه | AE35: Prouduction
A36: 1110 | B36: وائل احمد عبدالمقصود | C36: دبلوم صناعي | D36: الورشة | E36: 46 | F36: 23.9260274 | G36: 1997-01-05 | H36: 1998-01-05 | I36: 2020-12-03 | J36: 1975-01-20 | K36: 1997-01-29 | L36: 1997-07-28 | M36: No | N36: No | O36: Yes | P36: Yes | Q36: No | R36: Yes | S36: Yes | T36: Yes | U36: No | V36: No | W36: No | X36: No | Y36: Yes | Z36: No | AA36: متوسط | AC36: فني صيانه | AE36: Prouduction
A37: 1109 | B37: ياسر نصرالدين محمود دواد سليمان | C37: دبلوم صناعي | D37: الورشة | E37: 45 | F37: 24.92328767 | G37: 1996-01-07 | H37: 1997-01-06 | I37: 2020-12-03 | J37: 1975-10-06 | M37: No | N37: No | O37: No | P37: Yes | Q37: Yes | R37: No | S37: Yes | T37: Yes | U37: No | V37: No | W37: No | X37: No | Y37: Yes | Z37: No | AA37: متوسط | AC37: لحام (صيانه) | AE37: Prouduction

Sheet التريكو
A1: رقم الكارتة | B1: الاسم | C1: أسم المؤهل | D1: القسم | E1: السن | F1: الخبرة | G1: بداية التعين | H1: تاريخ انتهاء العقد | I1: تاريخ اليوم | J1: تاريخ الميلاد | K1: بداية الفيش | L1: انتهاء الفيش | M1: المؤهل | N1: كعب العمل | O1: الفيش | P1: شهادة الميلاد | Q1: صورة البطاقة | R1: صورة شخصية | S1: العقد | T1: استمارة 1 | U1: استمارة 6 | V1: استقالة | W1: اخلاء طرف | X1: اقرار استلام عمل | Y1: صحيفة الحالة الاجتماعية | Z1: أستمارة 11 | AA1: نوع المؤهل | AB1: رقم كود الادارة | AC1: الوظيفة | AD1: ملاحظات | AE1: القسم العام | AF1: عالي

Sheet الامن الصناعي
A1: رقم الكارتة | B1: الاسم | C1: أسم المؤهل | D1: القسم | E1: السن | F1: الخبرة | G1: بداية التعين | H1: تاريخ انتهاء العقد | I1: تاريخ اليوم | J1: تاريخ الميلاد | K1: بداية الفيش | L1: انتهاء الفيش | M1: المؤهل | N1: كعب العمل | O1: الفيش | P1: شهادة الميلاد | Q1: صورة البطاقة | R1: صورة شخصية | S1: العقد | T1: استمارة 1 | U1: استمارة 6 | V1: استقالة | W1: اخلاء طرف | X1: اقرار استلام عمل | Y1: صحيفة الحالة الاجتماعية | Z1: أستمارة 11 | AA1: نوع المؤهل | AB1: رقم كود الادارة | AC1: الوظيفة | AD1: ملاحظات | AE1: القسم العام | AF1: عالي
A2: 9332 | B2: احمد عادل محمد محمد | C2: دبلوم صناعي | D2: الامن الصناعي | E2: 39 | F2: 18.14246575 | G2: 2002-10-17 | H2: 2003-10-17 | I2: 2020-12-03 | J2: 1982-03-26 | K2: 2009-06-21 | L2: 2009-12-18 | M2: Yes | N2: Yes | O2: Yes | P2: No | Q2: Yes | R2: Yes | S2: Yes | T2: Yes | U2: No | V2: No | W2: No | X2: Yes | Y2: Yes | Z2: No | AA2: متوسط | AC2: مراقب امن صناعي | AE2: Prouduction
A3: 7677 | B3: سعيد عبدالحافظ عبدالله المصري | C3: معهد فني تجاري | D3: الامن الصناعي | E3: 46 | F3: 13.8109589 | G3: 2007-02-14 | H3: 2008-02-14 | I3: 2020-12-03 | J3: 1975-03-31 | K3: 2006-10-29 | L3: 2007-04-27 | M3: Yes | N3: Yes | O3: Yes | P3: Yes | Q3: Yes | R3: No | S3: Yes | T3: Yes | U3: No | V3: No | W3: No | X3: Yes | Y3: Yes | Z3: Yes | AA3: فوق متوسط | AC3: مراقب امن صناعي | AE3: Prouduction
A4: 9953 | B4: كرم احمد محمد عمر | C4: دبلوم صناعي | D4: الامن الصناعي | E4: 37 | F4: 10.28219178 | G4: 2010-08-25 | H4: 2011-08-25 | I4: 2020-12-03 | J4: 1984-04-09 | K4: 2010-08-08 | L4: 2011-02-04 | M4: Yes | N4: Yes | O4: Yes | P4: Yes | Q4: Yes | R4: Yes | S4: Yes | T4: Yes | U4: No | V4: No | W4: No | X4: Yes | Y4: Yes | Z4: No | AA4: متوسط | AC4: مراقب امن صناعي | AE4: Prouduction
A5: 10289 | B5: كريم السيد ابراهيم علي عبدالرحيم | C5: دبلوم تجاري | D5: الامن الصناعي | E5: 33 | F5: 9.791780822 | G5: 2011-02-20 | H5: 2012-02-20 | I5: 2020-12-03 | J5: 1987-09-14 | K5: 2010-11-02 | L5: 2011-05-01 | M5: Yes | N5: Yes | O5: Yes | P5: Yes | Q5: Yes | R5: Yes | S5: Yes | T5: Yes | U5: No | V5: No | W5: No | X5: Yes | Y5: Yes | Z5: Yes | AA5: متوسط | AE5: Prouduction
A6: 9793 | B6: محمد فوزي علي خلف محمد | C6: دبلوم صناعي | D6: الامن الصناعي | E6: 33 | F6: 10.55068493 | G6: 2010-05-19 | H6: 2011-05-19 | I6: 2020-12-03 | J6: 1988-01-01 | K6: 2010-03-22 | L6: 2010-09-18 | M6: Yes | N6: Yes | O6: Yes | P6: Yes | Q6: Yes | R6: Yes | S6: Yes | T6: Yes | U6: No | V6: No | W6: No | X6: Yes | Y6: Yes | Z6: No | AA6: متوسط | AC6: مراقب امن صناعي | AE6: Prouduction

Sheet الامن
A1: رقم الكارتة | B1: الاسم | C1: أسم المؤهل | D1: القسم | E1: السن | F1: الخبرة | G1: بداية التعين | H1: تاريخ انتهاء العقد | I1: تاريخ اليوم | J1: تاريخ الميلاد | K1: بداية الفيش | L1: انتهاء الفيش | M1: المؤهل | N1: كعب العمل | O1: الفيش | P1: شهادة الميلاد | Q1: صورة البطاقة | R1: صورة شخصية | S1: العقد | T1: استمارة 1 | U1: استمارة 6 | V1: استقالة | W1: اخلاء طرف | X1: اقرار استلام عمل | Y1: صحيفة الحالة الاجتماعية | Z1: أستمارة 11 | AA1: نوع المؤهل | AB1: رقم كود الادارة | AC1: الوظيفة | AD1: ملاحظات | AE1: القسم العام | AF1: عالي
A2: 10642 | B2: ابراهيم جابر ابراهيم عوض | C2: بكالوريوس تربيه | D2: الامن | E2: 34 | F2: 9.589041096 | G2: 2011-05-05 | H2: 2012-05-04 | I2: 2020-12-03 | J2: 1987-03-23 | K2: 2001-03-13 | L2: 2001-09-09 | M2: Yes | N2: No | O2: Yes | P2: Yes | Q2: Yes | R2: Yes | S2: Yes | T2: Yes | U2: No | V2: No | W2: No | X2: Yes | Y2: Yes | Z2: Yes | AA2: عالي | AC2: مراقب امن | AE2: Prouduction
A3: 10166 | B3: ابراهيم عبدالمنعم عبد الحميد | C3: دبلوم صناعي | D3: الامن | E3: 48 | F3: 10.1369863 | G3: 2010-10-17 | H3: 2011-10-17 | I3: 2020-12-03 | J3: 1973-02-17 | K3: 2018-03-14 | L3: 2018-09-10 | M3: Yes | N3: Yes | O3: Yes | P3: Yes | Q3: No | R3: Yes | S3: Yes | T3: Yes | U3: No | V3: No | W3: No | X3: Yes | Y3: Yes | Z3: Yes | AA3: متوسط | AC3: مراقب امن | AE3: Prouduction
A4: 7924 | B4: احمد عبدالمنعم علي سليم | C4: معهد سياحه وفنادق | D4: الامن | E4: 39 | F4: 13.5890411 | G4: 2007-05-06 | H4: 2008-05-05 | I4: 2020-12-03 | J4: 1982-04-01 | K4: 2018-03-12 | L4: 2018-09-08 | M4: Yes | N4: Yes | O4: Yes | P4: Yes | Q4: No | R4: Yes | S4: Yes | T4: Yes | U4: No | V4: No | W4: No | X4: Yes | Y4: Yes | Z4: No | AA4: فوق متوسط | AC4: مراقب امن | AE4: Prouduction
A5: 8002 | B5: احمد علوان احمد عمر | C5: دبلوم صناعي | D5: الامن | E5: 48 | F5: 4.895890411 | G5: 2016-01-12 | H5: 2017-01-11 | I5: 2020-12-03 | J5: 1973-04-01 | K5: 2018-03-12 | L5: 2018-09-08 | M5: Yes | N5: Yes | O5: No | P5: Yes | Q5: Yes | R5: Yes | S5: Yes | T5: Yes | U5: No | V5: No | W5: No | X5: Yes | Y5: Yes | Z5: Yes | AA5: متوسط | AC5: مشرف امن | AE5: Prouduction
A6: 11360 | B6: احمد فرج مرسال مبروك | C6: معهد فني صناعي | D6: الامن | E6: 42 | F6: 8.654794521 | G6: 2012-04-10 | H6: 2013-04-10 | I6: 2020-12-03 | J6: 1979-03-25 | K6: 2018-03-15 | L6: 2018-09-11 | M6: Yes | N6: Yes | O6: No | P6: Yes | Q6: Yes | R6: Yes | S6: Yes | T6: Yes | U6: No | V6: No | W6: No | X6: Yes | Y6: Yes | Z6: Yes | AA6: فوق متوسط | AC6: مراقب امن | AE6: Prouduction
A7: 8743 | B7: احمد مصطفي احمد علي | C7: بدون | D7: الامن | E7: 39 | F7: 12.33424658 | G7: 2008-08-06 | H7: 2009-08-06 | I7: 2020-12-03 | J7: 1981-06-28 | K7: 2018-03-17 | L7: 2018-09-13 | M7: No | N7: Yes | O7: Yes | P7: Yes | Q7: Yes | R7: Yes | S7: Yes | T7: Yes | U7: No | V7: No | W7: No | X7: Yes | Y7: Yes | Z7: No | AA7: بدون | AC7: مراقب امن | AE7: Prouduction
A8: 11049 | B8: اسلام محمود محمد القطري | C8: بدون | D8: الامن | E8: 9 | F8: 36.76164384 | G8: 1984-03-09 | H8: 1985-03-09 | I8: 2020-12-03 | J8: 2012-01-15 | K8: 2018-03-12 | L8: 2018-09-08 | M8: No | N8: Yes | O8: Yes | P8: Yes | Q8: Yes | R8: Yes | S8: Yes | T8: Yes | U8: No | V8: No | W8: No | X8: Yes | Y8: Yes | Z8: Yes | AA8: بدون | AC8: مراقب امن | AE8: Prouduction
A9: 13951 | B9: بدر عبدالله عبدالعزيز السيد جاب الله | C9: دبلوم صناعي | D9: الامن | E9: 28 | F9: 1.284931507 | G9: 2019-08-22 | H9: 2020-08-21 | I9: 2020-12-03 | J9: 1992-12-01 | K9: 2019-08-07 | L9: 2020-02-03 | M9: No | N9: Yes | O9: Yes | P9: Yes | Q9: Yes | R9: No | S9: Yes | T9: Yes | U9: No | V9: No | W9: No | X9: Yes | Y9: Yes | Z9: Yes | AA9: متوسط | AC9: مراقب امن | AE9: Prouduction
A10: 8734 | B10: حمدي عبدالحميد فهمي محمد | C10: محو الاميه | D10: الامن | E10: 54 | F10: 12.67123288 | G10: 2008-04-05 | H10: 2009-04-05 | I10: 2020-12-03 | J10: 1966-10-24 | K10: 2018-03-13 | L10: 2018-09-09 | M10: Yes | N10: Yes | O10: Yes | P10: Yes | Q10: Yes | R10: Yes | S10: Yes | T10: Yes | U10: No | V10: No | W10: No | X10: Yes | Y10: Yes | Z10: No | AA10: بدون | AC10: مراقب امن | AE10: Prouduction
A11: 6967 | B11: سناء عطيه عبدالحميد خليل | C11: معهد فني تجاري | D11: الامن | E11: 48 | F11: 14.65205479 | G11: 2006-04-13 | H11: 2007-04-13 | I11: 2020-12-03 | J11: 1973-03-05 | K11: 2018-03-12 | L11: 2018-09-08 | M11: Yes | N11: Yes | O11: Yes | P11: Yes | Q11: No | R11: No | S11: Yes | T11: Yes | U11: No | V11: No | W11: No | X11: No | Y11: Yes | Z11: No | AA11: فوق متوسط | AC11: مراقب امن | AE11: Prouduction
A12: 6966 | B12: شاديه محمد الصغير حسن | C12: دبلوم صناعي | D12: الامن | E12: 46 | F12: 14.65205479 | G12: 2006-04-13 | H12: 2007-04-13 | I12: 2020-12-03 | J12: 1974-12-12 | K12: 2018-03-11 | L12: 2018-09-07 | M12: Yes | N12: Yes | O12: Yes | P12: Yes | Q12: Yes | R12: Yes | S12: Yes | T12: Yes | U12: No | V12: No | W12: No | X12: No | Y12: Yes | Z12: No | AA12: متوسط | AC12: مراقب امن | AE12: Prouduction
A13: 258 | B13: طارق عبدالعزيز عبدالعزيز سيلمان | C13: بدون | D13: الامن | E13: 52 | F13: 23.15068493 | G13: 1997-10-15 | H13: 1998-10-15 | I13: 2020-12-03 | J13: 1969-03-29 | K13: 1997-09-30 | L13: 1998-03-29 | M13: No | N13: Yes | O13: Yes | P13: Yes | Q13: Yes | R13: Yes | S13: Yes | T13: Yes | U13: No | V13: No | W13: No | X13: No | Y13: Yes | Z13: No | AA13: بدون | AC13: عامل مخزن الغزل | AE13: Prouduction
A14: 7233 | B14: عبدالجواد عبدالهادي مصطفي السيد | C14: دبلوم زراعه | D14: الامن | E14: 34 | F14: 14.82465753 | G14: 2006-02-09 | H14: 2007-02-09 | I14: 2020-12-03 | J14: 1986-09-01 | K14: 2018-03-15 | L14: 2018-09-11 | M14: Yes | N14: Yes | O14: Yes | P14: Yes | Q14: No | R14: No | S14: Yes | T14: Yes | U14: No | V14: No | W14: No | X14: No | Y14: Yes | Z14: No | AA14: متوسط | AC14: مشرف امن | AE14: Prouduction
A15: 11010 | B15: عبدالحميد رمضان عبد الحميد فهمي | C15: دبلوم صناعي | D15: الامن | E15: 30 | F15: 8.090410959 | G15: 2012-11-02 | H15: 2013-11-02 | I15: 2020-12-03 | J15: 1990-08-26 | K15: 2018-03-13 | L15: 2018-09-09 | M15: Yes | N15: Yes | O15: Yes | P15: Yes | Q15: No | R15: Yes | S15: Yes | T15: Yes | U15: No | V15: No | W15: No | X15: Yes | Y15: No | Z15: Yes | AA15: متوسط | AC15: مراقب امن | AE15: Prouduction
A16: 13662 | B16: عبدالله خميس حواش | C16: دبلوم صناعي | D16: الامن | E16: 25 | F16: 1.920547945 | G16: 2019-01-02 | H16: 2020-01-02 | I16: 2020-12-03 | J16: 1995-08-20 | K16: 2018-10-27 | L16: 2019-04-25 | M16: No | N16: Yes | O16: Yes | P16: Yes | Q16: Yes | R16: Yes | S16: Yes | T16: Yes | U16: Yes | V16: No | W16: No | X16: Yes | Y16: No | Z16: No | AA16: متوسط | AC16: مراقب امن | AD16: العقد فاضي | AE16: Prouduction
A17: 12078 | B17: عبدالله رمضان محمد زايد | C17: دبلوم تجاره | D17: الامن | E17: 45 | F17: 6.887671233 | G17: 2014-01-15 | H17: 2015-01-15 | I17: 2020-12-03 | J17: 1975-07-01 | K17: 2018-03-10 | L17: 2018-09-06 | M17: No | N17: Yes | O17: Yes | P17: Yes | Q17: Yes | R17: Yes | S17: Yes | T17: Yes | U17: No | V17: No | W17: No | X17: Yes | Y17: Yes | Z17: Yes | AA17: متوسط | AC17: مراقب امن | AE17: Prouduction
A18: 8635 | B18: كامل سليم احمد عبيد | C18: بكالوريوس زراعه | D18: الامن | E18: 52 | F18: 3.4 | G18: 2017-07-11 | H18: 2018-07-11 | I18: 2020-12-03 | J18: 1969-01-20 | K18: 2017-10-14 | L18: 2018-04-12 | M18: Yes | N18: Yes | O18: Yes | P18: Yes | Q18: Yes | R18: Yes | S18: Yes | T18: Yes | U18: No | V18: No | W18: No | X18: Yes | Y18: Yes | Z18: Yes | AA18: عالي | AC18: مراقب امن | AE18: Prouduction
A19: 6840 | B19: محمد السيد غباشي عبد الرازق | C19: بدون | D19: الامن | E19: 50 | F19: 14.59452055 | G19: 2006-05-04 | H19: 2007-05-04 | I19: 2020-12-03 | J19: 1971-02-10 | K19: 2018-03-18 | L19: 2018-09-14 | M19: No | N19: Yes | O19: Yes | P19: Yes | Q19: No | R19: Yes | S19: Yes | T19: Yes | U19: No | V19: No | W19: No | X19: No | Y19: Yes | Z19: No | AA19: بدون | AC19: مراقب امن | AE19: Prouduction
A20: 9095 | B20: محمد السيد مرسي جاد | C20: الابتدائيه | D20: الامن | E20: 47 | F20: 11.92054795 | G20: 2009-01-04 | H20: 2010-01-04 | I20: 2020-12-03 | J20: 1973-11-25 | K20: 2018-03-15 | L20: 2018-09-11 | M20: Yes | N20: Yes | O20: Yes | P20: Yes | Q20: No | R20: Yes | S20: Yes | T20: Yes | U20: No | V20: No | W20: No | X20: Yes | Y20: Yes | Z20: Yes | AA20: بدون | AC20: مراقب امن | AE20: Prouduction
A21: 7925 | B21: محمد زكريا محمد محمد نويشي | C21: دبلوم زراعي | D21: الامن | E21: 24 | F21: 9.791780822 | G21: 2011-02-20 | H21: 2012-02-20 | I21: 2020-12-03 | J21: 1996-06-24 | K21: 2018-03-12 | L21: 2018-09-08 | M21: Yes | N21: Yes | O21: No | P21: Yes | Q21: Yes | R21: Yes | S21: Yes | T21: Yes | U21: No | V21: No | W21: No | X21: Yes | Y21: Yes | Z21: No | AA21: متوسط | AC21: مراقب امن | AE21: Prouduction
A22: 7653 | B22: محمد صلاح محمد بدوي | C22: بدون | D22: الامن | E22: 38 | F22: 13.8109589 | G22: 2007-02-14 | H22: 2008-02-14 | I22: 2020-12-03 | J22: 1983-04-18 | K22: 2018-03-11 | L22: 2018-09-07 | M22: No | N22: Yes | O22: Yes | P22: Yes | Q22: No | R22: Yes | S22: Yes | T22: Yes | U22: No | V22: No | W22: No | X22: Yes | Y22: Yes | Z22: No | AA22: بدون | AC22: مراقب امن | AE22: Prouduction
A23: 7214 | B23: محمد علم الدين احمد محمد | C23: بدون | D23: الامن | E23: 50 | F23: 14.82465753 | G23: 2006-02-09 | H23: 2007-02-09 | I23: 2020-12-03 | J23: 1970-12-22 | K23: 2018-03-15 | L23: 2018-09-11 | M23: No | N23: Yes | O23: Yes | P23: Yes | Q23: Yes | R23: Yes | S23: Yes | T23: Yes | U23: No | V23: Yes | W23: No | X23: No | Y23: Yes | Z23: Yes | AA23: بدون | AC23: مراقب امن | AE23: Prouduction
A24: 7204 | B24: وائل مصطفي احمد عطا | C24: دبلوم زراعه | D24: الامن | E24: 43 | F24: 14.82465753 | G24: 2006-02-09 | H24: 2007-02-09 | I24: 2020-12-03 | J24: 1977-12-01 | K24: 2018-04-02 | L24: 2018-09-29 | M24: Yes | N24: Yes | O24: Yes | P24: Yes | Q24: Yes | R24: No | S24: Yes | T24: Yes | U24: No | V24: No | W24: No | X24: No | Y24: No | Z24: Yes | AA24: متوسط | AC24: مراقب امن | AE24: Prouduction

Sheet خدمات البوفيه

Sheet خدمات نظافة
A1: رقم الكارتة | B1: الاسم | C1: أسم المؤهل | D1: القسم | E1: السن | F1: الخبرة | G1: بداية التعين | H1: تاريخ انتهاء العقد | I1: تاريخ اليوم | J1: تاريخ الميلاد | K1: بداية الفيش | L1: انتهاء الفيش | M1: المؤهل | N1: كعب العمل | O1: الفيش | P1: شهادة الميلاد | Q1: صورة البطاقة | R1: صورة شخصية | S1: العقد | T1: استمارة 1 | U1: استمارة 6 | V1: استقالة | W1: اخلاء طرف | X1: اقرار استلام عمل | Y1: صحيفة الحالة الاجتماعية | Z1: أستمارة 11 | AA1: نوع المؤهل | AB1: رقم كود الادارة | AC1: الوظيفة | AD1: ملاحظات | AE1: القسم العام | AF1: عالي
A2: 13405 | B2: الصافي محمد علي | C2: بدون | D2: خدمات نظافة | E2: 28 | F2: 2.454794521 | G2: 2018-06-21 | H2: 2019-06-21 | I2: 2020-12-03 | J2: 1993-04-25 | K2: 2018-08-30 | L2: 2019-02-26 | M2: No | N2: Yes | O2: Yes | P2: Yes | Q2: Yes | R2: Yes | S2: Yes | T2: Yes | U2: No | V2: Yes | W2: Yes | X2: Yes | Y2: Yes | Z2: No | AA2: بدون | AC2: عامل مخزن الخام | AD2: الورق فاضي | AE2: Prouduction

Sheet المعارض
A1: رقم الكارتة | B1: الاسم | C1: أسم المؤهل | D1: القسم | E1: السن | F1: الخبرة | G1: بداية التعين | H1: تاريخ انتهاء العقد | I1: تاريخ اليوم | J1: تاريخ الميلاد | K1: بداية الفيش | L1: انتهاء الفيش | M1: المؤهل | N1: كعب العمل | O1: الفيش | P1: شهادة الميلاد | Q1: صورة البطاقة | R1: صورة شخصية | S1: العقد | T1: استمارة 1 | U1: استمارة 6 | V1: استقالة | W1: اخلاء طرف | X1: اقرار استلام عمل | Y1: صحيفة الحالة الاجتماعية | Z1: أستمارة 11 | AA1: نوع المؤهل | AB1: رقم كود الادارة | AC1: الوظيفة | AD1: ملاحظات | AE1: القسم العام | AF1: عالي

Sheet 5%
A1: رقم الكارتة | B1: الاسم | C1: أسم المؤهل | D1: القسم | E1: السن | F1: الخبرة | G1: بداية التعين | H1: تاريخ انتهاء العقد | I1: تاريخ اليوم | J1: تاريخ الميلاد | K1: بداية الفيش | L1: انتهاء الفيش | M1: المؤهل | N1: كعب العمل | O1: الفيش | P1: شهادة الميلاد | Q1: صورة البطاقة | R1: صورة شخصية | S1: العقد | T1: استمارة 1 | U1: استمارة 6 | V1: استقالة | W1: اخلاء طرف | X1: اقرار استلام عمل | Y1: صحيفة الحالة الاجتماعية | Z1: أستمارة 11 | AA1: نوع المؤهل | AB1: رقم كود الادارة | AC1: الوظيفة | AD1: ملاحظات | AE1: القسم العام | AF1: عالي

Sheet المخازن
A1: رقم الكارتة | B1: الاسم | C1: أسم المؤهل | D1: القسم | E1: السن | F1: الخبرة | G1: بداية التعين | H1: تاريخ انتهاء العقد | I1: تاريخ اليوم | J1: تاريخ الميلاد | K1: بداية الفيش | L1: انتهاء الفيش | M1: المؤهل | N1: كعب العمل | O1: الفيش | P1: شهادة الميلاد | Q1: صورة البطاقة | R1: صورة شخصية | S1: العقد | T1: استمارة 1 | U1: استمارة 6 | V1: استقالة | W1: اخلاء طرف | X1: اقرار استلام عمل | Y1: صحيفة الحالة الاجتماعية | Z1: أستمارة 11 | AA1: نوع المؤهل | AB1: رقم كود الادارة | AC1: الوظيفة | AD1: ملاحظات | AE1: القسم العام | AF1: عالي
A2: 13615 | B2: ابراهيم حسن سعيد رمضان شقيدف | C2: بدون | D2: المخازن | E2: 20 | F2: 1.904109589 | G2: 2019-01-08 | H2: 2020-01-08 | I2: 2020-12-03 | J2: 2000-06-10 | K2: 2018-10-02 | L2: 2019-03-31 | M2: No | N2: Yes | O2: Yes | P2: Yes | Q2: Yes | R2: Yes | S2: Yes | T2: Yes | U2: No | V2: No | W2: No | X2: Yes | Y2: Yes | Z2: No | AA2: بدون | AC2: عامل مخزن الخام | AD2: العقد فاضي | AE2: Prouduction
A3: 4491 | B3: ابراهيم رزق منصور الصابر | C3: بدون | D3: المخازن | E3: 47 | F3: 16.49041096 | G3: 2004-06-11 | H3: 2005-06-11 | I3: 2020-12-03 | J3: 1973-08-05 | M3: No | N3: Yes | O3: No | P3: No | Q3: Yes | R3: No | S3: Yes | T3: Yes | U3: No | V3: No | W3: No | X3: No | Y3: Yes | Z3: No | AA3: بدون | AC3: عامل مخزن دايس | AE3: Prouduction
A4: 9505 | B4: احمد شاكر احمد السيد | C4: دبلوم صناعي | D4: المخازن | E4: 36 | F4: 10.17534247 | G4: 2010-10-03 | H4: 2011-10-03 | I4: 2020-12-03 | J4: 1984-11-06 | K4: 2009-12-20 | L4: 2010-06-18 | M4: Yes | N4: Yes | O4: Yes | P4: Yes | Q4: Yes | R4: Yes | S4: Yes | T4: Yes | U4: No | V4: No | W4: No | X4: Yes | Y4: Yes | Z4: No | AA4: متوسط | AC4: عامل مخزن دايس | AE4: Prouduction
A5: 13395 | B5: احمد صلاح سعد الله صالح | C5: بدون | D5: المخازن | E5: 19 | F5: 2.380821918 | G5: 2018-07-18 | H5: 2019-07-18 | I5: 2020-12-03 | J5: 2002-01-15 | M5: No | N5: Yes | O5: No | P5: Yes | Q5: Yes | R5: No | S5: Yes | T5: Yes | U5: No | V5: No | W5: No | X5: Yes | Y5: Yes | Z5: No | AA5: بدون | AC5: عامل مخزن دايس | AE5: Prouduction
A6: 10278 | B6: احمد علي محمد علي حسن | C6: دبلوم صناعي | D6: المخازن | E6: 41 | F6: 10.40547945 | G6: 2010-07-11 | H6: 2011-07-11 | I6: 2020-12-03 | J6: 1979-07-02 | K6: 2010-10-18 | L6: 2011-04-16 | M6: Yes | N6: Yes | O6: Yes | P6: No | Q6: Yes | R6: Yes | S6: Yes | T6: Yes | U6: No | V6: Yes | W6: Yes | X6: Yes | Y6: No | Z6: Yes | AA6: متوسط | AC6: عامل مخزن البواقي | AE6: Prouduction
A7: 13907 | B7: احمد فرحات الشافعي احمد | C7: بدون | D7: المخازن | E7: 25 | F7: 1.745205479 | G7: 2019-03-07 | H7: 2020-03-06 | I7: 2020-12-03 | J7: 1995-10-08 | K7: 2019-06-16 | L7: 2019-12-13 | M7: No | N7: Yes | O7: Yes | P7: Yes | Q7: Yes | R7: Yes | S7: Yes | T7: Yes | U7: No | V7: No | W7: No | X7: Yes | Y7: Yes | Z7: No | AA7: بدون | AC7: عامل مخزن دايس | AE7: Prouduction
A8: 641 | B8: احمد محمود مصطفي صالح | C8: بدون | D8: المخازن | E8: 44 | F8: 20.84383562 | G8: 2000-02-04 | H8: 2001-02-03 | I8: 2020-12-03 | J8: 1976-11-16 | M8: No | N8: Yes | O8: No | P8: No | Q8: Yes | R8: Yes | S8: Yes | T8: Yes | U8: No | V8: No | W8: No | X8: No | Y8: Yes | Z8: No | AA8: بدون | AC8: عامل مخزن الخام | AE8: Prouduction
A9: 787 | B9: اشرف اسماعيل محمد خلاف | C9: دبلوم صناعي | D9: المخازن | E9: 47 | F9: 20.4109589 | G9: 2000-07-11 | H9: 2001-07-11 | I9: 2020-12-03 | J9: 1974-01-07 | K9: 2000-08-24 | L9: 2001-02-20 | M9: Yes | N9: Yes | O9: Yes | P9: No | Q9: Yes | R9: Yes | S9: Yes | T9: Yes | U9: No | V9: No | W9: No | X9: No | Y9: Yes | Z9: No | AA9: متوسط | AC9: عامل مخزن الخام | AD9: تاريخ استماره 1(3-9-200) | AE9: Prouduction
A10: 4961 | B10: اشرف السيد | C10: دبلوم صناعي | D10: المخازن | E10: 0 | F10: 16.16986301 | G10: 2004-10-06 | H10: 2005-10-06 | I10: 2020-12-03 | J10: 2020-09-29 | K10: 2004-02-16 | L10: 2004-08-14 | M10: Yes | N10: Yes | O10: Yes | P10: Yes | Q10: Yes | R10: Yes | S10: Yes | T10: Yes | U10: No | V10: No | W10: No | X10: No | Y10: Yes | Z10: No | AA10: متوسط | AC10: امين مخزن الاستيك | AE10: Prouduction
A11: 13896 | B11: السيد فتحي محمد البحيري | C11: ابتدائيه | D11: المخازن | E11: 32 | F11: 1.528767123 | G11: 2019-05-25 | H11: 2020-05-24 | I11: 2020-12-03 | J11: 1988-08-02 | K11: 2019-05-14 | L11: 2019-11-10 | M11: No | N11: No | O11: Yes | P11: Yes | Q11: Yes | R11: Yes | S11: Yes | T11: Yes | U11: No | V11: Yes | W11: Yes | X11: Yes | Y11: Yes | Z11: Yes | AA11: بدون | AC11: عامل مخزن دايس | AD11: العقد فاضي استماره 1 (1-8-2019) | AE11: Prouduction
A12: 1548 | B12: السيد كامل عبدالجواد محمد خطاب | C12: بدون | D12: المخازن | E12: 42 | F12: 20.35068493 | G12: 2000-08-02 | H12: 2001-08-02 | I12: 2020-12-03 | J12: 1978-12-20 | K12: 1999-08-22 | L12: 2000-02-18 | M12: No | N12: Yes | O12: Yes | P12: No | Q12: Yes | R12: Yes | S12: Yes | T12: Yes | U12: No | V12: No | W12: No | X12: No | Y12: Yes | Z12: No | AA12: بدون | AC12: عامل مخزن الدرجه | AE12: Prouduction
A13: 3802 | B13: ايهاب حسن علي راضي | C13: دبلوم صناعي | D13: المخازن | E13: 44 | F13: 18.89863014 | G13: 2002-01-14 | H13: 2003-01-14 | I13: 2020-12-03 | J13: 1977-01-01 | K13: 2001-03-21 | L13: 2001-09-17 | M13: Yes | N13: Yes | O13: Yes | P13: Yes | Q13: Yes | R13: Yes | S13: Yes | T13: Yes | U13: No | V13: No | W13: No | X13: No | Y13: Yes | Z13: No | AA13: متوسط | AC13: امين مخزن القاش الجاهز | AE13: Prouduction
A14: 12155 | B14: جمعه محمد محمد قطب تعيلب | C14: بدون | D14: المخازن | E14: 45 | F14: 6.789041096 | G14: 2014-02-20 | H14: 2015-02-20 | I14: 2020-12-03 | J14: 1976-01-30 | K14: 2014-01-04 | L14: 2014-07-03 | M14: No | N14: Yes | O14: Yes | P14: Yes | Q14: Yes | R14: Yes | S14: Yes | T14: Yes | U14: No | V14: No | W14: No | X14: Yes | Y14: Yes | Z14: Yes | AA14: بدون | AC14: عامل مخزن القماش الجاهز | AE14: Prouduction
A15: 901 | B15: حافظ محمد محفوظ | C15: دبلوم صناعي | D15: المخازن | E15: 56 | F15: 24.9260274 | G15: 1996-01-06 | H15: 1997-01-05 | I15: 2020-12-03 | J15: 1965-06-11 | M15: Yes | N15: No | O15: No | P15: No | Q15: Yes | R15: Yes | S15: Yes | T15: Yes | U15: No | V15: No | W15: No | X15: No | Y15: Yes | Z15: No | AA15: بدون | AC15: عامل مخزن القماش الجاهز | AE15: Prouduction
A16: 552 | B16: حجاج اسماعيل حسين جاد | C16: بدون | D16: المخازن | E16: 55 | F16: 22.30684932 | G16: 1998-08-19 | H16: 1999-08-19 | I16: 2020-12-03 | J16: 1966-01-01 | M16: No | N16: Yes | O16: Yes | P16: Yes | Q16: Yes | R16: Yes | S16: Yes | T16: Yes | U16: No | V16: No | W16: No | X16: No | Y16: Yes | Z16: No | AA16: بدون | AC16: عامل مخزن دايس | AE16: Prouduction
A17: 5217 | B17: حسام الدين محمود علي القمني | C17: عهد فني صناعي | D17: المخازن | E17: 42 | F17: 16.91506849 | G17: 2004-01-08 | H17: 2005-01-07 | I17: 2020-12-03 | J17: 1979-05-15 | M17: Yes | N17: Yes | O17: Yes | P17: Yes | Q17: Yes | R17: No | S17: Yes | T17: Yes | U17: No | V17: No | W17: No | X17: No | Y17: Yes | Z17: No | AA17: فوق متوسط | AC17: امين مخزن الابر | AE17: Prouduction
A18: 13758 | B18: حسين احمد احمد الخضرجي | C18: بدون | D18: المخازن | E18: 46 | F18: 1.906849315 | G18: 2019-01-07 | H18: 2020-01-07 | I18: 2020-12-03 | J18: 1975-04-09 | K18: 2019-02-18 | L18: 2019-08-17 | M18: No | N18: Yes | O18: Yes | P18: Yes | Q18: Yes | R18: Yes | S18: Yes | T18: Yes | U18: No | V18: No | W18: No | X18: Yes | Y18: Yes | Z18: No | AA18: بدون | AC18: عامل مخزن دايس | AE18: Prouduction
A19: 13554 | B19: حسين خلف علي محمد | C19: بدون | D19: المخازن | E19: 26 | F19: 1.920547945 | G19: 2019-01-02 | H19: 2020-01-02 | I19: 2020-12-03 | J19: 1995-03-06 | K19: 2018-09-01 | L19: 2019-02-28 | M19: No | N19: Yes | O19: Yes | P19: Yes | Q19: Yes | R19: Yes | S19: No | T19: Yes | U19: No | V19: No | W19: No | X19: Yes | Y19: Yes | Z19: No | AA19: بدون | AC19: عامل مخزن القماش الجاهز | AD19: العقد فاضي | AE19: Prouduction
A20: 530 | B20: رشاد مدحت محمود عبد الجواد جويد | C20: دبلوم صناعي | D20: المخازن | E20: 43 | F20: 21.90684932 | G20: 1999-01-12 | H20: 2000-01-12 | I20: 2020-12-03 | J20: 1977-09-24 | K20: 1999-11-13 | L20: 2000-05-11 | M20: Yes | N20: Yes | O20: Yes | P20: Yes | Q20: Yes | R20: Yes | S20: Yes | T20: Yes | U20: No | V20: No | W20: No | X20: No | Y20: Yes | Z20: No | AA20: متوسط | AC20: امين مساعد مخزن الخام | AE20: Prouduction
A21: 5107 | B21: سلامه جمعه عبد الشهيد محمد | C21: بدون | D21: المخازن | E21: 48 | F21: 15.08219178 | G21: 2005-11-07 | H21: 2006-11-07 | I21: 2020-12-03 | J21: 1973-04-07 | K21: 2005-05-07 | L21: 2005-11-03 | M21: No | N21: Yes | O21: Yes | P21: Yes | Q21: Yes | R21: Yes | S21: Yes | T21: No | U21: No | V21: No | W21: No | X21: No | Y21: Yes | Z21: No | AA21: بدون | AC21: عامل مخزن 6 ب | AE21: Prouduction
A22: 5789 | B22: شعبان محمد عبد الرحمن السيد | C22: بدون | D22: المخازن | E22: 46 | F22: 15.24109589 | G22: 2005-09-10 | H22: 2006-09-10 | I22: 2020-12-03 | J22: 1975-02-02 | K22: 2005-08-09 | L22: 2006-02-05 | M22: No | N22: Yes | O22: Yes | P22: Yes | Q22: Yes | R22: Yes | S22: Yes | T22: Yes | U22: No | V22: No | W22: No | X22: No | Y22: Yes | Z22: No | AA22: بدون | AC22: عامل مخزن دايس | AE22: Prouduction
A23: 10364 | B23: صبري قاسم محمد قاقه | C23: دبلوم زراعه | D23: المخازن | E23: 46 | F23: 10.65205479 | G23: 2010-04-12 | H23: 2011-04-12 | I23: 2020-12-03 | J23: 1974-11-19 | K23: 2010-10-09 | L23: 2011-04-07 | M23: No | N23: Yes | O23: Yes | P23: Yes | Q23: Yes | R23: Yes | S23: Yes | T23: Yes | U23: No | V23: No | W23: No | X23: Yes | Y23: Yes | Z23: No | AA23: متوسط | AC23: عامل مخزن الخام | AE23: Prouduction
A24: 7213 | B24: عادل السيد عبيد شحاته | C24: بدون | D24: المخازن | E24: 44 | F24: 14.82465753 | G24: 2006-02-09 | H24: 2007-02-09 | I24: 2020-12-03 | J24: 1977-03-29 | K24: 2005-05-26 | L24: 2005-11-22 | M24: No | N24: Yes | O24: Yes | P24: Yes | Q24: Yes | R24: No | S24: Yes | T24: Yes | U24: No | V24: No | W24: No | X24: No | Y24: Yes | Z24: Yes | AA24: بدون | AC24: عامل مخزن الخام | AE24: Prouduction
A25: 582 | B25: عبدالجيد شريف عبدالجيد شريف | C25: بدون | D25: المخازن | E25: 45 | F25: 20.87671233 | G25: 2000-01-23 | H25: 2001-01-22 | I25: 2020-12-03 | J25: 1975-07-27 | K25: 1999-12-12 | L25: 2000-06-09 | M25: No | N25: Yes | O25: Yes | P25: Yes | Q25: Yes | R25: Yes | S25: Yes | T25: Yes | U25: No | V25: No | W25: No | X25: No | Y25: Yes | Z25: No | AA25: بدون | AC25: عامل مخزن الخام | AE25: Prouduction
A26: 7138 | B26: عصام عبد المنعم عبد الكريم عبدالله | C26: دبلوم صناعي | D26: المخازن | E26: 39 | F26: 14.91232877 | G26: 2006-01-08 | H26: 2007-01-08 | I26: 2020-12-03 | J26: 1982-05-22 | K26: 2006-03-19 | L26: 2006-09-15 | M26: No | N26: Yes | O26: Yes | P26: Yes | Q26: Yes | R26: No | S26: Yes | T26: Yes | U26: No | V26: No | W26: No | X26: No | Y26: Yes | Z26: Yes | AA26: متوسط | AC26: عامل مخزن دايس | AE26: Prouduction
A27: 13714 | B27: عصام محمد زكي مصطفي | C27: بدون | D27: المخازن | E27: 49 | F27: 1.17260274 | G27: 2019-10-02 | H27: 2020-10-01 | I27: 2020-12-03 | J27: 1972-02-24 | K27: 2018-11-14 | L27: 2019-05-13 | M27: No | N27: Yes | O27: Yes | P27: Yes | Q27: Yes | R27: Yes | S27: Yes | T27: Yes | U27: Yes | V27: No | W27: No | X27: Yes | Y27: Yes | Z27: No | AA27: بدون | AC27: عامل مخزن القماش الجاهز | AD27: العقد فاضي | AE27: Prouduction
A28: 13577 | B28: علاء محمد عبدالحليم هلال | C28: بدون | D28: المخازن | E28: 40 | F28: 1.863013699 | G28: 2019-01-23 | H28: 2020-01-23 | I28: 2020-12-03 | J28: 1981-02-05 | M28: No | N28: Yes | O28: No | P28: Yes | Q28: Yes | R28: Yes | S28: Yes | T28: Yes | U28: Yes | V28: No | W28: No | X28: Yes | Y28: Yes | Z28: No | AA28: بدون | AC28: عامل مخزن الخام | AD28: العقد فاضي | AE28: Prouduction
A29: 1126 | B29: علي محمود علي محمود | C29: دبلوم صناعي | D29: المخازن | E29: 31 | F29: 8.567123288 | G29: 2012-05-12 | H29: 2013-05-12 | I29: 2020-12-03 | J29: 1989-07-06 | K29: 2012-11-10 | L29: 2013-05-09 | M29: No | N29: Yes | O29: Yes | P29: Yes | Q29: Yes | R29: No | S29: Yes | T29: Yes | U29: No | V29: No | W29: No | X29: Yes | Y29: Yes | Z29: Yes | AA29: متوسط | AC29: عامل مخزن دايس | AE29: Prouduction
A30: 10460 | B30: عماد شعبان عبدالله محمد | C30: بدون | D30: المخازن | E30: 36 | F30: 9.791780822 | G30: 2011-02-20 | H30: 2012-02-20 | I30: 2020-12-03 | J30: 1985-03-30 | K30: 2011-03-15 | L30: 2011-09-11 | M30: No | N30: Yes | O30: Yes | P30: Yes | Q30: Yes | R30: Yes | S30: Yes | T30: Yes | U30: No | V30: No | W30: No | X30: Yes | Y30: No | Z30: Yes | AA30: بدون | AC30: عامل مخزن الخام | AE30: Prouduction
A31: 13971 | B31: عمر صبري ابراهيم محمد حماد | C31: بدون | D31: المخازن | E31: 25 | F31: 1.104109589 | G31: 2019-10-27 | H31: 2020-10-26 | I31: 2020-12-03 | J31: 1995-09-10 | K31: 2019-09-09 | L31: 2020-03-07 | M31: No | N31: Yes | O31: Yes | P31: Yes | Q31: Yes | R31: Yes | S31: Yes | T31: Yes | U31: No | V31: No | W31: No | X31: Yes | Y31: No | Z31: No | AA31: بدون | AC31: عامل مخزن الخام | AE31: Prouduction
A32: 561 | B32: عيد عبدالله بسيوني محمد | C32: دبلوم زراعي | D32: المخازن | E32: 47 | F32: 21.84383562 | G32: 1999-02-04 | H32: 2000-02-04 | I32: 2020-12-03 | J32: 1973-12-02 | K32: 1999-01-16 | L32: 1999-07-15 | M32: Yes | N32: Yes | O32: Yes | P32: Yes | Q32: Yes | R32: Yes | S32: Yes | T32: Yes | U32: No | V32: No | W32: No | X32: No | Y32: Yes | Z32: No | AA32: متوسط | AC32: امين مخزن البواقي | AE32: Prouduction
A33: 531 | B33: فرج ناجي جويد زايد | C33: بدون | D33: المخازن | E33: 40 | F33: 21.63561644 | G33: 1999-04-21 | H33: 2000-04-20 | I33: 2020-12-03 | J33: 1981-03-30 | M33: No | N33: Yes | O33: No | P33: Yes | Q33: Yes | R33: Yes | S33: Yes | T33: Yes | U33: No | V33: No | W33: No | X33: No | Y33: Yes | Z33: No | AA33: بدون | AC33: امين مخزن الدرجه | AE33: Prouduction
A34: 7790 | B34: محمد حجاب محمد زيدان الجبارسي | C34: دبلوم زراعي | D34: المخازن | E34: 34 | F34: 13.77534247 | G34: 2007-02-27 | H34: 2008-02-27 | I34: 2020-12-03 | J34: 1987-01-18 | K34: 2007-02-24 | L34: 2007-08-23 | M34: Yes | N34: Yes | O34: Yes | P34: Yes | Q34: Yes | R34: No | S34: Yes | T34: Yes | U34: No | V34: No | W34: No | X34: Yes | Y34: No | Z34: No | AA34: متوسط | AC34: عامل مخزن دايس | AE34: Prouduction
A35: 10151 | B35: محمد حسين محمد عبداللا | C35: دبلوم صناعي | D35: المخازن | E35: 44 | F35: 10.1369863 | G35: 2010-10-17 | H35: 2011-10-17 | I35: 2020-12-03 | J35: 1976-10-06 | K35: 2010-09-28 | L35: 2011-03-27 | M35: Yes | N35: Yes | O35: Yes | P35: Yes | Q35: Yes | R35: Yes | S35: Yes | T35: Yes | U35: No | V35: No | W35: No | X35: Yes | Y35: Yes | Z35: No | AA35: متوسط | AC35: عامل مخزن دايس | AE35: Prouduction
A36: 562 | B36: محمد زكي محمود بدوي | C36: دبلوم صناعي | D36: المخازن | E36: 45 | F36: 21.0109589 | G36: 1999-12-05 | H36: 2000-12-04 | I36: 2020-12-03 | J36: 1976-04-27 | M36: Yes | N36: Yes | O36: No | P36: Yes | Q36: Yes | R36: Yes | S36: Yes | T36: Yes | U36: No | V36: No | W36: No | X36: No | Y36: Yes | Z36: No | AA36: متوسط | AC36: عامل مخزن الخام | AE36: Prouduction
A37: 632 | B37: محمد شاكر عبدالجيد شريف | C37: دبلوم صناعي | D37: المخازن | E37: 42 | F37: 21.46575342 | G37: 1999-06-22 | H37: 2000-06-21 | I37: 2020-12-03 | J37: 1978-09-26 | K37: 1999-05-30 | L37: 1999-11-26 | M37: Yes | N37: Yes | O37: Yes | P37: Yes | Q37: Yes | R37: Yes | S37: Yes | T37: No | U37: No | V37: No | W37: No | X37: No | Y37: Yes | Z37: No | AA37: متوسط | AC37: امين مخزن المستلزمات | AE37: Prouduction
A38: 7934 | B38: محمد شوقي فهمي حسن | C38: دبلوم تجاره | D38: المخازن | E38: 46 | F38: 13.5890411 | G38: 2007-05-06 | H38: 2008-05-05 | I38: 2020-12-03 | J38: 1974-07-14 | K38: 2007-05-21 | L38: 2007-11-17 | M38: Yes | N38: Yes | O38: Yes | P38: Yes | Q38: Yes | R38: Yes | S38: Yes | T38: Yes | U38: No | V38: No | W38: No | X38: Yes | Y38: Yes | Z38: No | AA38: متوسط | AC38: امين مخزن الاستيك | AE38: Prouduction
A39: 4041 | B39: محمد عبدالحميد عبدالمعطي عطيه | C39: بدون | D39: المخازن | E39: 43 | F39: 14.65205479 | G39: 2006-04-13 | H39: 2007-04-13 | I39: 2020-12-03 | J39: 1977-12-10 | K39: 2006-03-15 | L39: 2006-09-11 | M39: No | N39: Yes | O39: Yes | P39: Yes | Q39: Yes | R39: Yes | S39: Yes | T39: Yes | U39: No | V39: No | W39: No | X39: No | Y39: Yes | Z39: No | AC39: عامل مخزن الغزل | AE39: Prouduction
A40: 3920 | B40: محمد محمد مزارع سليم | C40: بدون مؤهل | D40: المخازن | E40: 60 | F40: 19.75068493 | G40: 2001-03-09 | H40: 2002-03-09 | I40: 2020-12-03 | J40: 1961-03-03 | M40: No | N40: Yes | O40: Yes | P40: Yes | Q40: Yes | R40: Yes | S40: Yes | T40: Yes | U40: No | V40: No | W40: No | X40: No | Y40: Yes | Z40: No | AA40: بدون | AC40: عامل مخزن البواقي | AE40: Prouduction
A41: 10115 | B41: محمد محممود عبدالعزيز المرسي | C41: بدون | D41: المخازن | E41: 38 | F41: 10.40547945 | G41: 2010-07-11 | H41: 2011-07-11 | I41: 2020-12-03 | J41: 1983-02-23 | K41: 2010-08-10 | L41: 2011-02-06 | M41: No | N41: Yes | O41: Yes | P41: Yes | Q41: Yes | R41: Yes | S41: Yes | T41: Yes | U41: Yes | V41: No | W41: No | X41: No | Y41: Yes | Z41: Yes | AA41: بدون | AC41: عامل مخزن دايس | AE41: Prouduction
A42: 7100 | B42: محمود جاد الكريم محمد محمد | C42: بدون | D42: المخازن | E42: 48 | F42: 14.91780822 | G42: 2006-01-06 | H42: 2007-01-06 | I42: 2020-12-03 | J42: 1972-10-19 | K42: 2006-05-06 | L42: 2006-11-02 | M42: No | N42: Yes | O42: Yes | P42: Yes | Q42: Yes | R42: Yes | S42: Yes | T42: Yes | U42: No | V42: No | W42: No | X42: No | Y42: Yes | Z42: No | AA42: بدون | AC42: عامل مخزن الغزل | AE42: Prouduction
A43: 10501 | B43: محمود شاكر احمد السيد اللافي | C43: بدون | D43: المخازن | E43: 33 | F43: 9.84109589 | G43: 2011-02-02 | H43: 2012-02-02 | I43: 2020-12-03 | J43: 1987-08-01 | K43: 2011-03-17 | L43: 2011-09-13 | M43: No | N43: Yes | O43: Yes | P43: Yes | Q43: Yes | R43: Yes | S43: Yes | T43: Yes | U43: No | V43: No | W43: No | X43: No | Y43: Yes | Z43: Yes | AA43: بدون | AC43: عامل مخزن الخام | AE43: Prouduction
A44: 13901 | B44: محمود صابر محمود الطباخ | C44: بكالوريوس رقابه جوده | D44: المخازن | E44: 26 | F44: 1.528767123 | G44: 2019-05-25 | H44: 2020-05-24 | I44: 2020-12-03 | J44: 1995-04-02 | K44: 2019-05-15 | L44: 2019-11-11 | M44: No | N44: Yes | O44: Yes | P44: Yes | Q44: Yes | R44: Yes | S44: Yes | T44: Yes | U44: Yes | V44: No | W44: No | X44: Yes | Y44: Yes | Z44: No | AA44: عالي | AC44: عامل مخزن الابر | AE44: Prouduction
A45: 1116 | B45: محمود عبد الغني احمد علي ابو يوسف | C45: دبلوم صناعي | D45: المخازن | E45: 44 | F45: 23.57260274 | G45: 1997-05-14 | H45: 1998-05-14 | I45: 2020-12-03 | J45: 1977-02-04 | K45: 1997-04-29 | L45: 1997-10-26 | M45: No | N45: Yes | O45: Yes | P45: Yes | Q45: Yes | R45: Yes | S45: Yes | T45: Yes | U45: No | V45: No | W45: No | X45: No | Y45: No | Z45: No | AA45: متوسط | AC45: عامل مخزن الغزل | AE45: Prouduction
A46: 339 | B46: محمود محمد ابو المجد | C46: بدون | D46: المخازن | E46: 50 | F46: 16.82465753 | G46: 2004-02-10 | H46: 2005-02-09 | I46: 2020-12-03 | J46: 1970-07-13 | K46: 2004-05-04 | L46: 2004-10-31 | M46: No | N46: Yes | O46: Yes | P46: Yes | Q46: Yes | R46: Yes | S46: Yes | T46: Yes | U46: No | V46: No | W46: No | X46: No | Y46: Yes | Z46: No | AA46: بدون | AC46: عامل مخزن دايس | AE46: Prouduction
A47: 525 | B47: محمود محمد علي ابراهيم | C47: دبلوم تجاره | D47: المخازن | E47: 58 | F47: 25.36164384 | G47: 1995-07-31 | H47: 1996-07-30 | I47: 2020-12-03 | J47: 1962-08-25 | M47: Yes | N47: No | O47: No | P47: Yes | Q47: Yes | R47: Yes | S47: Yes | T47: Yes | U47: No | V47: No | W47: No | X47: No | Y47: Yes | Z47: No | AA47: متوسط | AC47: امين مخزن الغزل | AE47: Prouduction
A48: 2601 | B48: مصطفي علي مصطفي عاشور علي | C48: دبلوم صناعي | D48: المخازن | E48: 46 | F48: 16.7260274 | G48: 2004-03-17 | H48: 2005-03-17 | I48: 2020-12-03 | J48: 1975-01-22 | K48: 2003-12-30 | L48: 2004-06-27 | M48: Yes | N48: Yes | O48: Yes | P48: Yes | Q48: Yes | R48: Yes | S48: Yes | T48: No | U48: No | V48: No | W48: No | X48: No | Y48: Yes | Z48: No | AA48: متوسط | AC48: امين مخزن دايس | AE48: Prouduction
A49: 6620 | B49: منصور سالم رشيد عبدالرواف | C49: بدون | D49: المخازن | E49: 36 | F49: 14.8109589 | G49: 2006-02-14 | H49: 2007-02-14 | I49: 2020-12-03 | J49: 1985-02-01 | K49: 2005-12-11 | L49: 2006-06-09 | M49: No | N49: Yes | O49: Yes | P49: No | Q49: Yes | R49: Yes | S49: Yes | T49: Yes | U49: No | V49: No | W49: No | X49: No | Y49: Yes | Z49: No | AA49: بدون | AC49: عامل مخزن القماش الجاهز | AE49: Prouduction
A50: 2046 | B50: منصوره صبره محمد عبد العال | C50: بدون | D50: المخازن | E50: 52 | F50: 25.70958904 | G50: 1995-03-26 | H50: 1996-03-25 | I50: 2020-12-03 | J50: 1968-11-19 | M50: No | N50: No | O50: No | P50: Yes | Q50: Yes | R50: Yes | S50: Yes | T50: Yes | U50: No | V50: No | W50: No | X50: No | Y50: Yes | Z50: No | AA50: بدون | AC50: عامل مخزن قماش جاهز | AE50: Prouduction
A51: 6924 | B51: نعيم فاروق حسن راضي | C51: بدون مؤهل | D51: المخازن | E51: 45 | F51: 14.65205479 | G51: 2006-04-13 | H51: 2007-04-13 | I51: 2020-12-03 | J51: 1976-03-07 | K51: 2006-03-08 | L51: 2006-09-04 | M51: No | N51: Yes | O51: Yes | P51: Yes | Q51: Yes | R51: No | S51: Yes | T51: Yes | U51: No | V51: No | W51: No | X51: No | Y51: Yes | Z51: No | AA51: بدون | AC51: عامل مخزن الرابش | AE51: Prouduction
A52: 661 | B52: وائل عبدالعزيز عبد الجليل احمد جمعه | C52: الاعداديه | D52: المخازن | E52: 41 | F52: 22.81369863 | G52: 1998-02-15 | H52: 1999-02-15 | I52: 2020-12-03 | J52: 1979-12-14 | K52: 1998-03-16 | L52: 1998-09-12 | M52: Yes | N52: Yes | O52: Yes | P52: Yes | Q52: Yes | R52: Yes | S52: Yes | T52: Yes | U52: No | V52: No | W52: No | X52: No | Y52: Yes | Z52: No | AA52: بدون | AC52: عامل مخزن القماش الجاهز | AE52: Prouduction
A53: 9358 | B53: وليد صلاح علي جلاله | C53: ليسانس حقوق | D53: المخازن | E53: 47 | F53: 11.13424658 | G53: 2009-10-18 | H53: 2010-10-18 | I53: 2020-12-03 | J53: 1974-05-08 | K53: 2009-09-23 | L53: 2010-03-22 | M53: Yes | N53: Yes | O53: Yes | P53: Yes | Q53: Yes | R53: Yes | S53: Yes | T53: Yes | U53: No | V53: No | W53: No | X53: Yes | Y53: Yes | Z53: No | AA53: عالي | AC53: امين مخزن الخام | AE53: Prouduction
A54: 560 | B54: وليد محمد موسي عبد الوهاب | C54: دبلوم صناعي | D54: المخازن | E54: 50 | F54: 20.24657534 | G54: 2000-09-09 | H54: 2001-09-09 | I54: 2020-12-03 | J54: 1971-01-20 | K54: 2000-08-03 | L54: 2001-01-30 | M54: No | N54: Yes | O54: Yes | P54: Yes | Q54: Yes | R54: No | S54: Yes | T54: Yes | U54: No | V54: No | W54: No | X54: No | Y54: No | Z54: No | AA54: متوسط | AC54: امين مخزن قطع الغيار | AE54: Prouduction

Sheet الاستيك
A1: رقم الكارتة | B1: الاسم | C1: أسم المؤهل | D1: القسم | E1: السن | F1: الخبرة | G1: بداية التعين | H1: تاريخ انتهاء العقد | I1: تاريخ اليوم | J1: تاريخ الميلاد | K1: بداية الفيش | L1: انتهاء الفيش | M1: المؤهل | N1: كعب العمل | O1: الفيش | P1: شهادة الميلاد | Q1: صورة البطاقة | R1: صورة شخصية | S1: العقد | T1: استمارة 1 | U1: استمارة 6 | V1: استقالة | W1: اخلاء طرف | X1: اقرار استلام عمل | Y1: صحيفة الحالة الاجتماعية | Z1: أستمارة 11 | AA1: نوع المؤهل | AB1: رقم كود الادارة | AC1: الوظيفة | AD1: ملاحظات | AE1: القسم العام | AF1: عالي

Sheet العقود المنتهية
A1: الاسم | B1: بداية تعيين | C1: نوع العقد | D1: مدة العقد | E1: تاريخ الانتهاء | F1: اجمالي المتبقي بالايام
